Workbook

Sheet الشيت الرئيسي
B1: محافظة اسيوط
B2: ادارة اسيوط التعليمية | D2: مذكرة للعرض على / السيد اللواء الوزير / محافظ اسيوط
B3: ادارة الموارد البشرية
B4: قسم الماهيات
B5: الموضوع : تنفيذ الاحكام القضائية الصادرة لللمعلمين بديوان ادارة اسيوط التعليمية ومدارسها باحقيتهم فى صرف الحوافز ومكافاة الامتحانات والاعمال الاضافية وجميع المزايا النقدية والعينية المقررة
B6: على اساس المرتب فى 30/6/2016 مع ما يترتب على ذلك من اثار من بند بدل المعلم 4 / 45 وبند حافز الاداء 3 / 23 وبند حافز الاثابة 3 / 3 وبند المكافاة 3 / 14 وبند الجهود الغير عادية
B7: العرض : صدر الكتاب الدورى رقم (1) لسنة 2020 من الجهاز المركزى للتنظيم والادارة بشان الاجراءات والمستندات اللازمة لموافاة الجهاز بها بتنفيذ الاحكام القضائية ضد الجهاز الادارى للدولة حيث نص بند (1)
B8: من وعلى ارفاق مذكرة معتمدة من السلطة المختصة متضمنه التكاليف اللازمة لتنفيذ الحكم والبند والنوع المطلوب للتنفيذ منه وحيث وردت الاحكام الاتية باجمالى مبلغ ( ) جنيه مصري لعدد ( ) | BW8: اساسي | BX8: اساسي | BZ8: اساسي | CE8: اساسي | CF8: اساسي | CG8: اساسي
A9: البند المطلوب تعزيزة : بند بدل المعلم 4 / 45 وبند بدل الاعتماد 4 / 46 وبند حافز الاداء 3 / 23 وبند حافز الاثابة 3 / 3 وبند المكافاة 3 / 14 وبند الجهود غير العادية للمعلمين بادارة اسيوط التعليمية ومدارسها الصادرة لهم احكام قضائية وبياناتهم كالاتى | N9: الفرق | O9: الفرق | P9: بدل معلم | Q9: بدل معلم | R9: بدل معلم | S9: عدد الشهور المستحقة | U9: عدد الشهور | V9: مبلغ المدة | W9: مبلغ المدة | X9: حافز ( 25 % ) | Y9: حافز ( 25 % ) | Z9: عدد الشهور | AA9: عدد الشهور المستحقة | AC9: عدد الشهور | AD9: مبلغ المدة | AE9: مبلغ المدة | AF9: بدل اعتماد | AG9: قيمة الشهر | AH9: قيمة الشهر | AI9: عدد الشهور | AJ9: عدد الشهور المستحقة | AL9: عدد الشهور | AM9: مبلغ المدة | AN9: مبلغ المدة | AO9: بدل اعتماد | AP9: قيمة الشهر | AQ9: قيمة الشهر | AR9: عدد الشهور | AS9: عدد الشهور المستحقة | AU9: عدد الشهور | AV9: مبلغ المدة | AW9: مبلغ المدة | AX9: حافز اداء | AY9: قيمة الشهر | AZ9: قيمة الشهر | BA9: عدد الشهور | BB9: عدد الشهور المستحقة | BD9: عدد الشهور | BE9: مبلغ المدة | BF9: مبلغ المدة | BG9: حافز اداء | BH9: قيمة الشهر | BI9: قيمة الشهر | BJ9: عدد الشهور | BK9: عدد الشهور المستحقة | BM9: عدد الشهور | BN9: مبلغ المدة | BO9: مبلغ المدة | BP9: مكافاة الامتحانات | BQ9: مكافاة الامتحانات | BR9: عدد الشهور | BS9: عدد الشهور المستحقة | BU9: عدد الشهور | BV9: مبلغ المدة | BW9: مبلغ المدة | BX9: جهود غير عادية | BY9: جهود غير عادية | BZ9: عدد الشهور | CA9: عدد الشهور المستحقة | CC9: عدد الشهور | CD9: مبلغ المدة | CE9: مبلغ المدة | CF9: الاجمالى | CG9: التفقيط | CH9: الرقم القومى | CI9: مكان العمل
A10: م | B10: الاسم رباعى | C10: الرقم القومى | D10: المحكمة | E10: الدائرة | F10: اسم المدعى عليه | G10: رقم الدعوى | H10: تاريخ جلسة الحكم | I10: الفترة المستحق عنها الصرف | K10: اجمالى المبلغ | L10: الاساسي فى | P10: م ( 50 % ) | Q10: م ( 50 % ) | R10: فى | U10: المستحقة | Z10: المستحقة | AC10: المستحقة | AI10: المستحقة | AL10: المستحقة | AR10: المستحقة | AU10: المستحقة | BA10: المستحقة | BD10: المستحقة | BJ10: المستحقة | BM10: المستحقة | BR10: المستحقة | BU10: المستحقة | BZ10: المستحقة | CC10: المستحقة
E11: التابعة | I11: من | J11: الى | L11: 2016-06-03 | M11: 2015-06-30 | O11: للطباعة | R11: اليوم | S11: يوم | T11: شهر | U11: باليوم | V11: المستحقة | W11: المستحقة | Z11: باليوم | AA11: يوم | AB11: شهر | AC11: باليوم | AD11: المستحقة | AE11: المستحقة | AI11: باليوم | AJ11: يوم | AK11: شهر | AL11: باليوم | AM11: المستحقة | AN11: المستحقة | AR11: باليوم | AS11: يوم | AT11: شهر | AU11: باليوم | AV11: المستحقة | AW11: المستحقة | BA11: باليوم | BB11: يوم | BC11: شهر | BD11: باليوم | BE11: المستحقة | BF11: المستحقة | BJ11: باليوم | BK11: يوم | BL11: شهر | BM11: باليوم | BN11: المستحقة | BO11: المستحقة | BR11: باليوم | BS11: يوم | BT11: شهر | BU11: باليوم | BV11: المستحقة | BW11: المستحقة | BZ11: باليوم | CA11: يوم | CB11: شهر | CC11: باليوم | CD11: المستحقة | CE11: المستحقة
A12: 1 | B12: محمد 1 | C12: 2521013251237 | D12: محكمة القضاء الادارى باسيوط | E12: سوهاج | F12: محافظة اسيوط - وكيل وزارة التربية والتعليم | G12: 1258لسنة2016 | H12: 2022-05-15 | I12: 2016-08-01 | J12: 2019-08-13 | K12: =CF12 -> 68032.04 | L12: 486.07 | M12: 420.12 | N12: =L12-M12 -> 65.95 | O12: =TRUNC(N12,2) -> 65.95 | P12: =O12*50/100 -> 32.975 | Q12: 32.97 | R12: =Q12/30 -> 1.099 | S12: 0 | T12: 72 | U12: =SUM((T12*30),S12) -> 2160 | V12: =U12*R12 -> 2373.84 | W12: =TRUNC(V12,2) -> 2373.84 | X12: =O12*25/100 -> 16.4875 | Y12: =TRUNC(X12,2) -> 16.48 | Z12: =Y12/30 -> 0.5493333333 | AA12: 0 | AB12: 72 | AC12: =SUM((AB12*30),AA12) -> 2160 | AD12: =AC12*Z12 -> 1186.56 | AE12: =TRUNC(AD12,2) -> 1186.56 | AF12: بدل اعتماد معلم ( 50 % ) | AG12: =IF(AF12="بدل اعتماد معلم ( 50 % )",O12*100/100,IF(AF12="بدل اعتماد معلم أول ( 125 % )",O12*125/100,IF(AF12="بدل اعتماد معلم أول أ ( 150 % )",O12*150/100,IF(AF12="بدل اعتماد معلم خبير ( 175 % )",O12*175/100,IF(AF12="بدل اعتماد كبير معلمين ( 200 % )",O12*200/100))))) -> 65.95 | AH12: =TRUNC(AG12,2) -> 65.95 | AI12: =AH12/30 -> 2.198333333 | AJ12: 0 | AK12: 72 | AL12: =SUM((AK12*30),AJ12) -> 2160 | AM12: =AL12*AI12 -> 4748.4 | AN12: =TRUNC(AM12,2) -> 4748.4 | AO12: بدل اعتماد معلم أول أ ( 150 % ) | AP12: =IF(AO12="بدل اعتماد معلم ( 50 % )",O12*100/100,IF(AO12="بدل اعتماد معلم أول ( 125 % )",O12*125/100,IF(AO12="بدل اعتماد معلم أول أ ( 150 % )",O12*150/100,IF(AO12="بدل اعتماد معلم خبير ( 175 % )",O12*175/100,IF(AO12="بدل اعتماد كبير معلمين ( 200 % )",O12*200/100))))) -> 98.925 | AQ12: =TRUNC(AP12,2) -> 98.92 | AR12: =AQ12/30 -> 3.297333333 | AS12: 0 | AT12: 72 | AU12: =SUM((AT12*30),AS12) -> 2160 | AV12: =AU12*AR12 -> 7122.24 | AW12: =TRUNC(AV12,2) -> 7122.24 | AX12: حافز اداء معلم ( 75 % ) | AY12: =IF(AX12="حافز اداء معلم ( 75 % )",O12*75/100,IF(AX12="حافز اداء معلم أول ( 50 % )",O12*50/100,IF(AX12="حافز اداء معلم أول أ ( 25 % )",O12*25/100,IF(AX12="حافز اداء معلم خبير ( 25 % )",O12*25/100,IF(AX12="حافز اداء كبير معلمين ( 25 % )",O12*25/100))))) -> 49.4625 | AZ12: =TRUNC(AY12,2) -> 49.46 | BA12: =AZ12/30 -> 1.648666667 | BB12: 0 | BC12: 72 | BD12: =SUM((BC12*30),BB12) -> 2160 | BE12: =BD12*BA12 -> 3561.12 | BF12: =TRUNC(BE12,2) -> 3561.12 | BG12: حافز اداء معلم أول أ ( 25 % ) | BH12: =IF(BG12="حافز اداء معلم ( 75 % )",O12*75/100,IF(BG12="حافز اداء معلم أول ( 50 % )",O12*50/100,IF(BG12="حافز اداء معلم أول أ ( 25 % )",O12*25/100,IF(BG12="حافز اداء معلم خبير ( 25 % )",O12*25/100,IF(BG12="حافز اداء كبير معلمين ( 25 % )",O12*25/100))))) -> 16.4875 | BI12: =TRUNC(BH12,2) -> 16.48 | BJ12: =BI12/30 -> 0.5493333333 | BK12: 0 | BL12: 72 | BM12: =SUM((BL12*30),BK12) -> 2160 | BN12: =BM12*BJ12 -> 1186.56 | BO12: =TRUNC(BN12,2) -> 1186.56 | BP12: =O12*10 -> 659.5 | BQ12: 659.5 | BR12: =BQ12/30 -> 21.98333333 | BS12: 0 | BT12: 72 | BU12: =SUM((BT12*30),BS12) -> 2160 | BV12: =BU12*BR12 -> 47484 | BW12: =TRUNC(BV12,2) -> 47484 | BX12: =O12*40/100 -> 26.38 | BY12: 26.38 | BZ12: =BY12/30 -> 0.8793333333 | CA12: 0 | CB12: 14 | CC12: =SUM((CB12*30),CA12) -> 420 | CD12: =CC12*BZ12 -> 369.32 | CE12: =TRUNC(CD12,2) -> 369.32 | CF12: =CE12+BW12+BO12+BF12+AW12+AN12+AE12+W12 -> 68032.04 | CG12: =" فقط "&ArbNum2Text(CF12, 2,3,"جنيه","جنيهات",1,"قرش","قروش",1) ->  | CH12: 2521013251237 | CI12: مدرسة مدينة المعلمين
A13: 2 | B13: محمد 2 | C13: 2570705261984 | D13: محكمة القضاء الادارى باسيوط | E13: اسيوط | F13: محافظة اسيوط - وكيل وزارة التربية والتعليم | G13: 1258لسنة2017 | H13: 2022-05-16 | I13: 2016-08-01 | J13: 2019-08-13 | K13: =CF13 -> 69218.6 | L13: 486.07 | M13: 420.12 | N13: =L13-M13 -> 65.95 | O13: 65.95 | P13: =O13*50/100 -> 32.975 | Q13: 32.97 | R13: =Q13/30 -> 1.099 | S13: 0 | T13: 72 | U13: =SUM((T13*30),S13) -> 2160 | V13: =U13*R13 -> 2373.84 | W13: 2373.84 | X13: =O13*25/100 -> 16.4875 | Y13: 16.48 | Z13: =Y13/30 -> 0.5493333333 | AA13: 0 | AB13: 72 | AC13: =SUM((AB13*30),AA13) -> 2160 | AD13: =AC13*Z13 -> 1186.56 | AE13: 1186.56 | AF13: بدل اعتماد معلم أول ( 125 % ) | AG13: =IF(AF13="بدل اعتماد معلم ( 50 % )",O13*100/100,IF(AF13="بدل اعتماد معلم أول ( 125 % )",O13*125/100,IF(AF13="بدل اعتماد معلم أول أ ( 150 % )",O13*150/100,IF(AF13="بدل اعتماد معلم خبير ( 175 % )",O13*175/100,IF(AF13="بدل اعتماد كبير معلمين ( 200 % )",O13*200/100))))) -> 82.4375 | AH13: =TRUNC(AG13,2) -> 82.43 | AI13: =AH13/30 -> 2.747666667 | AJ13: 0 | AK13: 72 | AL13: =SUM((AK13*30),AJ13) -> 2160 | AM13: =AL13*AI13 -> 5934.96 | AN13: =TRUNC(AM13,2) -> 5934.96 | AO13: بدل اعتماد معلم خبير ( 175 % ) | AP13: =IF(AO13="بدل اعتماد معلم ( 50 % )",O13*100/100,IF(AO13="بدل اعتماد معلم أول ( 125 % )",O13*125/100,IF(AO13="بدل اعتماد معلم أول أ ( 150 % )",O13*150/100,IF(AO13="بدل اعتماد معلم خبير ( 175 % )",O13*175/100,IF(AO13="بدل اعتماد كبير معلمين ( 200 % )",O13*200/100))))) -> 115.4125 | AQ13: 115.41 | AR13: =AQ13/30 -> 3.847 | AS13: 0 | AT13: 72 | AU13: =SUM((AT13*30),AS13) -> 2160 | AV13: =AU13*AR13 -> 8309.52 | AW13: 8309.52 | AX13: حافز اداء معلم أول ( 50 % ) | AY13: =IF(AX13="حافز اداء معلم ( 75 % )",O13*75/100,IF(AX13="حافز اداء معلم أول ( 50 % )",O13*50/100,IF(AX13="حافز اداء معلم أول أ ( 25 % )",O13*25/100,IF(AX13="حافز اداء معلم خبير ( 25 % )",O13*25/100,IF(AX13="حافز اداء كبير معلمين ( 25 % )",O13*25/100))))) -> 32.975 | AZ13: 32.97 | BA13: =AZ13/30 -> 1.099 | BB13: 0 | BC13: 72 | BD13: =SUM((BC13*30),BB13) -> 2160 | BE13: =BD13*BA13 -> 2373.84 | BF13: 2373.84 | BG13: حافز اداء معلم خبير ( 25 % ) | BH13: =IF(BG13="حافز اداء معلم ( 75 % )",O13*75/100,IF(BG13="حافز اداء معلم أول ( 50 % )",O13*50/100,IF(BG13="حافز اداء معلم أول أ ( 25 % )",O13*25/100,IF(BG13="حافز اداء معلم خبير ( 25 % )",O13*25/100,IF(BG13="حافز اداء كبير معلمين ( 25 % )",O13*25/100))))) -> 16.4875 | BI13: 16.48 | BJ13: =BI13/30 -> 0.5493333333 | BK13: 0 | BL13: 72 | BM13: =SUM((BL13*30),BK13) -> 2160 | BN13: =BM13*BJ13 -> 1186.56 | BO13: 1186.56 | BP13: =O13*10 -> 659.5 | BQ13: 659.5 | BR13: =BQ13/30 -> 21.98333333 | BS13: 0 | BT13: 72 | BU13: =SUM((BT13*30),BS13) -> 2160 | BV13: =BU13*BR13 -> 47484 | BW13: 47484 | BX13: =O13*40/100 -> 26.38 | BY13: 26.38 | BZ13: =BY13/30 -> 0.8793333333 | CA13: 0 | CB13: 14 | CC13: =SUM((CB13*30),CA13) -> 420 | CD13: =CC13*BZ13 -> 369.32 | CE13: 369.32 | CF13: =CE13+BW13+BO13+BF13+AW13+AN13+AE13+W13 -> 69218.6 | CH13: 2570705261984 | CI13: مدرسة سميح السعيد
A14: 3 | B14: محمد 3 | C14: 2751026250029 | D14: محكمة القضاء الادارى باسيوط | E14: سوهاج | F14: محافظة اسيوط - وكيل وزارة التربية والتعليم | G14: 1258لسنة2018 | H14: 2022-05-17 | I14: 2016-08-01 | J14: 2019-08-13 | K14: 192039.86 | L14: 600 | M14: 420.12 | N14: 179.88 | O14: 179.88 | P14: 89.94 | Q14: 89.94 | R14: 2.998 | S14: 0 | T14: 72 | U14: 2160 | V14: 6475.68 | W14: 6475.68 | X14: =O14*25/100 -> 44.97 | Y14: 44.97 | Z14: 1.499 | AA14: 0 | AB14: 72 | AC14: 2160 | AD14: 3237.84 | AE14: 3237.84 | AF14: بدل اعتماد معلم أول أ ( 150 % ) | AG14: =IF(AF14="بدل اعتماد معلم ( 50 % )",O14*100/100,IF(AF14="بدل اعتماد معلم أول ( 125 % )",O14*125/100,IF(AF14="بدل اعتماد معلم أول أ ( 150 % )",O14*150/100,IF(AF14="بدل اعتماد معلم خبير ( 175 % )",O14*175/100,IF(AF14="بدل اعتماد كبير معلمين ( 200 % )",O14*200/100))))) -> 269.82 | AH14: 269.82 | AI14: 8.994 | AJ14: 0 | AK14: 72 | AL14: 2160 | AM14: 19427.04 | AN14: 19427.04 | AO14: بدل اعتماد كبير معلمين ( 200 % ) | AP14: =IF(AO14="بدل اعتماد معلم ( 50 % )",O14*100/100,IF(AO14="بدل اعتماد معلم أول ( 125 % )",O14*125/100,IF(AO14="بدل اعتماد معلم أول أ ( 150 % )",O14*150/100,IF(AO14="بدل اعتماد معلم خبير ( 175 % )",O14*175/100,IF(AO14="بدل اعتماد كبير معلمين ( 200 % )",O14*200/100))))) -> 359.76 | AQ14: 359.76 | AR14: 11.992 | AS14: 0 | AT14: 72 | AU14: 2160 | AV14: 25902.72 | AW14: 25902.72 | AX14: حافز اداء معلم أول أ ( 25 % ) | AY14: =IF(AX14="حافز اداء معلم ( 75 % )",O14*75/100,IF(AX14="حافز اداء معلم أول ( 50 % )",O14*50/100,IF(AX14="حافز اداء معلم أول أ ( 25 % )",O14*25/100,IF(AX14="حافز اداء معلم خبير ( 25 % )",O14*25/100,IF(AX14="حافز اداء كبير معلمين ( 25 % )",O14*25/100))))) -> 44.97 | AZ14: 44.97 | BA14: 1.499 | BB14: 0 | BC14: 72 | BD14: 2160 | BE14: 3237.84 | BF14: 3237.84 | BG14: حافز اداء كبير معلمين ( 25 % ) | BH14: =IF(BG14="حافز اداء معلم ( 75 % )",O14*75/100,IF(BG14="حافز اداء معلم أول ( 50 % )",O14*50/100,IF(BG14="حافز اداء معلم أول أ ( 25 % )",O14*25/100,IF(BG14="حافز اداء معلم خبير ( 25 % )",O14*25/100,IF(BG14="حافز اداء كبير معلمين ( 25 % )",O14*25/100))))) -> 44.97 | BI14: 44.97 | BJ14: 1.499 | BK14: 0 | BL14: 72 | BM14: 2160 | BN14: 3237.84 | BO14: 3237.84 | BP14: =O14*10 -> 1798.8 | BQ14: 1798.8 | BR14: 59.96 | BS14: 0 | BT14: 72 | BU14: 2160 | BV14: 129513.6 | BW14: 129513.6 | BX14: =O14*40/100 -> 71.952 | BY14: 71.95 | BZ14: 2.398333333 | CA14: 0 | CB14: 14 | CC14: 420 | CD14: 1007.3 | CE14: 1007.3 | CF14: =CE14+BW14+BO14+BF14+AW14+AN14+AE14+W14 -> 192039.86 | CH14: 2751026250029 | CI14: ادارة اسيوط التعليمية
A15: 4 | B15: محمد 4 | C15: 2751026250029 | D15: محكمة القضاء الادارى باسيوط | E15: اسيوط | F15: محافظة اسيوط - وكيل وزارة التربية والتعليم | G15: 1258لسنة2019 | H15: 2022-05-18 | I15: 2016-08-01 | J15: 2019-08-13 | K15: 154024.9 | L15: 562 | M15: 420.12 | N15: 141.88 | O15: 141.88 | P15: 70.94 | Q15: 70.94 | R15: 2.364666667 | S15: 0 | T15: 72 | U15: 2160 | V15: 5107.68 | W15: 5107.68 | X15: =O15*25/100 -> 35.47 | Y15: 35.47 | Z15: 1.182333333 | AA15: 0 | AB15: 72 | AC15: 2160 | AD15: 2553.84 | AE15: 2553.84 | AF15: بدل اعتماد معلم خبير ( 175 % ) | AG15: =IF(AF15="بدل اعتماد معلم ( 50 % )",O15*100/100,IF(AF15="بدل اعتماد معلم أول ( 125 % )",O15*125/100,IF(AF15="بدل اعتماد معلم أول أ ( 150 % )",O15*150/100,IF(AF15="بدل اعتماد معلم خبير ( 175 % )",O15*175/100,IF(AF15="بدل اعتماد كبير معلمين ( 200 % )",O15*200/100))))) -> 248.29 | AH15: 248.29 | AI15: 8.276333333 | AJ15: 0 | AK15: 72 | AL15: 2160 | AM15: 17876.88 | AN15: 17876.88 | AO15: بدل اعتماد معلم أول أ ( 150 % ) | AP15: =IF(AO15="بدل اعتماد معلم ( 50 % )",O15*100/100,IF(AO15="بدل اعتماد معلم أول ( 125 % )",O15*125/100,IF(AO15="بدل اعتماد معلم أول أ ( 150 % )",O15*150/100,IF(AO15="بدل اعتماد معلم خبير ( 175 % )",O15*175/100,IF(AO15="بدل اعتماد كبير معلمين ( 200 % )",O15*200/100))))) -> 212.82 | AQ15: 212.82 | AR15: 7.094 | AS15: 0 | AT15: 72 | AU15: 2160 | AV15: 15323.04 | AW15: 15323.04 | AX15: حافز اداء معلم خبير ( 25 % ) | AY15: =IF(AX15="حافز اداء معلم ( 75 % )",O15*75/100,IF(AX15="حافز اداء معلم أول ( 50 % )",O15*50/100,IF(AX15="حافز اداء معلم أول أ ( 25 % )",O15*25/100,IF(AX15="حافز اداء معلم خبير ( 25 % )",O15*25/100,IF(AX15="حافز اداء كبير معلمين ( 25 % )",O15*25/100))))) -> 35.47 | AZ15: 35.47 | BA15: 1.182333333 | BB15: 0 | BC15: 72 | BD15: 2160 | BE15: 2553.84 | BF15: 2553.84 | BG15: حافز اداء معلم ( 75 % ) | BH15: =IF(BG15="حافز اداء معلم ( 75 % )",O15*75/100,IF(BG15="حافز اداء معلم أول ( 50 % )",O15*50/100,IF(BG15="حافز اداء معلم أول أ ( 25 % )",O15*25/100,IF(BG15="حافز اداء معلم خبير ( 25 % )",O15*25/100,IF(BG15="حافز اداء كبير معلمين ( 25 % )",O15*25/100))))) -> 106.41 | BI15: 106.41 | BJ15: 3.547 | BK15: 0 | BL15: 72 | BM15: 2160 | BN15: 7661.52 | BO15: 7661.52 | BP15: =O15*10 -> 1418.8 | BQ15: 1418.8 | BR15: 47.29333333 | BS15: 0 | BT15: 72 | BU15: 2160 | BV15: 102153.6 | BW15: 102153.6 | BX15: =O15*40/100 -> 56.752 | BY15: 56.75 | BZ15: 1.891666667 | CA15: 0 | CB15: 14 | CC15: 420 | CD15: 794.5 | CE15: 794.5 | CF15: =CE15+BW15+BO15+BF15+AW15+AN15+AE15+W15 -> 154024.9 | CH15: 2751026250029 | CI15: مدرسة مدينة المعلمين
A16: 5 | B16: محمد 5 | C16: 2770124250032 | D16: محكمة القضاء الادارى باسيوط | E16: سوهاج | F16: محافظة اسيوط - وكيل وزارة التربية والتعليم | G16: 1258لسنة2020 | H16: 2022-05-19 | I16: 2016-08-01 | J16: 2019-08-13 | K16: 250728.42 | L16: 659 | M16: 420.12 | N16: 238.88 | O16: 238.88 | P16: 119.44 | Q16: 119.44 | R16: 3.981333333 | S16: 0 | T16: 72 | U16: 2160 | V16: 8599.68 | W16: 8599.68 | X16: =O16*25/100 -> 59.72 | Y16: 59.72 | Z16: 1.990666667 | AA16: 0 | AB16: 72 | AC16: 2160 | AD16: 4299.84 | AE16: 4299.84 | AF16: بدل اعتماد كبير معلمين ( 200 % ) | AG16: =IF(AF16="بدل اعتماد معلم ( 50 % )",O16*100/100,IF(AF16="بدل اعتماد معلم أول ( 125 % )",O16*125/100,IF(AF16="بدل اعتماد معلم أول أ ( 150 % )",O16*150/100,IF(AF16="بدل اعتماد معلم خبير ( 175 % )",O16*175/100,IF(AF16="بدل اعتماد كبير معلمين ( 200 % )",O16*200/100))))) -> 477.76 | AH16: 477.76 | AI16: 15.92533333 | AJ16: 0 | AK16: 72 | AL16: 2160 | AM16: 34398.72 | AN16: 34398.72 | AO16: بدل اعتماد معلم ( 50 % ) | AP16: =IF(AO16="بدل اعتماد معلم ( 50 % )",O16*100/100,IF(AO16="بدل اعتماد معلم أول ( 125 % )",O16*125/100,IF(AO16="بدل اعتماد معلم أول أ ( 150 % )",O16*150/100,IF(AO16="بدل اعتماد معلم خبير ( 175 % )",O16*175/100,IF(AO16="بدل اعتماد كبير معلمين ( 200 % )",O16*200/100))))) -> 238.88 | AQ16: 238.88 | AR16: 7.962666667 | AS16: 0 | AT16: 72 | AU16: 2160 | AV16: 17199.36 | AW16: 17199.36 | AX16: حافز اداء كبير معلمين ( 25 % ) | AY16: =IF(AX16="حافز اداء معلم ( 75 % )",O16*75/100,IF(AX16="حافز اداء معلم أول ( 50 % )",O16*50/100,IF(AX16="حافز اداء معلم أول أ ( 25 % )",O16*25/100,IF(AX16="حافز اداء معلم خبير ( 25 % )",O16*25/100,IF(AX16="حافز اداء كبير معلمين ( 25 % )",O16*25/100))))) -> 59.72 | AZ16: 59.72 | BA16: 1.990666667 | BB16: 0 | BC16: 72 | BD16: 2160 | BE16: 4299.84 | BF16: 4299.84 | BG16: حافز اداء معلم أول ( 50 % ) | BH16: =IF(BG16="حافز اداء معلم ( 75 % )",O16*75/100,IF(BG16="حافز اداء معلم أول ( 50 % )",O16*50/100,IF(BG16="حافز اداء معلم أول أ ( 25 % )",O16*25/100,IF(BG16="حافز اداء معلم خبير ( 25 % )",O16*25/100,IF(BG16="حافز اداء كبير معلمين ( 25 % )",O16*25/100))))) -> 119.44 | BI16: 119.44 | BJ16: 3.981333333 | BK16: 0 | BL16: 72 | BM16: 2160 | BN16: 8599.68 | BO16: 8599.68 | BP16: =O16*10 -> 2388.8 | BQ16: 2388.8 | BR16: 79.62666667 | BS16: 0 | BT16: 72 | BU16: 2160 | BV16: 171993.6 | BW16: 171993.6 | BX16: =O16*40/100 -> 95.552 | BY16: 95.55 | BZ16: 3.185 | CA16: 0 | CB16: 14 | CC16: 420 | CD16: 1337.7 | CE16: 1337.7 | CF16: =CE16+BW16+BO16+BF16+AW16+AN16+AE16+W16 -> 250728.42 | CH16: 2770124250032 | CI16: مدرسة سميح السعيد
A17: 6 | B17: محمد 6 | C17: 2770124250032 | D17: محكمة القضاء الادارى باسيوط | E17: اسيوط | F17: محافظة اسيوط - وكيل وزارة التربية والتعليم | G17: 1258لسنة2021 | H17: 2022-05-20 | I17: 2016-08-01 | J17: 2019-08-13 | K17: 119579.1 | L17: 600 | M17: 486.07 | N17: 113.93 | O17: 113.93 | P17: 56.965 | Q17: 56.96 | R17: 1.898666667 | S17: 0 | T17: 72 | U17: 2160 | V17: 4101.12 | W17: 4101.12 | X17: =O17*25/100 -> 28.4825 | Y17: 28.48 | Z17: 0.9493333333 | AA17: 0 | AB17: 72 | AC17: 2160 | AD17: 2050.56 | AE17: 2050.56 | AF17: بدل اعتماد معلم أول أ ( 150 % ) | AG17: =IF(AF17="بدل اعتماد معلم ( 50 % )",O17*100/100,IF(AF17="بدل اعتماد معلم أول ( 125 % )",O17*125/100,IF(AF17="بدل اعتماد معلم أول أ ( 150 % )",O17*150/100,IF(AF17="بدل اعتماد معلم خبير ( 175 % )",O17*175/100,IF(AF17="بدل اعتماد كبير معلمين ( 200 % )",O17*200/100))))) -> 170.895 | AH17: 170.89 | AI17: 5.696333333 | AJ17: 0 | AK17: 72 | AL17: 2160 | AM17: 12304.08 | AN17: 12304.08 | AO17: بدل اعتماد معلم أول ( 125 % ) | AP17: =IF(AO17="بدل اعتماد معلم ( 50 % )",O17*100/100,IF(AO17="بدل اعتماد معلم أول ( 125 % )",O17*125/100,IF(AO17="بدل اعتماد معلم أول أ ( 150 % )",O17*150/100,IF(AO17="بدل اعتماد معلم خبير ( 175 % )",O17*175/100,IF(AO17="بدل اعتماد كبير معلمين ( 200 % )",O17*200/100))))) -> 142.4125 | AQ17: 142.41 | AR17: 4.747 | AS17: 0 | AT17: 72 | AU17: 2160 | AV17: 10253.52 | AW17: 10253.52 | AX17: حافز اداء معلم ( 75 % ) | AY17: =IF(AX17="حافز اداء معلم ( 75 % )",O17*75/100,IF(AX17="حافز اداء معلم أول ( 50 % )",O17*50/100,IF(AX17="حافز اداء معلم أول أ ( 25 % )",O17*25/100,IF(AX17="حافز اداء معلم خبير ( 25 % )",O17*25/100,IF(AX17="حافز اداء كبير معلمين ( 25 % )",O17*25/100))))) -> 85.4475 | AZ17: 85.44 | BA17: 2.848 | BB17: 0 | BC17: 72 | BD17: 2160 | BE17: 6151.68 | BF17: 6151.68 | BG17: حافز اداء معلم أول أ ( 25 % ) | BH17: =IF(BG17="حافز اداء معلم ( 75 % )",O17*75/100,IF(BG17="حافز اداء معلم أول ( 50 % )",O17*50/100,IF(BG17="حافز اداء معلم أول أ ( 25 % )",O17*25/100,IF(BG17="حافز اداء معلم خبير ( 25 % )",O17*25/100,IF(BG17="حافز اداء كبير معلمين ( 25 % )",O17*25/100))))) -> 28.4825 | BI17: 28.48 | BJ17: 0.9493333333 | BK17: 0 | BL17: 72 | BM17: 2160 | BN17: 2050.56 | BO17: 2050.56 | BP17: =O17*10 -> 1139.3 | BQ17: 1139.3 | BR17: 37.97666667 | BS17: 0 | BT17: 72 | BU17: 2160 | BV17: 82029.6 | BW17: 82029.6 | BX17: =O17*40/100 -> 45.572 | BY17: 45.57 | BZ17: 1.519 | CA17: 0 | CB17: 14 | CC17: 420 | CD17: 637.98 | CE17: 637.98 | CF17: =CE17+BW17+BO17+BF17+AW17+AN17+AE17+W17 -> 119579.1 | CH17: 2770124250032 | CI17: ادارة اسيوط التعليمية
A18: 7 | B18: محمد 7 | C18: 2810162500093 | D18: محكمة القضاء الادارى باسيوط | E18: سوهاج | F18: محافظة اسيوط - وكيل وزارة التربية والتعليم | G18: 1258لسنة2022 | H18: 2022-05-21 | I18: 2016-08-01 | J18: 2019-08-13 | K18: 152040 | L18: 650 | M18: 500 | N18: 150 | O18: 150 | P18: 75 | Q18: 75 | R18: 2.5 | S18: 0 | T18: 72 | U18: 2160 | V18: 5400 | W18: 5400 | X18: =O18*25/100 -> 37.5 | Y18: 37.5 | Z18: 1.25 | AA18: 0 | AB18: 72 | AC18: 2160 | AD18: 2700 | AE18: 2700 | AF18: بدل اعتماد معلم ( 50 % ) | AG18: =IF(AF18="بدل اعتماد معلم ( 50 % )",O18*100/100,IF(AF18="بدل اعتماد معلم أول ( 125 % )",O18*125/100,IF(AF18="بدل اعتماد معلم أول أ ( 150 % )",O18*150/100,IF(AF18="بدل اعتماد معلم خبير ( 175 % )",O18*175/100,IF(AF18="بدل اعتماد كبير معلمين ( 200 % )",O18*200/100))))) -> 150 | AH18: 150 | AI18: 5 | AJ18: 0 | AK18: 72 | AL18: 2160 | AM18: 10800 | AN18: 10800 | AO18: بدل اعتماد معلم أول أ ( 150 % ) | AP18: =IF(AO18="بدل اعتماد معلم ( 50 % )",O18*100/100,IF(AO18="بدل اعتماد معلم أول ( 125 % )",O18*125/100,IF(AO18="بدل اعتماد معلم أول أ ( 150 % )",O18*150/100,IF(AO18="بدل اعتماد معلم خبير ( 175 % )",O18*175/100,IF(AO18="بدل اعتماد كبير معلمين ( 200 % )",O18*200/100))))) -> 225 | AQ18: 225 | AR18: 7.5 | AS18: 0 | AT18: 72 | AU18: 2160 | AV18: 16200 | AW18: 16200 | AX18: حافز اداء معلم أول ( 50 % ) | AY18: =IF(AX18="حافز اداء معلم ( 75 % )",O18*75/100,IF(AX18="حافز اداء معلم أول ( 50 % )",O18*50/100,IF(AX18="حافز اداء معلم أول أ ( 25 % )",O18*25/100,IF(AX18="حافز اداء معلم خبير ( 25 % )",O18*25/100,IF(AX18="حافز اداء كبير معلمين ( 25 % )",O18*25/100))))) -> 75 | AZ18: 75 | BA18: 2.5 | BB18: 0 | BC18: 72 | BD18: 2160 | BE18: 5400 | BF18: 5400 | BG18: حافز اداء معلم خبير ( 25 % ) | BH18: =IF(BG18="حافز اداء معلم ( 75 % )",O18*75/100,IF(BG18="حافز اداء معلم أول ( 50 % )",O18*50/100,IF(BG18="حافز اداء معلم أول أ ( 25 % )",O18*25/100,IF(BG18="حافز اداء معلم خبير ( 25 % )",O18*25/100,IF(BG18="حافز اداء كبير معلمين ( 25 % )",O18*25/100))))) -> 37.5 | BI18: 37.5 | BJ18: 1.25 | BK18: 0 | BL18: 72 | BM18: 2160 | BN18: 2700 | BO18: 2700 | BP18: =O18*10 -> 1500 | BQ18: 1500 | BR18: 50 | BS18: 0 | BT18: 72 | BU18: 2160 | BV18: 108000 | BW18: 108000 | BX18: =O18*40/100 -> 60 | BY18: 60 | BZ18: 2 | CA18: 0 | CB18: 14 | CC18: 420 | CD18: 840 | CE18: 840 | CF18: =CE18+BW18+BO18+BF18+AW18+AN18+AE18+W18 -> 152040 | CH18: 2810162500093 | CI18: مدرسة الفاروق
A19: 8 | B19: محمد 8 | C19: 2850702200069 | D19: محكمة القضاء الادارى باسيوط | E19: المنيا | F19: محافظة اسيوط - وكيل وزارة التربية والتعليم | G19: 1258لسنة2023 | H19: 2022-05-22 | I19: 2016-08-01 | J19: 2019-08-13 | K19: 414228.8 | L19: 653 | M19: 265 | N19: 388 | O19: 388 | P19: 194 | Q19: 194 | R19: 6.466666667 | S19: 0 | T19: 72 | U19: 2160 | V19: 13968 | W19: 13968 | X19: =O19*25/100 -> 97 | Y19: 97 | Z19: 3.233333333 | AA19: 0 | AB19: 72 | AC19: 2160 | AD19: 6984 | AE19: 6984 | AF19: بدل اعتماد معلم أول ( 125 % ) | AG19: =IF(AF19="بدل اعتماد معلم ( 50 % )",O19*100/100,IF(AF19="بدل اعتماد معلم أول ( 125 % )",O19*125/100,IF(AF19="بدل اعتماد معلم أول أ ( 150 % )",O19*150/100,IF(AF19="بدل اعتماد معلم خبير ( 175 % )",O19*175/100,IF(AF19="بدل اعتماد كبير معلمين ( 200 % )",O19*200/100))))) -> 485 | AH19: 485 | AI19: 16.16666667 | AJ19: 0 | AK19: 72 | AL19: 2160 | AM19: 34920 | AN19: 34920 | AO19: بدل اعتماد معلم خبير ( 175 % ) | AP19: =IF(AO19="بدل اعتماد معلم ( 50 % )",O19*100/100,IF(AO19="بدل اعتماد معلم أول ( 125 % )",O19*125/100,IF(AO19="بدل اعتماد معلم أول أ ( 150 % )",O19*150/100,IF(AO19="بدل اعتماد معلم خبير ( 175 % )",O19*175/100,IF(AO19="بدل اعتماد كبير معلمين ( 200 % )",O19*200/100))))) -> 679 | AQ19: 679 | AR19: 22.63333333 | AS19: 0 | AT19: 72 | AU19: 2160 | AV19: 48888 | AW19: 48888 | AX19: حافز اداء معلم ( 75 % ) | AY19: =IF(AX19="حافز اداء معلم ( 75 % )",O19*75/100,IF(AX19="حافز اداء معلم أول ( 50 % )",O19*50/100,IF(AX19="حافز اداء معلم أول أ ( 25 % )",O19*25/100,IF(AX19="حافز اداء معلم خبير ( 25 % )",O19*25/100,IF(AX19="حافز اداء كبير معلمين ( 25 % )",O19*25/100))))) -> 291 | AZ19: 291 | BA19: 9.7 | BB19: 0 | BC19: 72 | BD19: 2160 | BE19: 20952 | BF19: 20952 | BG19: حافز اداء كبير معلمين ( 25 % ) | BH19: =IF(BG19="حافز اداء معلم ( 75 % )",O19*75/100,IF(BG19="حافز اداء معلم أول ( 50 % )",O19*50/100,IF(BG19="حافز اداء معلم أول أ ( 25 % )",O19*25/100,IF(BG19="حافز اداء معلم خبير ( 25 % )",O19*25/100,IF(BG19="حافز اداء كبير معلمين ( 25 % )",O19*25/100))))) -> 97 | BI19: 97 | BJ19: 3.233333333 | BK19: 0 | BL19: 72 | BM19: 2160 | BN19: 6984 | BO19: 6984 | BP19: =O19*10 -> 3880 | BQ19: 3880 | BR19: 129.3333333 | BS19: 0 | BT19: 72 | BU19: 2160 | BV19: 279360 | BW19: 279360 | BX19: =O19*40/100 -> 155.2 | BY19: 155.2 | BZ19: 5.173333333 | CA19: 0 | CB19: 14 | CC19: 420 | CD19: 2172.8 | CE19: 2172.8 | CF19: =CE19+BW19+BO19+BF19+AW19+AN19+AE19+W19 -> 414228.8 | CH19: 2850702200069 | CI19: مدرسة سميح السعيد
A20: 9 | B20: محمد 9 | C20: 2940222501431 | D20: محكمة القضاء الادارى باسيوط | E20: اسيوط | F20: محافظة اسيوط - وكيل وزارة التربية والتعليم | G20: 1258لسنة2024 | H20: 2022-05-23 | I20: 2016-08-01 | J20: 2019-08-13 | K20: 215347.2 | L20: 450 | M20: 258 | N20: 192 | O20: 192 | P20: 96 | Q20: 96 | R20: 3.2 | S20: 0 | T20: 72 | U20: 2160 | V20: 6912 | W20: 6912 | X20: =O20*25/100 -> 48 | Y20: 48 | Z20: 1.6 | AA20: 0 | AB20: 72 | AC20: 2160 | AD20: 3456 | AE20: 3456 | AF20: بدل اعتماد معلم أول أ ( 150 % ) | AG20: =IF(AF20="بدل اعتماد معلم ( 50 % )",O20*100/100,IF(AF20="بدل اعتماد معلم أول ( 125 % )",O20*125/100,IF(AF20="بدل اعتماد معلم أول أ ( 150 % )",O20*150/100,IF(AF20="بدل اعتماد معلم خبير ( 175 % )",O20*175/100,IF(AF20="بدل اعتماد كبير معلمين ( 200 % )",O20*200/100))))) -> 288 | AH20: 288 | AI20: 9.6 | AJ20: 0 | AK20: 72 | AL20: 2160 | AM20: 20736 | AN20: 20736 | AO20: بدل اعتماد كبير معلمين ( 200 % ) | AP20: =IF(AO20="بدل اعتماد معلم ( 50 % )",O20*100/100,IF(AO20="بدل اعتماد معلم أول ( 125 % )",O20*125/100,IF(AO20="بدل اعتماد معلم أول أ ( 150 % )",O20*150/100,IF(AO20="بدل اعتماد معلم خبير ( 175 % )",O20*175/100,IF(AO20="بدل اعتماد كبير معلمين ( 200 % )",O20*200/100))))) -> 384 | AQ20: 384 | AR20: 12.8 | AS20: 0 | AT20: 72 | AU20: 2160 | AV20: 27648 | AW20: 27648 | AX20: حافز اداء معلم أول ( 50 % ) | AY20: =IF(AX20="حافز اداء معلم ( 75 % )",O20*75/100,IF(AX20="حافز اداء معلم أول ( 50 % )",O20*50/100,IF(AX20="حافز اداء معلم أول أ ( 25 % )",O20*25/100,IF(AX20="حافز اداء معلم خبير ( 25 % )",O20*25/100,IF(AX20="حافز اداء كبير معلمين ( 25 % )",O20*25/100))))) -> 96 | AZ20: 96 | BA20: 3.2 | BB20: 0 | BC20: 72 | BD20: 2160 | BE20: 6912 | BF20: 6912 | BG20: حافز اداء معلم ( 75 % ) | BH20: =IF(BG20="حافز اداء معلم ( 75 % )",O20*75/100,IF(BG20="حافز اداء معلم أول ( 50 % )",O20*50/100,IF(BG20="حافز اداء معلم أول أ ( 25 % )",O20*25/100,IF(BG20="حافز اداء معلم خبير ( 25 % )",O20*25/100,IF(BG20="حافز اداء كبير معلمين ( 25 % )",O20*25/100))))) -> 144 | BI20: 144 | BJ20: 4.8 | BK20: 0 | BL20: 72 | BM20: 2160 | BN20: 10368 | BO20: 10368 | BP20: =O20*10 -> 1920 | BQ20: 1920 | BR20: 64 | BS20: 0 | BT20: 72 | BU20: 2160 | BV20: 138240 | BW20: 138240 | BX20: =O20*40/100 -> 76.8 | BY20: 76.8 | BZ20: 2.56 | CA20: 0 | CB20: 14 | CC20: 420 | CD20: 1075.2 | CE20: 1075.2 | CF20: =CE20+BW20+BO20+BF20+AW20+AN20+AE20+W20 -> 215347.2 | CH20: 2940222501431 | CI20: ادارة اسيوط التعليمية
A21: 10 | B21: محمد 10 | C21: 3010707251792 | D21: محكمة القضاء الادارى باسيوط | E21: سوهاج | F21: محافظة اسيوط - وكيل وزارة التربية والتعليم | G21: 1258لسنة2025 | H21: 2022-05-24 | I21: 2016-08-01 | J21: 2019-08-13 | K21: 321347.6 | L21: 960 | M21: 659 | N21: 301 | O21: 301 | P21: 150.5 | Q21: 150.5 | R21: 5.016666667 | S21: 0 | T21: 72 | U21: 2160 | V21: 10836 | W21: 10836 | X21: =O21*25/100 -> 75.25 | Y21: 75.25 | Z21: 2.508333333 | AA21: 0 | AB21: 72 | AC21: 2160 | AD21: 5418 | AE21: 5418 | AF21: بدل اعتماد معلم خبير ( 175 % ) | AG21: =IF(AF21="بدل اعتماد معلم ( 50 % )",O21*100/100,IF(AF21="بدل اعتماد معلم أول ( 125 % )",O21*125/100,IF(AF21="بدل اعتماد معلم أول أ ( 150 % )",O21*150/100,IF(AF21="بدل اعتماد معلم خبير ( 175 % )",O21*175/100,IF(AF21="بدل اعتماد كبير معلمين ( 200 % )",O21*200/100))))) -> 526.75 | AH21: 526.75 | AI21: 17.55833333 | AJ21: 0 | AK21: 72 | AL21: 2160 | AM21: 37926 | AN21: 37926 | AO21: بدل اعتماد معلم أول أ ( 150 % ) | AP21: =IF(AO21="بدل اعتماد معلم ( 50 % )",O21*100/100,IF(AO21="بدل اعتماد معلم أول ( 125 % )",O21*125/100,IF(AO21="بدل اعتماد معلم أول أ ( 150 % )",O21*150/100,IF(AO21="بدل اعتماد معلم خبير ( 175 % )",O21*175/100,IF(AO21="بدل اعتماد كبير معلمين ( 200 % )",O21*200/100))))) -> 451.5 | AQ21: 451.5 | AR21: 15.05 | AS21: 0 | AT21: 72 | AU21: 2160 | AV21: 32508 | AW21: 32508 | AX21: حافز اداء معلم أول أ ( 25 % ) | AY21: =IF(AX21="حافز اداء معلم ( 75 % )",O21*75/100,IF(AX21="حافز اداء معلم أول ( 50 % )",O21*50/100,IF(AX21="حافز اداء معلم أول أ ( 25 % )",O21*25/100,IF(AX21="حافز اداء معلم خبير ( 25 % )",O21*25/100,IF(AX21="حافز اداء كبير معلمين ( 25 % )",O21*25/100))))) -> 75.25 | AZ21: 75.25 | BA21: 2.508333333 | BB21: 0 | BC21: 72 | BD21: 2160 | BE21: 5418 | BF21: 5418 | BG21: حافز اداء معلم أول ( 50 % ) | BH21: =IF(BG21="حافز اداء معلم ( 75 % )",O21*75/100,IF(BG21="حافز اداء معلم أول ( 50 % )",O21*50/100,IF(BG21="حافز اداء معلم أول أ ( 25 % )",O21*25/100,IF(BG21="حافز اداء معلم خبير ( 25 % )",O21*25/100,IF(BG21="حافز اداء كبير معلمين ( 25 % )",O21*25/100))))) -> 150.5 | BI21: 150.5 | BJ21: 5.016666667 | BK21: 0 | BL21: 72 | BM21: 2160 | BN21: 10836 | BO21: 10836 | BP21: =O21*10 -> 3010 | BQ21: 3010 | BR21: 100.3333333 | BS21: 0 | BT21: 72 | BU21: 2160 | BV21: 216720 | BW21: 216720 | BX21: =O21*40/100 -> 120.4 | BY21: 120.4 | BZ21: 4.013333333 | CA21: 0 | CB21: 14 | CC21: 420 | CD21: 1685.6 | CE21: 1685.6 | CF21: =CE21+BW21+BO21+BF21+AW21+AN21+AE21+W21 -> 321347.6 | CH21: 3010707251792 | CI21: مدرسة مدينة المعلمين
A22: 11 | B22: محمد 11 | C22: 20502062500271 | D22: محكمة القضاء الادارى باسيوط | E22: اسيوط | F22: محافظة اسيوط - وكيل وزارة التربية والتعليم | G22: 1258لسنة2026 | H22: 2022-05-25 | I22: 2016-08-01 | J22: 2019-08-13 | K22: 144424 | L22: 540 | M22: 400 | N22: 140 | O22: 140 | P22: 70 | Q22: 70 | R22: 2.333333333 | S22: 0 | T22: 72 | U22: 2160 | V22: 5040 | W22: 5040 | X22: =O22*25/100 -> 35 | Y22: 35 | Z22: 1.166666667 | AA22: 0 | AB22: 72 | AC22: 2160 | AD22: 2520 | AE22: 2520 | AF22: بدل اعتماد كبير معلمين ( 200 % ) | AG22: =IF(AF22="بدل اعتماد معلم ( 50 % )",O22*100/100,IF(AF22="بدل اعتماد معلم أول ( 125 % )",O22*125/100,IF(AF22="بدل اعتماد معلم أول أ ( 150 % )",O22*150/100,IF(AF22="بدل اعتماد معلم خبير ( 175 % )",O22*175/100,IF(AF22="بدل اعتماد كبير معلمين ( 200 % )",O22*200/100))))) -> 280 | AH22: 280 | AI22: 9.333333333 | AJ22: 0 | AK22: 72 | AL22: 2160 | AM22: 20160 | AN22: 20160 | AO22: بدل اعتماد معلم ( 50 % ) | AP22: =IF(AO22="بدل اعتماد معلم ( 50 % )",O22*100/100,IF(AO22="بدل اعتماد معلم أول ( 125 % )",O22*125/100,IF(AO22="بدل اعتماد معلم أول أ ( 150 % )",O22*150/100,IF(AO22="بدل اعتماد معلم خبير ( 175 % )",O22*175/100,IF(AO22="بدل اعتماد كبير معلمين ( 200 % )",O22*200/100))))) -> 140 | AQ22: 140 | AR22: 4.666666667 | AS22: 0 | AT22: 72 | AU22: 2160 | AV22: 10080 | AW22: 10080 | AX22: حافز اداء معلم خبير ( 25 % ) | AY22: =IF(AX22="حافز اداء معلم ( 75 % )",O22*75/100,IF(AX22="حافز اداء معلم أول ( 50 % )",O22*50/100,IF(AX22="حافز اداء معلم أول أ ( 25 % )",O22*25/100,IF(AX22="حافز اداء معلم خبير ( 25 % )",O22*25/100,IF(AX22="حافز اداء كبير معلمين ( 25 % )",O22*25/100))))) -> 35 | AZ22: 35 | BA22: 1.166666667 | BB22: 0 | BC22: 72 | BD22: 2160 | BE22: 2520 | BF22: 2520 | BG22: حافز اداء معلم أول أ ( 25 % ) | BH22: =IF(BG22="حافز اداء معلم ( 75 % )",O22*75/100,IF(BG22="حافز اداء معلم أول ( 50 % )",O22*50/100,IF(BG22="حافز اداء معلم أول أ ( 25 % )",O22*25/100,IF(BG22="حافز اداء معلم خبير ( 25 % )",O22*25/100,IF(BG22="حافز اداء كبير معلمين ( 25 % )",O22*25/100))))) -> 35 | BI22: 35 | BJ22: 1.166666667 | BK22: 0 | BL22: 72 | BM22: 2160 | BN22: 2520 | BO22: 2520 | BP22: =O22*10 -> 1400 | BQ22: 1400 | BR22: 46.66666667 | BS22: 0 | BT22: 72 | BU22: 2160 | BV22: 100800 | BW22: 100800 | BX22: =O22*40/100 -> 56 | BY22: 56 | BZ22: 1.866666667 | CA22: 0 | CB22: 14 | CC22: 420 | CD22: 784 | CE22: 784 | CF22: =CE22+BW22+BO22+BF22+AW22+AN22+AE22+W22 -> 144424 | CH22: 20502062500271 | CI22: مدرسة سميح السعيد
A23: 12 | B23: محمد 12 | C23: 24106022601893 | D23: محكمة القضاء الادارى باسيوط | E23: سوهاج | F23: محافظة اسيوط - وكيل وزارة التربية والتعليم | G23: 1258لسنة2027 | H23: 2022-05-26 | I23: 2016-08-01 | J23: 2019-08-13 | K23: 136836 | L23: 500 | M23: 365 | N23: 135 | O23: 135 | P23: 67.5 | Q23: 67.5 | R23: 2.25 | S23: 0 | T23: 72 | U23: 2160 | V23: 4860 | W23: 4860 | X23: =O23*25/100 -> 33.75 | Y23: 33.75 | Z23: 1.125 | AA23: 0 | AB23: 72 | AC23: 2160 | AD23: 2430 | AE23: 2430 | AF23: بدل اعتماد معلم أول أ ( 150 % ) | AG23: =IF(AF23="بدل اعتماد معلم ( 50 % )",O23*100/100,IF(AF23="بدل اعتماد معلم أول ( 125 % )",O23*125/100,IF(AF23="بدل اعتماد معلم أول أ ( 150 % )",O23*150/100,IF(AF23="بدل اعتماد معلم خبير ( 175 % )",O23*175/100,IF(AF23="بدل اعتماد كبير معلمين ( 200 % )",O23*200/100))))) -> 202.5 | AH23: 202.5 | AI23: 6.75 | AJ23: 0 | AK23: 72 | AL23: 2160 | AM23: 14580 | AN23: 14580 | AO23: بدل اعتماد معلم أول ( 125 % ) | AP23: =IF(AO23="بدل اعتماد معلم ( 50 % )",O23*100/100,IF(AO23="بدل اعتماد معلم أول ( 125 % )",O23*125/100,IF(AO23="بدل اعتماد معلم أول أ ( 150 % )",O23*150/100,IF(AO23="بدل اعتماد معلم خبير ( 175 % )",O23*175/100,IF(AO23="بدل اعتماد كبير معلمين ( 200 % )",O23*200/100))))) -> 168.75 | AQ23: 168.75 | AR23: 5.625 | AS23: 0 | AT23: 72 | AU23: 2160 | AV23: 12150 | AW23: 12150 | AX23: حافز اداء كبير معلمين ( 25 % ) | AY23: =IF(AX23="حافز اداء معلم ( 75 % )",O23*75/100,IF(AX23="حافز اداء معلم أول ( 50 % )",O23*50/100,IF(AX23="حافز اداء معلم أول أ ( 25 % )",O23*25/100,IF(AX23="حافز اداء معلم خبير ( 25 % )",O23*25/100,IF(AX23="حافز اداء كبير معلمين ( 25 % )",O23*25/100))))) -> 33.75 | AZ23: 33.75 | BA23: 1.125 | BB23: 0 | BC23: 72 | BD23: 2160 | BE23: 2430 | BF23: 2430 | BG23: حافز اداء معلم خبير ( 25 % ) | BH23: =IF(BG23="حافز اداء معلم ( 75 % )",O23*75/100,IF(BG23="حافز اداء معلم أول ( 50 % )",O23*50/100,IF(BG23="حافز اداء معلم أول أ ( 25 % )",O23*25/100,IF(BG23="حافز اداء معلم خبير ( 25 % )",O23*25/100,IF(BG23="حافز اداء كبير معلمين ( 25 % )",O23*25/100))))) -> 33.75 | BI23: 33.75 | BJ23: 1.125 | BK23: 0 | BL23: 72 | BM23: 2160 | BN23: 2430 | BO23: 2430 | BP23: =O23*10 -> 1350 | BQ23: 1350 | BR23: 45 | BS23: 0 | BT23: 72 | BU23: 2160 | BV23: 97200 | BW23: 97200 | BX23: =O23*40/100 -> 54 | BY23: 54 | BZ23: 1.8 | CA23: 0 | CB23: 14 | CC23: 420 | CD23: 756 | CE23: 756 | CF23: =CE23+BW23+BO23+BF23+AW23+AN23+AE23+W23 -> 136836 | CH23: 24106022601893 | CI23: ادارة اسيوط التعليمية
A24: 13 | B24: محمد 13 | C24: 24106122500512 | D24: محكمة القضاء الادارى باسيوط | E24: اسيوط | F24: محافظة اسيوط - وكيل وزارة التربية والتعليم | G24: 1258لسنة2028 | H24: 2022-05-27 | I24: 2016-08-01 | J24: 2019-08-13 | K24: 114233.2 | L24: 760 | M24: 653 | N24: 107 | O24: 107 | P24: 53.5 | Q24: 53.5 | R24: 1.783333333 | S24: 0 | T24: 72 | U24: 2160 | V24: 3852 | W24: 3852 | X24: =O24*25/100 -> 26.75 | Y24: 26.75 | Z24: 0.8916666667 | AA24: 0 | AB24: 72 | AC24: 2160 | AD24: 1926 | AE24: 1926 | AF24: بدل اعتماد معلم ( 50 % ) | AG24: =IF(AF24="بدل اعتماد معلم ( 50 % )",O24*100/100,IF(AF24="بدل اعتماد معلم أول ( 125 % )",O24*125/100,IF(AF24="بدل اعتماد معلم أول أ ( 150 % )",O24*150/100,IF(AF24="بدل اعتماد معلم خبير ( 175 % )",O24*175/100,IF(AF24="بدل اعتماد كبير معلمين ( 200 % )",O24*200/100))))) -> 107 | AH24: 107 | AI24: 3.566666667 | AJ24: 0 | AK24: 72 | AL24: 2160 | AM24: 7704 | AN24: 7704 | AO24: بدل اعتماد معلم أول أ ( 150 % ) | AP24: =IF(AO24="بدل اعتماد معلم ( 50 % )",O24*100/100,IF(AO24="بدل اعتماد معلم أول ( 125 % )",O24*125/100,IF(AO24="بدل اعتماد معلم أول أ ( 150 % )",O24*150/100,IF(AO24="بدل اعتماد معلم خبير ( 175 % )",O24*175/100,IF(AO24="بدل اعتماد كبير معلمين ( 200 % )",O24*200/100))))) -> 160.5 | AQ24: 160.5 | AR24: 5.35 | AS24: 0 | AT24: 72 | AU24: 2160 | AV24: 11556 | AW24: 11556 | AX24: حافز اداء معلم ( 75 % ) | AY24: =IF(AX24="حافز اداء معلم ( 75 % )",O24*75/100,IF(AX24="حافز اداء معلم أول ( 50 % )",O24*50/100,IF(AX24="حافز اداء معلم أول أ ( 25 % )",O24*25/100,IF(AX24="حافز اداء معلم خبير ( 25 % )",O24*25/100,IF(AX24="حافز اداء كبير معلمين ( 25 % )",O24*25/100))))) -> 80.25 | AZ24: 80.25 | BA24: 2.675 | BB24: 0 | BC24: 72 | BD24: 2160 | BE24: 5778 | BF24: 5778 | BG24: حافز اداء معلم ( 75 % ) | BH24: =IF(BG24="حافز اداء معلم ( 75 % )",O24*75/100,IF(BG24="حافز اداء معلم أول ( 50 % )",O24*50/100,IF(BG24="حافز اداء معلم أول أ ( 25 % )",O24*25/100,IF(BG24="حافز اداء معلم خبير ( 25 % )",O24*25/100,IF(BG24="حافز اداء كبير معلمين ( 25 % )",O24*25/100))))) -> 80.25 | BI24: 80.25 | BJ24: 2.675 | BK24: 0 | BL24: 72 | BM24: 2160 | BN24: 5778 | BO24: 5778 | BP24: =O24*10 -> 1070 | BQ24: 1070 | BR24: 35.66666667 | BS24: 0 | BT24: 72 | BU24: 2160 | BV24: 77040 | BW24: 77040 | BX24: =O24*40/100 -> 42.8 | BY24: 42.8 | BZ24: 1.426666667 | CA24: 0 | CB24: 14 | CC24: 420 | CD24: 599.2 | CE24: 599.2 | CF24: =CE24+BW24+BO24+BF24+AW24+AN24+AE24+W24 -> 114233.2 | CH24: 24106122500512 | CI24: مدرسة مدينة المعلمين
A25: 14 | B25: محمد 14 | C25: 24204242500038 | D25: محكمة القضاء الادارى باسيوط | E25: سوهاج | F25: محافظة اسيوط - وكيل وزارة التربية والتعليم | G25: 1258لسنة2029 | H25: 2022-05-28 | I25: 2016-08-01 | J25: 2019-08-13 | K25: 178289.2 | L25: 425 | M25: 258 | N25: 167 | O25: 167 | P25: 83.5 | Q25: 83.5 | R25: 2.783333333 | S25: 0 | T25: 72 | U25: 2160 | V25: 6012 | W25: 6012 | X25: =O25*25/100 -> 41.75 | Y25: 41.75 | Z25: 1.391666667 | AA25: 0 | AB25: 72 | AC25: 2160 | AD25: 3006 | AE25: 3006 | AF25: بدل اعتماد معلم أول ( 125 % ) | AG25: =IF(AF25="بدل اعتماد معلم ( 50 % )",O25*100/100,IF(AF25="بدل اعتماد معلم أول ( 125 % )",O25*125/100,IF(AF25="بدل اعتماد معلم أول أ ( 150 % )",O25*150/100,IF(AF25="بدل اعتماد معلم خبير ( 175 % )",O25*175/100,IF(AF25="بدل اعتماد كبير معلمين ( 200 % )",O25*200/100))))) -> 208.75 | AH25: 208.75 | AI25: 6.958333333 | AJ25: 0 | AK25: 72 | AL25: 2160 | AM25: 15030 | AN25: 15030 | AO25: بدل اعتماد معلم خبير ( 175 % ) | AP25: =IF(AO25="بدل اعتماد معلم ( 50 % )",O25*100/100,IF(AO25="بدل اعتماد معلم أول ( 125 % )",O25*125/100,IF(AO25="بدل اعتماد معلم أول أ ( 150 % )",O25*150/100,IF(AO25="بدل اعتماد معلم خبير ( 175 % )",O25*175/100,IF(AO25="بدل اعتماد كبير معلمين ( 200 % )",O25*200/100))))) -> 292.25 | AQ25: 292.25 | AR25: 9.741666667 | AS25: 0 | AT25: 72 | AU25: 2160 | AV25: 21042 | AW25: 21042 | AX25: حافز اداء معلم أول ( 50 % ) | AY25: =IF(AX25="حافز اداء معلم ( 75 % )",O25*75/100,IF(AX25="حافز اداء معلم أول ( 50 % )",O25*50/100,IF(AX25="حافز اداء معلم أول أ ( 25 % )",O25*25/100,IF(AX25="حافز اداء معلم خبير ( 25 % )",O25*25/100,IF(AX25="حافز اداء كبير معلمين ( 25 % )",O25*25/100))))) -> 83.5 | AZ25: 83.5 | BA25: 2.783333333 | BB25: 0 | BC25: 72 | BD25: 2160 | BE25: 6012 | BF25: 6012 | BG25: حافز اداء معلم أول ( 50 % ) | BH25: =IF(BG25="حافز اداء معلم ( 75 % )",O25*75/100,IF(BG25="حافز اداء معلم أول ( 50 % )",O25*50/100,IF(BG25="حافز اداء معلم أول أ ( 25 % )",O25*25/100,IF(BG25="حافز اداء معلم خبير ( 25 % )",O25*25/100,IF(BG25="حافز اداء كبير معلمين ( 25 % )",O25*25/100))))) -> 83.5 | BI25: 83.5 | BJ25: 2.783333333 | BK25: 0 | BL25: 72 | BM25: 2160 | BN25: 6012 | BO25: 6012 | BP25: =O25*10 -> 1670 | BQ25: 1670 | BR25: 55.66666667 | BS25: 0 | BT25: 72 | BU25: 2160 | BV25: 120240 | BW25: 120240 | BX25: =O25*40/100 -> 66.8 | BY25: 66.8 | BZ25: 2.226666667 | CA25: 0 | CB25: 14 | CC25: 420 | CD25: 935.2 | CE25: 935.2 | CF25: =CE25+BW25+BO25+BF25+AW25+AN25+AE25+W25 -> 178289.2 | CH25: 24204242500038 | CI25: مدرسة سميح السعيد
A26: 15 | B26: محمد 15 | C26: 24307252501532 | D26: محكمة القضاء الادارى باسيوط | E26: المنيا | F26: محافظة اسيوط - وكيل وزارة التربية والتعليم | G26: 1258لسنة2030 | H26: 2022-05-29 | I26: 2016-08-01 | J26: 2019-08-13 | K26: 261553.2 | L26: 800 | M26: 563 | N26: 237 | O26: 237 | P26: 118.5 | Q26: 118.5 | R26: 3.95 | S26: 0 | T26: 72 | U26: 2160 | V26: 8532 | W26: 8532 | X26: =O26*25/100 -> 59.25 | Y26: 59.25 | Z26: 1.975 | AA26: 0 | AB26: 72 | AC26: 2160 | AD26: 4266 | AE26: 4266 | AF26: بدل اعتماد معلم أول أ ( 150 % ) | AG26: =IF(AF26="بدل اعتماد معلم ( 50 % )",O26*100/100,IF(AF26="بدل اعتماد معلم أول ( 125 % )",O26*125/100,IF(AF26="بدل اعتماد معلم أول أ ( 150 % )",O26*150/100,IF(AF26="بدل اعتماد معلم خبير ( 175 % )",O26*175/100,IF(AF26="بدل اعتماد كبير معلمين ( 200 % )",O26*200/100))))) -> 355.5 | AH26: 355.5 | AI26: 11.85 | AJ26: 0 | AK26: 72 | AL26: 2160 | AM26: 25596 | AN26: 25596 | AO26: بدل اعتماد كبير معلمين ( 200 % ) | AP26: =IF(AO26="بدل اعتماد معلم ( 50 % )",O26*100/100,IF(AO26="بدل اعتماد معلم أول ( 125 % )",O26*125/100,IF(AO26="بدل اعتماد معلم أول أ ( 150 % )",O26*150/100,IF(AO26="بدل اعتماد معلم خبير ( 175 % )",O26*175/100,IF(AO26="بدل اعتماد كبير معلمين ( 200 % )",O26*200/100))))) -> 474 | AQ26: 474 | AR26: 15.8 | AS26: 0 | AT26: 72 | AU26: 2160 | AV26: 34128 | AW26: 34128 | AX26: حافز اداء معلم ( 75 % ) | AY26: =IF(AX26="حافز اداء معلم ( 75 % )",O26*75/100,IF(AX26="حافز اداء معلم أول ( 50 % )",O26*50/100,IF(AX26="حافز اداء معلم أول أ ( 25 % )",O26*25/100,IF(AX26="حافز اداء معلم خبير ( 25 % )",O26*25/100,IF(AX26="حافز اداء كبير معلمين ( 25 % )",O26*25/100))))) -> 177.75 | AZ26: 177.75 | BA26: 5.925 | BB26: 0 | BC26: 72 | BD26: 2160 | BE26: 12798 | BF26: 12798 | BG26: حافز اداء معلم أول أ ( 25 % ) | BH26: =IF(BG26="حافز اداء معلم ( 75 % )",O26*75/100,IF(BG26="حافز اداء معلم أول ( 50 % )",O26*50/100,IF(BG26="حافز اداء معلم أول أ ( 25 % )",O26*25/100,IF(BG26="حافز اداء معلم خبير ( 25 % )",O26*25/100,IF(BG26="حافز اداء كبير معلمين ( 25 % )",O26*25/100))))) -> 59.25 | BI26: 59.25 | BJ26: 1.975 | BK26: 0 | BL26: 72 | BM26: 2160 | BN26: 4266 | BO26: 4266 | BP26: =O26*10 -> 2370 | BQ26: 2370 | BR26: 79 | BS26: 0 | BT26: 72 | BU26: 2160 | BV26: 170640 | BW26: 170640 | BX26: =O26*40/100 -> 94.8 | BY26: 94.8 | BZ26: 3.16 | CA26: 0 | CB26: 14 | CC26: 420 | CD26: 1327.2 | CE26: 1327.2 | CF26: =CE26+BW26+BO26+BF26+AW26+AN26+AE26+W26 -> 261553.2 | CH26: 24307252501532 | CI26: ادارة اسيوط التعليمية
A27: 16 | B27: محمد 16 | C27: 24410222500057 | D27: محكمة القضاء الادارى باسيوط | E27: سوهاج | F27: محافظة اسيوط - وكيل وزارة التربية والتعليم | G27: 1258لسنة2031 | H27: 2022-05-30 | I27: 2016-08-01 | J27: 2019-08-13 | K27: 272412.52 | L27: 486.07 | M27: 222 | N27: 264.07 | O27: 264.07 | P27: 132.035 | Q27: 132.03 | R27: 4.401 | S27: 0 | T27: 72 | U27: 2160 | V27: 9506.16 | W27: 9506.16 | X27: =O27*25/100 -> 66.0175 | Y27: 66.01 | Z27: 2.200333333 | AA27: 0 | AB27: 72 | AC27: 2160 | AD27: 4752.72 | AE27: 4752.72 | AF27: بدل اعتماد معلم خبير ( 175 % ) | AG27: =IF(AF27="بدل اعتماد معلم ( 50 % )",O27*100/100,IF(AF27="بدل اعتماد معلم أول ( 125 % )",O27*125/100,IF(AF27="بدل اعتماد معلم أول أ ( 150 % )",O27*150/100,IF(AF27="بدل اعتماد معلم خبير ( 175 % )",O27*175/100,IF(AF27="بدل اعتماد كبير معلمين ( 200 % )",O27*200/100))))) -> 462.1225 | AH27: 462.12 | AI27: 15.404 | AJ27: 0 | AK27: 72 | AL27: 2160 | AM27: 33272.64 | AN27: 33272.64 | AO27: بدل اعتماد معلم ( 50 % ) | AP27: =IF(AO27="بدل اعتماد معلم ( 50 % )",O27*100/100,IF(AO27="بدل اعتماد معلم أول ( 125 % )",O27*125/100,IF(AO27="بدل اعتماد معلم أول أ ( 150 % )",O27*150/100,IF(AO27="بدل اعتماد معلم خبير ( 175 % )",O27*175/100,IF(AO27="بدل اعتماد كبير معلمين ( 200 % )",O27*200/100))))) -> 264.07 | AQ27: 264.07 | AR27: 8.802333333 | AS27: 0 | AT27: 72 | AU27: 2160 | AV27: 19013.04 | AW27: 19013.04 | AX27: حافز اداء معلم أول ( 50 % ) | AY27: =IF(AX27="حافز اداء معلم ( 75 % )",O27*75/100,IF(AX27="حافز اداء معلم أول ( 50 % )",O27*50/100,IF(AX27="حافز اداء معلم أول أ ( 25 % )",O27*25/100,IF(AX27="حافز اداء معلم خبير ( 25 % )",O27*25/100,IF(AX27="حافز اداء كبير معلمين ( 25 % )",O27*25/100))))) -> 132.035 | AZ27: 132.03 | BA27: 4.401 | BB27: 0 | BC27: 72 | BD27: 2160 | BE27: 9506.16 | BF27: 9506.16 | BG27: حافز اداء معلم خبير ( 25 % ) | BH27: =IF(BG27="حافز اداء معلم ( 75 % )",O27*75/100,IF(BG27="حافز اداء معلم أول ( 50 % )",O27*50/100,IF(BG27="حافز اداء معلم أول أ ( 25 % )",O27*25/100,IF(BG27="حافز اداء معلم خبير ( 25 % )",O27*25/100,IF(BG27="حافز اداء كبير معلمين ( 25 % )",O27*25/100))))) -> 66.0175 | BI27: 66.01 | BJ27: 2.200333333 | BK27: 0 | BL27: 72 | BM27: 2160 | BN27: 4752.72 | BO27: 4752.72 | BP27: =O27*10 -> 2640.7 | BQ27: 2640.7 | BR27: 88.02333333 | BS27: 0 | BT27: 72 | BU27: 2160 | BV27: 190130.4 | BW27: 190130.4 | BX27: =O27*40/100 -> 105.628 | BY27: 105.62 | BZ27: 3.520666667 | CA27: 0 | CB27: 14 | CC27: 420 | CD27: 1478.68 | CE27: 1478.68 | CF27: =CE27+BW27+BO27+BF27+AW27+AN27+AE27+W27 -> 272412.52 | CH27: 24410222500057 | CI27: مدرسة مدينة المعلمين
A28: 17 | B28: محمد 17 | C28: 24601312500048 | D28: محكمة القضاء الادارى باسيوط | E28: اسيوط | F28: محافظة اسيوط - وكيل وزارة التربية والتعليم | G28: 1258لسنة2032 | H28: 2022-05-31 | I28: 2016-08-01 | J28: 2019-08-13 | K28: 109083.82 | L28: 590 | M28: 486.07 | N28: 103.93 | O28: 103.93 | P28: 51.965 | Q28: 51.96 | R28: 1.732 | S28: 0 | T28: 72 | U28: 2160 | V28: 3741.12 | W28: 3741.12 | X28: =O28*25/100 -> 25.9825 | Y28: 25.98 | Z28: 0.866 | AA28: 0 | AB28: 72 | AC28: 2160 | AD28: 1870.56 | AE28: 1870.56 | AF28: بدل اعتماد كبير معلمين ( 200 % ) | AG28: =IF(AF28="بدل اعتماد معلم ( 50 % )",O28*100/100,IF(AF28="بدل اعتماد معلم أول ( 125 % )",O28*125/100,IF(AF28="بدل اعتماد معلم أول أ ( 150 % )",O28*150/100,IF(AF28="بدل اعتماد معلم خبير ( 175 % )",O28*175/100,IF(AF28="بدل اعتماد كبير معلمين ( 200 % )",O28*200/100))))) -> 207.86 | AH28: 207.86 | AI28: 6.928666667 | AJ28: 0 | AK28: 72 | AL28: 2160 | AM28: 14965.92 | AN28: 14965.92 | AO28: بدل اعتماد معلم أول ( 125 % ) | AP28: =IF(AO28="بدل اعتماد معلم ( 50 % )",O28*100/100,IF(AO28="بدل اعتماد معلم أول ( 125 % )",O28*125/100,IF(AO28="بدل اعتماد معلم أول أ ( 150 % )",O28*150/100,IF(AO28="بدل اعتماد معلم خبير ( 175 % )",O28*175/100,IF(AO28="بدل اعتماد كبير معلمين ( 200 % )",O28*200/100))))) -> 129.9125 | AQ28: 129.91 | AR28: 4.330333333 | AS28: 0 | AT28: 72 | AU28: 2160 | AV28: 9353.52 | AW28: 9353.52 | AX28: حافز اداء معلم أول أ ( 25 % ) | AY28: =IF(AX28="حافز اداء معلم ( 75 % )",O28*75/100,IF(AX28="حافز اداء معلم أول ( 50 % )",O28*50/100,IF(AX28="حافز اداء معلم أول أ ( 25 % )",O28*25/100,IF(AX28="حافز اداء معلم خبير ( 25 % )",O28*25/100,IF(AX28="حافز اداء كبير معلمين ( 25 % )",O28*25/100))))) -> 25.9825 | AZ28: 25.98 | BA28: 0.866 | BB28: 0 | BC28: 72 | BD28: 2160 | BE28: 1870.56 | BF28: 1870.56 | BG28: حافز اداء كبير معلمين ( 25 % ) | BH28: =IF(BG28="حافز اداء معلم ( 75 % )",O28*75/100,IF(BG28="حافز اداء معلم أول ( 50 % )",O28*50/100,IF(BG28="حافز اداء معلم أول أ ( 25 % )",O28*25/100,IF(BG28="حافز اداء معلم خبير ( 25 % )",O28*25/100,IF(BG28="حافز اداء كبير معلمين ( 25 % )",O28*25/100))))) -> 25.9825 | BI28: 25.98 | BJ28: 0.866 | BK28: 0 | BL28: 72 | BM28: 2160 | BN28: 1870.56 | BO28: 1870.56 | BP28: =O28*10 -> 1039.3 | BQ28: 1039.3 | BR28: 34.64333333 | BS28: 0 | BT28: 72 | BU28: 2160 | BV28: 74829.6 | BW28: 74829.6 | BX28: =O28*40/100 -> 41.572 | BY28: 41.57 | BZ28: 1.385666667 | CA28: 0 | CB28: 14 | CC28: 420 | CD28: 581.98 | CE28: 581.98 | CF28: =CE28+BW28+BO28+BF28+AW28+AN28+AE28+W28 -> 109083.82 | CH28: 24601312500048 | CI28: مدرسة سميح السعيد
A29: 18 | B29: محمد 18 | C29: 24604262500385 | D29: محكمة القضاء الادارى باسيوط | E29: اسيوط | F29: محافظة اسيوط - وكيل وزارة التربية والتعليم | G29: 1258لسنة2033 | H29: 2022-06-01 | I29: 2016-08-01 | J29: 2019-08-13 | K29: 165056 | L29: 660 | M29: 500 | N29: 160 | O29: 160 | P29: 80 | Q29: 80 | R29: 2.666666667 | S29: 0 | T29: 72 | U29: 2160 | V29: 5760 | W29: 5760 | X29: =O29*25/100 -> 40 | Y29: 40 | Z29: 1.333333333 | AA29: 0 | AB29: 72 | AC29: 2160 | AD29: 2880 | AE29: 2880 | AF29: بدل اعتماد معلم ( 50 % ) | AG29: =IF(AF29="بدل اعتماد معلم ( 50 % )",O29*100/100,IF(AF29="بدل اعتماد معلم أول ( 125 % )",O29*125/100,IF(AF29="بدل اعتماد معلم أول أ ( 150 % )",O29*150/100,IF(AF29="بدل اعتماد معلم خبير ( 175 % )",O29*175/100,IF(AF29="بدل اعتماد كبير معلمين ( 200 % )",O29*200/100))))) -> 160 | AH29: 160 | AI29: 5.333333333 | AJ29: 0 | AK29: 72 | AL29: 2160 | AM29: 11520 | AN29: 11520 | AO29: بدل اعتماد معلم أول أ ( 150 % ) | AP29: =IF(AO29="بدل اعتماد معلم ( 50 % )",O29*100/100,IF(AO29="بدل اعتماد معلم أول ( 125 % )",O29*125/100,IF(AO29="بدل اعتماد معلم أول أ ( 150 % )",O29*150/100,IF(AO29="بدل اعتماد معلم خبير ( 175 % )",O29*175/100,IF(AO29="بدل اعتماد كبير معلمين ( 200 % )",O29*200/100))))) -> 240 | AQ29: 240 | AR29: 8 | AS29: 0 | AT29: 72 | AU29: 2160 | AV29: 17280 | AW29: 17280 | AX29: حافز اداء معلم خبير ( 25 % ) | AY29: =IF(AX29="حافز اداء معلم ( 75 % )",O29*75/100,IF(AX29="حافز اداء معلم أول ( 50 % )",O29*50/100,IF(AX29="حافز اداء معلم أول أ ( 25 % )",O29*25/100,IF(AX29="حافز اداء معلم خبير ( 25 % )",O29*25/100,IF(AX29="حافز اداء كبير معلمين ( 25 % )",O29*25/100))))) -> 40 | AZ29: 40 | BA29: 1.333333333 | BB29: 0 | BC29: 72 | BD29: 2160 | BE29: 2880 | BF29: 2880 | BG29: حافز اداء معلم ( 75 % ) | BH29: =IF(BG29="حافز اداء معلم ( 75 % )",O29*75/100,IF(BG29="حافز اداء معلم أول ( 50 % )",O29*50/100,IF(BG29="حافز اداء معلم أول أ ( 25 % )",O29*25/100,IF(BG29="حافز اداء معلم خبير ( 25 % )",O29*25/100,IF(BG29="حافز اداء كبير معلمين ( 25 % )",O29*25/100))))) -> 120 | BI29: 120 | BJ29: 4 | BK29: 0 | BL29: 72 | BM29: 2160 | BN29: 8640 | BO29: 8640 | BP29: =O29*10 -> 1600 | BQ29: 1600 | BR29: 53.33333333 | BS29: 0 | BT29: 72 | BU29: 2160 | BV29: 115200 | BW29: 115200 | BX29: =O29*40/100 -> 64 | BY29: 64 | BZ29: 2.133333333 | CA29: 0 | CB29: 14 | CC29: 420 | CD29: 896 | CE29: 896 | CF29: =CE29+BW29+BO29+BF29+AW29+AN29+AE29+W29 -> 165056 | CH29: 24604262500385 | CI29: ادارة اسيوط التعليمية
A30: البند المطلوب تعزيزة : بند بدل المعلم 4 / 45 وبند بدل الاعتماد 4 / 46 وبند حافز الاداء 3 / 23 وبند حافز الاثابة 3 / 3 وبند المكافاة 3 / 14 وبند الجهود غير العادية للمعلمين بادارة اسيوط التعليمية ومدارسها الصادرة لهم احكام قضائية وبياناتهم كالاتى | N30: 0 | O30: 0 | Q30: 0 | R30: 0 | S30: 0 | T30: 72 | U30: 2160 | V30: 0 | W30: 0 | Y30: 0 | Z30: 0 | AA30: 0 | AB30: 72 | AC30: 2160 | AD30: 0 | AE30: 0 | AH30: 0 | AI30: 0 | AJ30: 0 | AK30: 72 | AL30: 2160 | AM30: 0 | AN30: 0 | AQ30: 0 | AR30: =AQ30/30 -> 0 | AS30: 0 | AT30: 72 | AU30: 2160 | AV30: 0 | AW30: 0 | AZ30: 0 | BA30: =AZ30/30 -> 0 | BB30: 0 | BC30: 72 | BD30: 2160 | BE30: 0 | BF30: 0 | BI30: 0 | BJ30: 0 | BK30: 0 | BL30: 72 | BM30: 2160 | BN30: 0 | BO30: 0 | BQ30: 0 | BR30: =BQ30/30 -> 0 | BS30: 0 | BT30: 72 | BU30: 2160 | BV30: 0 | BY30: =TRUNC(BX30,2) -> 0 | BZ30: 0 | CA30: 0 | CB30: 14 | CC30: 420 | CD30: 0 | CI30: مدرسة مدينة المعلمين
A31: 19 | B31: محمد 19 | C31: 24605102501360 | D31: محكمة القضاء الادارى باسيوط | E31: سوهاج | F31: محافظة اسيوط - وكيل وزارة التربية والتعليم | G31: 1230لسنة2016 | H31: 2022-05-01 | I31: 2016-08-01 | J31: 2019-08-13 | K31: 154841.6053 | L31: 659 | M31: 258 | N31: 401 | O31: 401 | P31: =N31*50/100 -> 200.5 | Q31: 200.5 | R31: 6.683333333 | S31: 0 | T31: 72 | U31: 2160 | V31: 14436 | W31: 14436 | X31: =O31*25/100 -> 100.25 | Y31: 100.25 | Z31: 3.341666667 | AA31: 0 | AB31: 72 | AC31: 2160 | AD31: 7218 | AE31: 7218 | AF31: بدل اعتماد معلم أول أ ( 150 % ) | AG31: =IF(AF31="بدل اعتماد معلم ( 50 % )",O31*100/100,IF(AF31="بدل اعتماد معلم أول ( 125 % )",O31*125/100,IF(AF31="بدل اعتماد معلم أول أ ( 150 % )",O31*150/100,IF(AF31="بدل اعتماد معلم خبير ( 175 % )",O31*175/100,IF(AF31="بدل اعتماد كبير معلمين ( 200 % )",O31*200/100))))) -> 601.5 | AH31: 601.5 | AI31: 20.05 | AJ31: 0 | AK31: 72 | AL31: 2160 | AM31: 43308 | AN31: 43308 | AO31: بدل اعتماد معلم أول ( 125 % ) | AP31: =IF(AO31="بدل اعتماد معلم ( 50 % )",O31*100/100,IF(AO31="بدل اعتماد معلم أول ( 125 % )",O31*125/100,IF(AO31="بدل اعتماد معلم أول أ ( 150 % )",O31*150/100,IF(AO31="بدل اعتماد معلم خبير ( 175 % )",O31*175/100,IF(AO31="بدل اعتماد كبير معلمين ( 200 % )",O31*200/100))))) -> 501.25 | AQ31: 501.25 | AR31: =AQ31/30 -> 16.70833333 | AS31: 0 | AT31: 72 | AU31: 2160 | AV31: 36090 | AW31: 36090 | AX31: حافز اداء معلم ( 75 % ) | AY31: =IF(AX31="حافز اداء معلم ( 75 % )",O31*75/100,IF(AX31="حافز اداء معلم أول ( 50 % )",O31*50/100,IF(AX31="حافز اداء معلم أول أ ( 25 % )",O31*25/100,IF(AX31="حافز اداء معلم خبير ( 25 % )",O31*25/100,IF(AX31="حافز اداء كبير معلمين ( 25 % )",O31*25/100))))) -> 300.75 | AZ31: 300.75 | BA31: =AZ31/30 -> 10.025 | BB31: 0 | BC31: 72 | BD31: 2160 | BE31: 21654 | BF31: 21654 | BG31: حافز اداء معلم أول أ ( 25 % ) | BH31: =IF(BG31="حافز اداء معلم ( 75 % )",O31*75/100,IF(BG31="حافز اداء معلم أول ( 50 % )",O31*50/100,IF(BG31="حافز اداء معلم أول أ ( 25 % )",O31*25/100,IF(BG31="حافز اداء معلم خبير ( 25 % )",O31*25/100,IF(BG31="حافز اداء كبير معلمين ( 25 % )",O31*25/100))))) -> 100.25 | BI31: 100.25 | BJ31: 3.341666667 | BK31: 0 | BL31: 72 | BM31: 2160 | BN31: 7218 | BO31: 7218 | BP31: =O31*10 -> 4010 | BQ31: 4010 | BR31: =BQ31/30 -> 133.6666667 | BS31: 0 | BT31: 72 | BU31: 2160 | BV31: 288720 | BW31: =BP31/12*72 -> 24060 | BX31: =O31*40/100 -> 160.4 | BY31: 160.4 | BZ31: 5.346666667 | CA31: 0 | CB31: 14 | CC31: 420 | CD31: 2245.6 | CE31: =BZ31*BX31 -> 857.6053333 | CF31: =CE31+BW31+BO31+BF31+AW31+AN31+AE31+W31 -> 154841.6053 | CH31: 24605102501360 | CI31: مدرسة سميح السعيد
A32: 20 | B32: محمد 20 | C32: 24811262500127 | D32: محكمة القضاء الادارى باسيوط | E32: اسيوط | F32: محافظة اسيوط - وكيل وزارة التربية والتعليم | G32: 1230لسنة2017 | H32: 2022-05-02 | I32: 2016-08-02 | J32: 2019-08-14 | K32: -3131.568 | L32: 650 | M32: 659 | N32: -9 | O32: -9 | P32: =N32*50/100 -> -4.5 | Q32: -4.5 | R32: -0.15 | S32: 0 | T32: 72 | U32: 2160 | V32: -324 | W32: -324 | X32: =O32*25/100 -> -2.25 | Y32: -2.25 | Z32: -0.075 | AA32: 0 | AB32: 72 | AC32: 2160 | AD32: -162 | AE32: -162 | AF32: بدل اعتماد معلم ( 50 % ) | AG32: =IF(AF32="بدل اعتماد معلم ( 50 % )",O32*100/100,IF(AF32="بدل اعتماد معلم أول ( 125 % )",O32*125/100,IF(AF32="بدل اعتماد معلم أول أ ( 150 % )",O32*150/100,IF(AF32="بدل اعتماد معلم خبير ( 175 % )",O32*175/100,IF(AF32="بدل اعتماد كبير معلمين ( 200 % )",O32*200/100))))) -> -9 | AH32: -9 | AI32: -0.3 | AJ32: 0 | AK32: 72 | AL32: 2160 | AM32: -648 | AN32: -648 | AO32: بدل اعتماد معلم أول أ ( 150 % ) | AP32: =IF(AO32="بدل اعتماد معلم ( 50 % )",O32*100/100,IF(AO32="بدل اعتماد معلم أول ( 125 % )",O32*125/100,IF(AO32="بدل اعتماد معلم أول أ ( 150 % )",O32*150/100,IF(AO32="بدل اعتماد معلم خبير ( 175 % )",O32*175/100,IF(AO32="بدل اعتماد كبير معلمين ( 200 % )",O32*200/100))))) -> -13.5 | AQ32: -13.5 | AR32: -0.45 | AS32: 0 | AT32: 72 | AU32: 2160 | AV32: -972 | AW32: -972 | AX32: حافز اداء معلم أول ( 50 % ) | AY32: =IF(AX32="حافز اداء معلم ( 75 % )",O32*75/100,IF(AX32="حافز اداء معلم أول ( 50 % )",O32*50/100,IF(AX32="حافز اداء معلم أول أ ( 25 % )",O32*25/100,IF(AX32="حافز اداء معلم خبير ( 25 % )",O32*25/100,IF(AX32="حافز اداء كبير معلمين ( 25 % )",O32*25/100))))) -> -4.5 | AZ32: -4.5 | BA32: -0.15 | BB32: 0 | BC32: 72 | BD32: 2160 | BE32: -324 | BF32: -324 | BG32: حافز اداء معلم خبير ( 25 % ) | BH32: =IF(BG32="حافز اداء معلم ( 75 % )",O32*75/100,IF(BG32="حافز اداء معلم أول ( 50 % )",O32*50/100,IF(BG32="حافز اداء معلم أول أ ( 25 % )",O32*25/100,IF(BG32="حافز اداء معلم خبير ( 25 % )",O32*25/100,IF(BG32="حافز اداء كبير معلمين ( 25 % )",O32*25/100))))) -> -2.25 | BI32: -2.25 | BJ32: -0.075 | BK32: 0 | BL32: 72 | BM32: 2160 | BN32: -162 | BO32: -162 | BP32: =O32*10 -> -90 | BQ32: -90 | BR32: -3 | BS32: 0 | BT32: 72 | BU32: 2160 | BV32: -6480 | BW32: -540 | BX32: =O32*40/100 -> -3.6 | BY32: -3.6 | BZ32: -0.12 | CA32: 0 | CB32: 14 | CC32: 420 | CD32: -50.4 | CE32: 0.432 | CF32: =CE32+BW32+BO32+BF32+AW32+AN32+AE32+W32 -> -3131.568 | CH32: 24811262500127 | CI32: ادارة اسيوط التعليمية
A33: 21 | B33: محمد 21 | C33: 24901302500817 | D33: محكمة القضاء الادارى باسيوط | E33: سوهاج | F33: محافظة اسيوط - وكيل وزارة التربية والتعليم | G33: 1230لسنة2018 | H33: 2022-05-03 | I33: 2016-08-03 | J33: 2019-08-15 | K33: 40253.33333 | L33: 500 | M33: 400 | N33: 100 | O33: 100 | P33: =N33*50/100 -> 50 | Q33: 50 | R33: 1.666666667 | S33: 0 | T33: 72 | U33: 2160 | V33: 3600 | W33: 3600 | X33: =O33*25/100 -> 25 | Y33: 25 | Z33: 0.8333333333 | AA33: 0 | AB33: 72 | AC33: 2160 | AD33: 1800 | AE33: 1800 | AF33: بدل اعتماد معلم أول ( 125 % ) | AG33: =IF(AF33="بدل اعتماد معلم ( 50 % )",O33*100/100,IF(AF33="بدل اعتماد معلم أول ( 125 % )",O33*125/100,IF(AF33="بدل اعتماد معلم أول أ ( 150 % )",O33*150/100,IF(AF33="بدل اعتماد معلم خبير ( 175 % )",O33*175/100,IF(AF33="بدل اعتماد كبير معلمين ( 200 % )",O33*200/100))))) -> 125 | AH33: 125 | AI33: 4.166666667 | AJ33: 0 | AK33: 72 | AL33: 2160 | AM33: 9000 | AN33: 9000 | AO33: بدل اعتماد معلم خبير ( 175 % ) | AP33: =IF(AO33="بدل اعتماد معلم ( 50 % )",O33*100/100,IF(AO33="بدل اعتماد معلم أول ( 125 % )",O33*125/100,IF(AO33="بدل اعتماد معلم أول أ ( 150 % )",O33*150/100,IF(AO33="بدل اعتماد معلم خبير ( 175 % )",O33*175/100,IF(AO33="بدل اعتماد كبير معلمين ( 200 % )",O33*200/100))))) -> 175 | AQ33: 175 | AR33: 5.833333333 | AS33: 0 | AT33: 72 | AU33: 2160 | AV33: 12600 | AW33: 12600 | AX33: حافز اداء معلم ( 75 % ) | AY33: =IF(AX33="حافز اداء معلم ( 75 % )",O33*75/100,IF(AX33="حافز اداء معلم أول ( 50 % )",O33*50/100,IF(AX33="حافز اداء معلم أول أ ( 25 % )",O33*25/100,IF(AX33="حافز اداء معلم خبير ( 25 % )",O33*25/100,IF(AX33="حافز اداء كبير معلمين ( 25 % )",O33*25/100))))) -> 75 | AZ33: 75 | BA33: 2.5 | BB33: 0 | BC33: 72 | BD33: 2160 | BE33: 5400 | BF33: 5400 | BG33: حافز اداء كبير معلمين ( 25 % ) | BH33: =IF(BG33="حافز اداء معلم ( 75 % )",O33*75/100,IF(BG33="حافز اداء معلم أول ( 50 % )",O33*50/100,IF(BG33="حافز اداء معلم أول أ ( 25 % )",O33*25/100,IF(BG33="حافز اداء معلم خبير ( 25 % )",O33*25/100,IF(BG33="حافز اداء كبير معلمين ( 25 % )",O33*25/100))))) -> 25 | BI33: 25 | BJ33: 0.8333333333 | BK33: 0 | BL33: 72 | BM33: 2160 | BN33: 1800 | BO33: 1800 | BP33: =O33*10 -> 1000 | BQ33: 1000 | BR33: 33.33333333 | BS33: 0 | BT33: 72 | BU33: 2160 | BV33: 72000 | BW33: 6000 | BX33: =O33*40/100 -> 40 | BY33: 40 | BZ33: 1.333333333 | CA33: 0 | CB33: 14 | CC33: 420 | CD33: 560 | CE33: 53.33333333 | CF33: =CE33+BW33+BO33+BF33+AW33+AN33+AE33+W33 -> 40253.33333 | CH33: 24901302500817 | CI33: مدرسة مدينة المعلمين
A34: 22 | B34: محمد 22 | C34: 25803082501495 | D34: محكمة القضاء الادارى باسيوط | E34: اسيوط | F34: محافظة اسيوط - وكيل وزارة التربية والتعليم | G34: 1230لسنة2019 | H34: 2022-05-04 | I34: 2016-08-04 | J34: 2019-08-16 | K34: 46567.24279 | L34: 486.07 | M34: 365 | N34: 121.07 | O34: 121.07 | P34: =N34*50/100 -> 60.535 | Q34: 60.53 | R34: 2.017666667 | S34: 0 | T34: 72 | U34: 2160 | V34: 4358.16 | W34: 4358.16 | X34: =O34*25/100 -> 30.2675 | Y34: 30.26 | Z34: 1.008666667 | AA34: 0 | AB34: 72 | AC34: 2160 | AD34: 2178.72 | AE34: 2178.72 | AF34: بدل اعتماد معلم أول أ ( 150 % ) | AG34: =IF(AF34="بدل اعتماد معلم ( 50 % )",O34*100/100,IF(AF34="بدل اعتماد معلم أول ( 125 % )",O34*125/100,IF(AF34="بدل اعتماد معلم أول أ ( 150 % )",O34*150/100,IF(AF34="بدل اعتماد معلم خبير ( 175 % )",O34*175/100,IF(AF34="بدل اعتماد كبير معلمين ( 200 % )",O34*200/100))))) -> 181.605 | AH34: 181.6 | AI34: 6.053333333 | AJ34: 0 | AK34: 72 | AL34: 2160 | AM34: 13075.2 | AN34: 13075.2 | AO34: بدل اعتماد معلم ( 50 % ) | AP34: =IF(AO34="بدل اعتماد معلم ( 50 % )",O34*100/100,IF(AO34="بدل اعتماد معلم أول ( 125 % )",O34*125/100,IF(AO34="بدل اعتماد معلم أول أ ( 150 % )",O34*150/100,IF(AO34="بدل اعتماد معلم خبير ( 175 % )",O34*175/100,IF(AO34="بدل اعتماد كبير معلمين ( 200 % )",O34*200/100))))) -> 121.07 | AQ34: 121.07 | AR34: 4.035666667 | AS34: 0 | AT34: 72 | AU34: 2160 | AV34: 8717.04 | AW34: 8717.04 | AX34: حافز اداء معلم أول ( 50 % ) | AY34: =IF(AX34="حافز اداء معلم ( 75 % )",O34*75/100,IF(AX34="حافز اداء معلم أول ( 50 % )",O34*50/100,IF(AX34="حافز اداء معلم أول أ ( 25 % )",O34*25/100,IF(AX34="حافز اداء معلم خبير ( 25 % )",O34*25/100,IF(AX34="حافز اداء كبير معلمين ( 25 % )",O34*25/100))))) -> 60.535 | AZ34: 60.53 | BA34: 2.017666667 | BB34: 0 | BC34: 72 | BD34: 2160 | BE34: 4358.16 | BF34: 4358.16 | BG34: حافز اداء معلم ( 75 % ) | BH34: =IF(BG34="حافز اداء معلم ( 75 % )",O34*75/100,IF(BG34="حافز اداء معلم أول ( 50 % )",O34*50/100,IF(BG34="حافز اداء معلم أول أ ( 25 % )",O34*25/100,IF(BG34="حافز اداء معلم خبير ( 25 % )",O34*25/100,IF(BG34="حافز اداء كبير معلمين ( 25 % )",O34*25/100))))) -> 90.8025 | BI34: 90.8 | BJ34: 3.026666667 | BK34: 0 | BL34: 72 | BM34: 2160 | BN34: 6537.6 | BO34: 6537.6 | BP34: =O34*10 -> 1210.7 | BQ34: 1210.7 | BR34: 40.35666667 | BS34: 0 | BT34: 72 | BU34: 2160 | BV34: 87170.4 | BW34: 7264.2 | BX34: =O34*40/100 -> 48.428 | BY34: 48.42 | BZ34: 1.614 | CA34: 0 | CB34: 14 | CC34: 420 | CD34: 677.88 | CE34: 78.162792 | CF34: =CE34+BW34+BO34+BF34+AW34+AN34+AE34+W34 -> 46567.24279 | CH34: 25803082501495 | CI34: مدرسة سميح السعيد
A35: 23 | B35: محمد 23 | C35: 24905252501219 | D35: محكمة القضاء الادارى باسيوط | E35: سوهاج | F35: محافظة اسيوط - وكيل وزارة التربية والتعليم | G35: 1230لسنة2020 | H35: 2022-05-05 | I35: 2016-08-05 | J35: 2019-08-17 | K35: 77013.33333 | L35: 650 | M35: 450 | N35: 200 | O35: 200 | P35: =N35*50/100 -> 100 | Q35: 100 | R35: 3.333333333 | S35: 0 | T35: 72 | U35: 2160 | V35: 7200 | W35: 7200 | X35: =O35*25/100 -> 50 | Y35: 50 | Z35: 1.666666667 | AA35: 0 | AB35: 72 | AC35: 2160 | AD35: 3600 | AE35: 3600 | AF35: بدل اعتماد معلم خبير ( 175 % ) | AG35: =IF(AF35="بدل اعتماد معلم ( 50 % )",O35*100/100,IF(AF35="بدل اعتماد معلم أول ( 125 % )",O35*125/100,IF(AF35="بدل اعتماد معلم أول أ ( 150 % )",O35*150/100,IF(AF35="بدل اعتماد معلم خبير ( 175 % )",O35*175/100,IF(AF35="بدل اعتماد كبير معلمين ( 200 % )",O35*200/100))))) -> 350 | AH35: 350 | AI35: 11.66666667 | AJ35: 0 | AK35: 72 | AL35: 2160 | AM35: 25200 | AN35: 25200 | AO35: بدل اعتماد معلم أول ( 125 % ) | AP35: =IF(AO35="بدل اعتماد معلم ( 50 % )",O35*100/100,IF(AO35="بدل اعتماد معلم أول ( 125 % )",O35*125/100,IF(AO35="بدل اعتماد معلم أول أ ( 150 % )",O35*150/100,IF(AO35="بدل اعتماد معلم خبير ( 175 % )",O35*175/100,IF(AO35="بدل اعتماد كبير معلمين ( 200 % )",O35*200/100))))) -> 250 | AQ35: 250 | AR35: 8.333333333 | AS35: 0 | AT35: 72 | AU35: 2160 | AV35: 18000 | AW35: 18000 | AX35: حافز اداء معلم أول أ ( 25 % ) | AY35: =IF(AX35="حافز اداء معلم ( 75 % )",O35*75/100,IF(AX35="حافز اداء معلم أول ( 50 % )",O35*50/100,IF(AX35="حافز اداء معلم أول أ ( 25 % )",O35*25/100,IF(AX35="حافز اداء معلم خبير ( 25 % )",O35*25/100,IF(AX35="حافز اداء كبير معلمين ( 25 % )",O35*25/100))))) -> 50 | AZ35: 50 | BA35: 1.666666667 | BB35: 0 | BC35: 72 | BD35: 2160 | BE35: 3600 | BF35: 3600 | BG35: حافز اداء معلم أول ( 50 % ) | BH35: =IF(BG35="حافز اداء معلم ( 75 % )",O35*75/100,IF(BG35="حافز اداء معلم أول ( 50 % )",O35*50/100,IF(BG35="حافز اداء معلم أول أ ( 25 % )",O35*25/100,IF(BG35="حافز اداء معلم خبير ( 25 % )",O35*25/100,IF(BG35="حافز اداء كبير معلمين ( 25 % )",O35*25/100))))) -> 100 | BI35: 100 | BJ35: 3.333333333 | BK35: 0 | BL35: 72 | BM35: 2160 | BN35: 7200 | BO35: 7200 | BP35: =O35*10 -> 2000 | BQ35: 2000 | BR35: 66.66666667 | BS35: 0 | BT35: 72 | BU35: 2160 | BV35: 144000 | BW35: 12000 | BX35: =O35*40/100 -> 80 | BY35: 80 | BZ35: 2.666666667 | CA35: 0 | CB35: 14 | CC35: 420 | CD35: 1120 | CE35: 213.3333333 | CF35: =CE35+BW35+BO35+BF35+AW35+AN35+AE35+W35 -> 77013.33333 | CH35: 24905252501219 | CI35: ادارة اسيوط التعليمية
A36: 24 | B36: محمد 24 | C36: 25108122500047 | D36: محكمة القضاء الادارى باسيوط | E36: المنيا | F36: محافظة اسيوط - وكيل وزارة التربية والتعليم | G36: 1230لسنة2021 | H36: 2022-05-06 | I36: 2016-08-06 | J36: 2019-08-18 | K36: 16513.33333 | L36: 450 | M36: 400 | N36: 50 | O36: 50 | P36: =N36*50/100 -> 25 | Q36: 25 | R36: 0.8333333333 | S36: 0 | T36: 72 | U36: 2160 | V36: 1800 | W36: 1800 | X36: =O36*25/100 -> 12.5 | Y36: 12.5 | Z36: 0.4166666667 | AA36: 0 | AB36: 72 | AC36: 2160 | AD36: 900 | AE36: 900 | AF36: بدل اعتماد معلم ( 50 % ) | AG36: =IF(AF36="بدل اعتماد معلم ( 50 % )",O36*100/100,IF(AF36="بدل اعتماد معلم أول ( 125 % )",O36*125/100,IF(AF36="بدل اعتماد معلم أول أ ( 150 % )",O36*150/100,IF(AF36="بدل اعتماد معلم خبير ( 175 % )",O36*175/100,IF(AF36="بدل اعتماد كبير معلمين ( 200 % )",O36*200/100))))) -> 50 | AH36: 50 | AI36: 1.666666667 | AJ36: 0 | AK36: 72 | AL36: 2160 | AM36: 3600 | AN36: 3600 | AO36: بدل اعتماد معلم أول أ ( 150 % ) | AP36: =IF(AO36="بدل اعتماد معلم ( 50 % )",O36*100/100,IF(AO36="بدل اعتماد معلم أول ( 125 % )",O36*125/100,IF(AO36="بدل اعتماد معلم أول أ ( 150 % )",O36*150/100,IF(AO36="بدل اعتماد معلم خبير ( 175 % )",O36*175/100,IF(AO36="بدل اعتماد كبير معلمين ( 200 % )",O36*200/100))))) -> 75 | AQ36: 75 | AR36: 2.5 | AS36: 0 | AT36: 72 | AU36: 2160 | AV36: 5400 | AW36: 5400 | AX36: حافز اداء معلم خبير ( 25 % ) | AY36: =IF(AX36="حافز اداء معلم ( 75 % )",O36*75/100,IF(AX36="حافز اداء معلم أول ( 50 % )",O36*50/100,IF(AX36="حافز اداء معلم أول أ ( 25 % )",O36*25/100,IF(AX36="حافز اداء معلم خبير ( 25 % )",O36*25/100,IF(AX36="حافز اداء كبير معلمين ( 25 % )",O36*25/100))))) -> 12.5 | AZ36: 12.5 | BA36: 0.4166666667 | BB36: 0 | BC36: 72 | BD36: 2160 | BE36: 900 | BF36: 900 | BG36: حافز اداء معلم أول أ ( 25 % ) | BH36: =IF(BG36="حافز اداء معلم ( 75 % )",O36*75/100,IF(BG36="حافز اداء معلم أول ( 50 % )",O36*50/100,IF(BG36="حافز اداء معلم أول أ ( 25 % )",O36*25/100,IF(BG36="حافز اداء معلم خبير ( 25 % )",O36*25/100,IF(BG36="حافز اداء كبير معلمين ( 25 % )",O36*25/100))))) -> 12.5 | BI36: 12.5 | BJ36: 0.4166666667 | BK36: 0 | BL36: 72 | BM36: 2160 | BN36: 900 | BO36: 900 | BP36: =O36*10 -> 500 | BQ36: 500 | BR36: 16.66666667 | BS36: 0 | BT36: 72 | BU36: 2160 | BV36: 36000 | BW36: 3000 | BX36: =O36*40/100 -> 20 | BY36: 20 | BZ36: 0.6666666667 | CA36: 0 | CB36: 14 | CC36: 420 | CD36: 280 | CE36: 13.33333333 | CF36: =CE36+BW36+BO36+BF36+AW36+AN36+AE36+W36 -> 16513.33333 | CH36: 25108122500047 | CI36: مدرسة مدينة المعلمين
A37: 25 | B37: محمد 25 | C37: 25206172500945 | D37: محكمة القضاء الادارى باسيوط | E37: سوهاج | F37: محافظة اسيوط - وكيل وزارة التربية والتعليم | G37: 1230لسنة2022 | H37: 2022-05-06 | I37: 2016-08-06 | J37: 2019-08-18 | K37: 73413.33333 | L37: 450 | M37: 250 | N37: 200 | O37: 200 | P37: =N37*50/100 -> 100 | Q37: 100 | R37: 3.333333333 | S37: 0 | T37: 72 | U37: 2160 | V37: 7200 | W37: 7200 | X37: =O37*25/100 -> 50 | Y37: 50 | Z37: 1.666666667 | AA37: 0 | AB37: 72 | AC37: 2160 | AD37: 3600 | AE37: 3600 | AF37: بدل اعتماد معلم أول ( 125 % ) | AG37: =IF(AF37="بدل اعتماد معلم ( 50 % )",O37*100/100,IF(AF37="بدل اعتماد معلم أول ( 125 % )",O37*125/100,IF(AF37="بدل اعتماد معلم أول أ ( 150 % )",O37*150/100,IF(AF37="بدل اعتماد معلم خبير ( 175 % )",O37*175/100,IF(AF37="بدل اعتماد كبير معلمين ( 200 % )",O37*200/100))))) -> 250 | AH37: 250 | AI37: 8.333333333 | AJ37: 0 | AK37: 72 | AL37: 2160 | AM37: 18000 | AN37: 18000 | AO37: بدل اعتماد معلم خبير ( 175 % ) | AP37: =IF(AO37="بدل اعتماد معلم ( 50 % )",O37*100/100,IF(AO37="بدل اعتماد معلم أول ( 125 % )",O37*125/100,IF(AO37="بدل اعتماد معلم أول أ ( 150 % )",O37*150/100,IF(AO37="بدل اعتماد معلم خبير ( 175 % )",O37*175/100,IF(AO37="بدل اعتماد كبير معلمين ( 200 % )",O37*200/100))))) -> 350 | AQ37: 350 | AR37: 11.66666667 | AS37: 0 | AT37: 72 | AU37: 2160 | AV37: 25200 | AW37: 25200 | AX37: حافز اداء كبير معلمين ( 25 % ) | AY37: =IF(AX37="حافز اداء معلم ( 75 % )",O37*75/100,IF(AX37="حافز اداء معلم أول ( 50 % )",O37*50/100,IF(AX37="حافز اداء معلم أول أ ( 25 % )",O37*25/100,IF(AX37="حافز اداء معلم خبير ( 25 % )",O37*25/100,IF(AX37="حافز اداء كبير معلمين ( 25 % )",O37*25/100))))) -> 50 | AZ37: 50 | BA37: 1.666666667 | BB37: 0 | BC37: 72 | BD37: 2160 | BE37: 3600 | BF37: 3600 | BG37: حافز اداء معلم خبير ( 25 % ) | BH37: =IF(BG37="حافز اداء معلم ( 75 % )",O37*75/100,IF(BG37="حافز اداء معلم أول ( 50 % )",O37*50/100,IF(BG37="حافز اداء معلم أول أ ( 25 % )",O37*25/100,IF(BG37="حافز اداء معلم خبير ( 25 % )",O37*25/100,IF(BG37="حافز اداء كبير معلمين ( 25 % )",O37*25/100))))) -> 50 | BI37: 50 | BJ37: 1.666666667 | BK37: 0 | BL37: 72 | BM37: 2160 | BN37: 3600 | BO37: 3600 | BP37: =O37*10 -> 2000 | BQ37: 2000 | BR37: 66.66666667 | BS37: 0 | BT37: 72 | BU37: 2160 | BV37: 144000 | BW37: 12000 | BX37: =O37*40/100 -> 80 | BY37: 80 | BZ37: 2.666666667 | CA37: 0 | CB37: 14 | CC37: 420 | CD37: 1120 | CE37: 213.3333333 | CF37: =CE37+BW37+BO37+BF37+AW37+AN37+AE37+W37 -> 73413.33333 | CH37: 25206172500945 | CI37: مدرسة سميح السعيد
A38: 26 | B38: محمد 26 | C38: 25210022500341 | D38: محكمة القضاء الادارى باسيوط | E38: اسيوط | F38: محافظة اسيوط - وكيل وزارة التربية والتعليم | G38: 1230لسنة2023 | H38: 2022-05-06 | I38: 2016-08-06 | J38: 2019-08-18 | K38: 75901.20757 | L38: 659 | M38: 486.07 | N38: 172.93 | O38: 172.93 | P38: =N38*50/100 -> 86.465 | Q38: 86.46 | R38: 2.882 | S38: 0 | T38: 72 | U38: 2160 | V38: 6225.12 | W38: 6225.12 | X38: =O38*25/100 -> 43.2325 | Y38: 43.23 | Z38: 1.441 | AA38: 0 | AB38: 72 | AC38: 2160 | AD38: 3112.56 | AE38: 3112.56 | AF38: بدل اعتماد معلم أول أ ( 150 % ) | AG38: =IF(AF38="بدل اعتماد معلم ( 50 % )",O38*100/100,IF(AF38="بدل اعتماد معلم أول ( 125 % )",O38*125/100,IF(AF38="بدل اعتماد معلم أول أ ( 150 % )",O38*150/100,IF(AF38="بدل اعتماد معلم خبير ( 175 % )",O38*175/100,IF(AF38="بدل اعتماد كبير معلمين ( 200 % )",O38*200/100))))) -> 259.395 | AH38: 259.39 | AI38: 8.646333333 | AJ38: 0 | AK38: 72 | AL38: 2160 | AM38: 18676.08 | AN38: 18676.08 | AO38: بدل اعتماد كبير معلمين ( 200 % ) | AP38: =IF(AO38="بدل اعتماد معلم ( 50 % )",O38*100/100,IF(AO38="بدل اعتماد معلم أول ( 125 % )",O38*125/100,IF(AO38="بدل اعتماد معلم أول أ ( 150 % )",O38*150/100,IF(AO38="بدل اعتماد معلم خبير ( 175 % )",O38*175/100,IF(AO38="بدل اعتماد كبير معلمين ( 200 % )",O38*200/100))))) -> 345.86 | AQ38: 345.86 | AR38: 11.52866667 | AS38: 0 | AT38: 72 | AU38: 2160 | AV38: 24901.92 | AW38: 24901.92 | AX38: حافز اداء معلم ( 75 % ) | AY38: =IF(AX38="حافز اداء معلم ( 75 % )",O38*75/100,IF(AX38="حافز اداء معلم أول ( 50 % )",O38*50/100,IF(AX38="حافز اداء معلم أول أ ( 25 % )",O38*25/100,IF(AX38="حافز اداء معلم خبير ( 25 % )",O38*25/100,IF(AX38="حافز اداء كبير معلمين ( 25 % )",O38*25/100))))) -> 129.6975 | AZ38: 129.69 | BA38: 4.323 | BB38: 0 | BC38: 72 | BD38: 2160 | BE38: 9337.68 | BF38: 9337.68 | BG38: حافز اداء كبير معلمين ( 25 % ) | BH38: =IF(BG38="حافز اداء معلم ( 75 % )",O38*75/100,IF(BG38="حافز اداء معلم أول ( 50 % )",O38*50/100,IF(BG38="حافز اداء معلم أول أ ( 25 % )",O38*25/100,IF(BG38="حافز اداء معلم خبير ( 25 % )",O38*25/100,IF(BG38="حافز اداء كبير معلمين ( 25 % )",O38*25/100))))) -> 43.2325 | BI38: 43.23 | BJ38: 1.441 | BK38: 0 | BL38: 72 | BM38: 2160 | BN38: 3112.56 | BO38: 3112.56 | BP38: =O38*10 -> 1729.3 | BQ38: 1729.3 | BR38: 57.64333333 | BS38: 0 | BT38: 72 | BU38: 2160 | BV38: 124509.6 | BW38: 10375.8 | BX38: =O38*40/100 -> 69.172 | BY38: 69.17 | BZ38: 2.305666667 | CA38: 0 | CB38: 14 | CC38: 420 | CD38: 968.38 | CE38: 159.4875747 | CF38: =CE38+BW38+BO38+BF38+AW38+AN38+AE38+W38 -> 75901.20757 | CH38: 25210022500341 | CI38: ادارة اسيوط التعليمية
A39: 27 | B39: محمد 27 | C39: 25310292500819 | D39: محكمة القضاء الادارى باسيوط | E39: سوهاج | F39: محافظة اسيوط - وكيل وزارة التربية والتعليم | G39: 1230لسنة2024 | H39: 2022-05-06 | I39: 2016-08-06 | J39: 2019-08-18 | K39: 52636.8 | L39: 620 | M39: 500 | N39: 120 | O39: 120 | P39: =N39*50/100 -> 60 | Q39: 60 | R39: 2 | S39: 0 | T39: 72 | U39: 2160 | V39: 4320 | W39: 4320 | X39: =O39*25/100 -> 30 | Y39: 30 | Z39: 1 | AA39: 0 | AB39: 72 | AC39: 2160 | AD39: 2160 | AE39: 2160 | AF39: بدل اعتماد معلم خبير ( 175 % ) | AG39: =IF(AF39="بدل اعتماد معلم ( 50 % )",O39*100/100,IF(AF39="بدل اعتماد معلم أول ( 125 % )",O39*125/100,IF(AF39="بدل اعتماد معلم أول أ ( 150 % )",O39*150/100,IF(AF39="بدل اعتماد معلم خبير ( 175 % )",O39*175/100,IF(AF39="بدل اعتماد كبير معلمين ( 200 % )",O39*200/100))))) -> 210 | AH39: 210 | AI39: 7 | AJ39: 0 | AK39: 72 | AL39: 2160 | AM39: 15120 | AN39: 15120 | AO39: بدل اعتماد معلم أول أ ( 150 % ) | AP39: =IF(AO39="بدل اعتماد معلم ( 50 % )",O39*100/100,IF(AO39="بدل اعتماد معلم أول ( 125 % )",O39*125/100,IF(AO39="بدل اعتماد معلم أول أ ( 150 % )",O39*150/100,IF(AO39="بدل اعتماد معلم خبير ( 175 % )",O39*175/100,IF(AO39="بدل اعتماد كبير معلمين ( 200 % )",O39*200/100))))) -> 180 | AQ39: 180 | AR39: 6 | AS39: 0 | AT39: 72 | AU39: 2160 | AV39: 12960 | AW39: 12960 | AX39: حافز اداء معلم أول ( 50 % ) | AY39: =IF(AX39="حافز اداء معلم ( 75 % )",O39*75/100,IF(AX39="حافز اداء معلم أول ( 50 % )",O39*50/100,IF(AX39="حافز اداء معلم أول أ ( 25 % )",O39*25/100,IF(AX39="حافز اداء معلم خبير ( 25 % )",O39*25/100,IF(AX39="حافز اداء كبير معلمين ( 25 % )",O39*25/100))))) -> 60 | AZ39: 60 | BA39: 2 | BB39: 0 | BC39: 72 | BD39: 2160 | BE39: 4320 | BF39: 4320 | BG39: حافز اداء معلم ( 75 % ) | BH39: =IF(BG39="حافز اداء معلم ( 75 % )",O39*75/100,IF(BG39="حافز اداء معلم أول ( 50 % )",O39*50/100,IF(BG39="حافز اداء معلم أول أ ( 25 % )",O39*25/100,IF(BG39="حافز اداء معلم خبير ( 25 % )",O39*25/100,IF(BG39="حافز اداء كبير معلمين ( 25 % )",O39*25/100))))) -> 90 | BI39: 90 | BJ39: 3 | BK39: 0 | BL39: 72 | BM39: 2160 | BN39: 6480 | BO39: 6480 | BP39: =O39*10 -> 1200 | BQ39: 1200 | BR39: 40 | BS39: 0 | BT39: 72 | BU39: 2160 | BV39: 86400 | BW39: 7200 | BX39: =O39*40/100 -> 48 | BY39: 48 | BZ39: 1.6 | CA39: 0 | CB39: 14 | CC39: 420 | CD39: 672 | CE39: 76.8 | CF39: =CE39+BW39+BO39+BF39+AW39+AN39+AE39+W39 -> 52636.8 | CH39: 25310292500819 | CI39: مدرسة مدينة المعلمين
A40: 28 | B40: محمد 28 | C40: 25311252501843 | D40: محكمة القضاء الادارى باسيوط | E40: اسيوط | F40: محافظة اسيوط - وكيل وزارة التربية والتعليم | G40: 1230لسنة2025 | H40: 2022-05-06 | I40: 2016-08-06 | J40: 2019-08-18 | K40: 38453.33333 | L40: 365 | M40: 265 | N40: 100 | O40: 100 | P40: =N40*50/100 -> 50 | Q40: 50 | R40: 1.666666667 | S40: 0 | T40: 72 | U40: 2160 | V40: 3600 | W40: 3600 | X40: =O40*25/100 -> 25 | Y40: 25 | Z40: 0.8333333333 | AA40: 0 | AB40: 72 | AC40: 2160 | AD40: 1800 | AE40: 1800 | AF40: بدل اعتماد كبير معلمين ( 200 % ) | AG40: =IF(AF40="بدل اعتماد معلم ( 50 % )",O40*100/100,IF(AF40="بدل اعتماد معلم أول ( 125 % )",O40*125/100,IF(AF40="بدل اعتماد معلم أول أ ( 150 % )",O40*150/100,IF(AF40="بدل اعتماد معلم خبير ( 175 % )",O40*175/100,IF(AF40="بدل اعتماد كبير معلمين ( 200 % )",O40*200/100))))) -> 200 | AH40: 200 | AI40: 6.666666667 | AJ40: 0 | AK40: 72 | AL40: 2160 | AM40: 14400 | AN40: 14400 | AO40: بدل اعتماد معلم ( 50 % ) | AP40: =IF(AO40="بدل اعتماد معلم ( 50 % )",O40*100/100,IF(AO40="بدل اعتماد معلم أول ( 125 % )",O40*125/100,IF(AO40="بدل اعتماد معلم أول أ ( 150 % )",O40*150/100,IF(AO40="بدل اعتماد معلم خبير ( 175 % )",O40*175/100,IF(AO40="بدل اعتماد كبير معلمين ( 200 % )",O40*200/100))))) -> 100 | AQ40: 100 | AR40: 3.333333333 | AS40: 0 | AT40: 72 | AU40: 2160 | AV40: 7200 | AW40: 7200 | AX40: حافز اداء معلم أول أ ( 25 % ) | AY40: =IF(AX40="حافز اداء معلم ( 75 % )",O40*75/100,IF(AX40="حافز اداء معلم أول ( 50 % )",O40*50/100,IF(AX40="حافز اداء معلم أول أ ( 25 % )",O40*25/100,IF(AX40="حافز اداء معلم خبير ( 25 % )",O40*25/100,IF(AX40="حافز اداء كبير معلمين ( 25 % )",O40*25/100))))) -> 25 | AZ40: 25 | BA40: 0.8333333333 | BB40: 0 | BC40: 72 | BD40: 2160 | BE40: 1800 | BF40: 1800 | BG40: حافز اداء معلم أول ( 50 % ) | BH40: =IF(BG40="حافز اداء معلم ( 75 % )",O40*75/100,IF(BG40="حافز اداء معلم أول ( 50 % )",O40*50/100,IF(BG40="حافز اداء معلم أول أ ( 25 % )",O40*25/100,IF(BG40="حافز اداء معلم خبير ( 25 % )",O40*25/100,IF(BG40="حافز اداء كبير معلمين ( 25 % )",O40*25/100))))) -> 50 | BI40: 50 | BJ40: 1.666666667 | BK40: 0 | BL40: 72 | BM40: 2160 | BN40: 3600 | BO40: 3600 | BP40: =O40*10 -> 1000 | BQ40: 1000 | BR40: 33.33333333 | BS40: 0 | BT40: 72 | BU40: 2160 | BV40: 72000 | BW40: 6000 | BX40: =O40*40/100 -> 40 | BY40: 40 | BZ40: 1.333333333 | CA40: 0 | CB40: 14 | CC40: 420 | CD40: 560 | CE40: 53.33333333 | CF40: =CE40+BW40+BO40+BF40+AW40+AN40+AE40+W40 -> 38453.33333 | CH40: 25311252501843 | CI40: مدرسة سميح السعيد
A41: 29 | B41: محمد 29 | C41: 25510142501069 | D41: محكمة القضاء الادارى باسيوط | E41: سوهاج | F41: محافظة اسيوط - وكيل وزارة التربية والتعليم | G41: 1230لسنة2026 | H41: 2022-05-06 | I41: 2016-08-06 | J41: 2019-08-18 | K41: 138292.1333 | L41: 653 | M41: 258 | N41: 395 | O41: 395 | P41: =N41*50/100 -> 197.5 | Q41: 197.5 | R41: 6.583333333 | S41: 0 | T41: 72 | U41: 2160 | V41: 14220 | W41: 14220 | X41: =O41*25/100 -> 98.75 | Y41: 98.75 | Z41: 3.291666667 | AA41: 0 | AB41: 72 | AC41: 2160 | AD41: 7110 | AE41: 7110 | AF41: بدل اعتماد معلم أول أ ( 150 % ) | AG41: =IF(AF41="بدل اعتماد معلم ( 50 % )",O41*100/100,IF(AF41="بدل اعتماد معلم أول ( 125 % )",O41*125/100,IF(AF41="بدل اعتماد معلم أول أ ( 150 % )",O41*150/100,IF(AF41="بدل اعتماد معلم خبير ( 175 % )",O41*175/100,IF(AF41="بدل اعتماد كبير معلمين ( 200 % )",O41*200/100))))) -> 592.5 | AH41: 592.5 | AI41: 19.75 | AJ41: 0 | AK41: 72 | AL41: 2160 | AM41: 42660 | AN41: 42660 | AO41: بدل اعتماد معلم أول ( 125 % ) | AP41: =IF(AO41="بدل اعتماد معلم ( 50 % )",O41*100/100,IF(AO41="بدل اعتماد معلم أول ( 125 % )",O41*125/100,IF(AO41="بدل اعتماد معلم أول أ ( 150 % )",O41*150/100,IF(AO41="بدل اعتماد معلم خبير ( 175 % )",O41*175/100,IF(AO41="بدل اعتماد كبير معلمين ( 200 % )",O41*200/100))))) -> 493.75 | AQ41: 493.75 | AR41: 16.45833333 | AS41: 0 | AT41: 72 | AU41: 2160 | AV41: 35550 | AW41: 35550 | AX41: حافز اداء معلم خبير ( 25 % ) | AY41: =IF(AX41="حافز اداء معلم ( 75 % )",O41*75/100,IF(AX41="حافز اداء معلم أول ( 50 % )",O41*50/100,IF(AX41="حافز اداء معلم أول أ ( 25 % )",O41*25/100,IF(AX41="حافز اداء معلم خبير ( 25 % )",O41*25/100,IF(AX41="حافز اداء كبير معلمين ( 25 % )",O41*25/100))))) -> 98.75 | AZ41: 98.75 | BA41: 3.291666667 | BB41: 0 | BC41: 72 | BD41: 2160 | BE41: 7110 | BF41: 7110 | BG41: حافز اداء معلم أول أ ( 25 % ) | BH41: =IF(BG41="حافز اداء معلم ( 75 % )",O41*75/100,IF(BG41="حافز اداء معلم أول ( 50 % )",O41*50/100,IF(BG41="حافز اداء معلم أول أ ( 25 % )",O41*25/100,IF(BG41="حافز اداء معلم خبير ( 25 % )",O41*25/100,IF(BG41="حافز اداء كبير معلمين ( 25 % )",O41*25/100))))) -> 98.75 | BI41: 98.75 | BJ41: 3.291666667 | BK41: 0 | BL41: 72 | BM41: 2160 | BN41: 7110 | BO41: 7110 | BP41: =O41*10 -> 3950 | BQ41: 3950 | BR41: 131.6666667 | BS41: 0 | BT41: 72 | BU41: 2160 | BV41: 284400 | BW41: 23700 | BX41: =O41*40/100 -> 158 | BY41: 158 | BZ41: 5.266666667 | CA41: 0 | CB41: 14 | CC41: 420 | CD41: 2212 | CE41: 832.1333333 | CF41: =CE41+BW41+BO41+BF41+AW41+AN41+AE41+W41 -> 138292.1333 | CH41: 25510142501069 | CI41: ادارة اسيوط التعليمية
A42: 30 | B42: محمد 30 | C42: 25511082501346 | D42: محكمة القضاء الادارى باسيوط | E42: المنيا | F42: محافظة اسيوط - وكيل وزارة التربية والتعليم | G42: 1230لسنة2027 | H42: 2022-05-06 | I42: 2016-08-06 | J42: 2019-08-18 | K42: 33053.33333 | L42: 520 | M42: 420 | N42: 100 | O42: 100 | P42: =N42*50/100 -> 50 | Q42: 50 | R42: 1.666666667 | S42: 0 | T42: 72 | U42: 2160 | V42: 3600 | W42: 3600 | X42: =O42*25/100 -> 25 | Y42: 25 | Z42: 0.8333333333 | AA42: 0 | AB42: 72 | AC42: 2160 | AD42: 1800 | AE42: 1800 | AF42: بدل اعتماد معلم ( 50 % ) | AG42: =IF(AF42="بدل اعتماد معلم ( 50 % )",O42*100/100,IF(AF42="بدل اعتماد معلم أول ( 125 % )",O42*125/100,IF(AF42="بدل اعتماد معلم أول أ ( 150 % )",O42*150/100,IF(AF42="بدل اعتماد معلم خبير ( 175 % )",O42*175/100,IF(AF42="بدل اعتماد كبير معلمين ( 200 % )",O42*200/100))))) -> 100 | AH42: 100 | AI42: 3.333333333 | AJ42: 0 | AK42: 72 | AL42: 2160 | AM42: 7200 | AN42: 7200 | AO42: بدل اعتماد معلم أول أ ( 150 % ) | AP42: =IF(AO42="بدل اعتماد معلم ( 50 % )",O42*100/100,IF(AO42="بدل اعتماد معلم أول ( 125 % )",O42*125/100,IF(AO42="بدل اعتماد معلم أول أ ( 150 % )",O42*150/100,IF(AO42="بدل اعتماد معلم خبير ( 175 % )",O42*175/100,IF(AO42="بدل اعتماد كبير معلمين ( 200 % )",O42*200/100))))) -> 150 | AQ42: 150 | AR42: 5 | AS42: 0 | AT42: 72 | AU42: 2160 | AV42: 10800 | AW42: 10800 | AX42: حافز اداء كبير معلمين ( 25 % ) | AY42: =IF(AX42="حافز اداء معلم ( 75 % )",O42*75/100,IF(AX42="حافز اداء معلم أول ( 50 % )",O42*50/100,IF(AX42="حافز اداء معلم أول أ ( 25 % )",O42*25/100,IF(AX42="حافز اداء معلم خبير ( 25 % )",O42*25/100,IF(AX42="حافز اداء كبير معلمين ( 25 % )",O42*25/100))))) -> 25 | AZ42: 25 | BA42: 0.8333333333 | BB42: 0 | BC42: 72 | BD42: 2160 | BE42: 1800 | BF42: 1800 | BG42: حافز اداء معلم خبير ( 25 % ) | BH42: =IF(BG42="حافز اداء معلم ( 75 % )",O42*75/100,IF(BG42="حافز اداء معلم أول ( 50 % )",O42*50/100,IF(BG42="حافز اداء معلم أول أ ( 25 % )",O42*25/100,IF(BG42="حافز اداء معلم خبير ( 25 % )",O42*25/100,IF(BG42="حافز اداء كبير معلمين ( 25 % )",O42*25/100))))) -> 25 | BI42: 25 | BJ42: 0.8333333333 | BK42: 0 | BL42: 72 | BM42: 2160 | BN42: 1800 | BO42: 1800 | BP42: =O42*10 -> 1000 | BQ42: 1000 | BR42: 33.33333333 | BS42: 0 | BT42: 72 | BU42: 2160 | BV42: 72000 | BW42: 6000 | BX42: =O42*40/100 -> 40 | BY42: 40 | BZ42: 1.333333333 | CA42: 0 | CB42: 14 | CC42: 420 | CD42: 560 | CE42: 53.33333333 | CF42: =CE42+BW42+BO42+BF42+AW42+AN42+AE42+W42 -> 33053.33333 | CH42: 25511082501346 | CI42: مدرسة مدينة المعلمين
A43: 31 | B43: محمد 31 | C43: 25512152400816 | D43: محكمة القضاء الادارى باسيوط | E43: سوهاج | F43: محافظة اسيوط - وكيل وزارة التربية والتعليم | G43: 1230لسنة2028 | H43: 2022-05-06 | I43: 2016-08-06 | J43: 2019-08-18 | K43: 65667.70133 | L43: 563 | M43: 400 | N43: 163 | O43: 163 | P43: =N43*50/100 -> 81.5 | Q43: 81.5 | R43: 2.716666667 | S43: 0 | T43: 72 | U43: 2160 | V43: 5868 | W43: 5868 | X43: =O43*25/100 -> 40.75 | Y43: 40.75 | Z43: 1.358333333 | AA43: 0 | AB43: 72 | AC43: 2160 | AD43: 2934 | AE43: 2934 | AF43: بدل اعتماد معلم أول ( 125 % ) | AG43: =IF(AF43="بدل اعتماد معلم ( 50 % )",O43*100/100,IF(AF43="بدل اعتماد معلم أول ( 125 % )",O43*125/100,IF(AF43="بدل اعتماد معلم أول أ ( 150 % )",O43*150/100,IF(AF43="بدل اعتماد معلم خبير ( 175 % )",O43*175/100,IF(AF43="بدل اعتماد كبير معلمين ( 200 % )",O43*200/100))))) -> 203.75 | AH43: 203.75 | AI43: 6.791666667 | AJ43: 0 | AK43: 72 | AL43: 2160 | AM43: 14670 | AN43: 14670 | AO43: بدل اعتماد معلم خبير ( 175 % ) | AP43: =IF(AO43="بدل اعتماد معلم ( 50 % )",O43*100/100,IF(AO43="بدل اعتماد معلم أول ( 125 % )",O43*125/100,IF(AO43="بدل اعتماد معلم أول أ ( 150 % )",O43*150/100,IF(AO43="بدل اعتماد معلم خبير ( 175 % )",O43*175/100,IF(AO43="بدل اعتماد كبير معلمين ( 200 % )",O43*200/100))))) -> 285.25 | AQ43: 285.25 | AR43: 9.508333333 | AS43: 0 | AT43: 72 | AU43: 2160 | AV43: 20538 | AW43: 20538 | AX43: حافز اداء معلم ( 75 % ) | AY43: =IF(AX43="حافز اداء معلم ( 75 % )",O43*75/100,IF(AX43="حافز اداء معلم أول ( 50 % )",O43*50/100,IF(AX43="حافز اداء معلم أول أ ( 25 % )",O43*25/100,IF(AX43="حافز اداء معلم خبير ( 25 % )",O43*25/100,IF(AX43="حافز اداء كبير معلمين ( 25 % )",O43*25/100))))) -> 122.25 | AZ43: 122.25 | BA43: 4.075 | BB43: 0 | BC43: 72 | BD43: 2160 | BE43: 8802 | BF43: 8802 | BG43: حافز اداء كبير معلمين ( 25 % ) | BH43: =IF(BG43="حافز اداء معلم ( 75 % )",O43*75/100,IF(BG43="حافز اداء معلم أول ( 50 % )",O43*50/100,IF(BG43="حافز اداء معلم أول أ ( 25 % )",O43*25/100,IF(BG43="حافز اداء معلم خبير ( 25 % )",O43*25/100,IF(BG43="حافز اداء كبير معلمين ( 25 % )",O43*25/100))))) -> 40.75 | BI43: 40.75 | BJ43: 1.358333333 | BK43: 0 | BL43: 72 | BM43: 2160 | BN43: 2934 | BO43: 2934 | BP43: =O43*10 -> 1630 | BQ43: 1630 | BR43: 54.33333333 | BS43: 0 | BT43: 72 | BU43: 2160 | BV43: 117360 | BW43: 9780 | BX43: =O43*40/100 -> 65.2 | BY43: 65.2 | BZ43: 2.173333333 | CA43: 0 | CB43: 14 | CC43: 420 | CD43: 912.8 | CE43: 141.7013333 | CF43: =CE43+BW43+BO43+BF43+AW43+AN43+AE43+W43 -> 65667.70133 | CH43: 25512152400816 | CI43: مدرسة سميح السعيد
A44: 32 | B44: محمد 32 | C44: 25801172501751 | D44: محكمة القضاء الادارى باسيوط | E44: اسيوط | F44: محافظة اسيوط - وكيل وزارة التربية والتعليم | G44: 1230لسنة2029 | H44: 2022-05-06 | I44: 2016-08-06 | J44: 2019-08-18 | K44: 38798.53333 | L44: 450 | M44: 365 | N44: 85 | O44: 85 | P44: =N44*50/100 -> 42.5 | Q44: 42.5 | R44: 1.416666667 | S44: 0 | T44: 72 | U44: 2160 | V44: 3060 | W44: 3060 | X44: =O44*25/100 -> 21.25 | Y44: 21.25 | Z44: 0.7083333333 | AA44: 0 | AB44: 72 | AC44: 2160 | AD44: 1530 | AE44: 1530 | AF44: بدل اعتماد معلم أول أ ( 150 % ) | AG44: =IF(AF44="بدل اعتماد معلم ( 50 % )",O44*100/100,IF(AF44="بدل اعتماد معلم أول ( 125 % )",O44*125/100,IF(AF44="بدل اعتماد معلم أول أ ( 150 % )",O44*150/100,IF(AF44="بدل اعتماد معلم خبير ( 175 % )",O44*175/100,IF(AF44="بدل اعتماد كبير معلمين ( 200 % )",O44*200/100))))) -> 127.5 | AH44: 127.5 | AI44: 4.25 | AJ44: 0 | AK44: 72 | AL44: 2160 | AM44: 9180 | AN44: 9180 | AO44: بدل اعتماد كبير معلمين ( 200 % ) | AP44: =IF(AO44="بدل اعتماد معلم ( 50 % )",O44*100/100,IF(AO44="بدل اعتماد معلم أول ( 125 % )",O44*125/100,IF(AO44="بدل اعتماد معلم أول أ ( 150 % )",O44*150/100,IF(AO44="بدل اعتماد معلم خبير ( 175 % )",O44*175/100,IF(AO44="بدل اعتماد كبير معلمين ( 200 % )",O44*200/100))))) -> 170 | AQ44: 170 | AR44: 5.666666667 | AS44: 0 | AT44: 72 | AU44: 2160 | AV44: 12240 | AW44: 12240 | AX44: حافز اداء معلم أول ( 50 % ) | AY44: =IF(AX44="حافز اداء معلم ( 75 % )",O44*75/100,IF(AX44="حافز اداء معلم أول ( 50 % )",O44*50/100,IF(AX44="حافز اداء معلم أول أ ( 25 % )",O44*25/100,IF(AX44="حافز اداء معلم خبير ( 25 % )",O44*25/100,IF(AX44="حافز اداء كبير معلمين ( 25 % )",O44*25/100))))) -> 42.5 | AZ44: 42.5 | BA44: 1.416666667 | BB44: 0 | BC44: 72 | BD44: 2160 | BE44: 3060 | BF44: 3060 | BG44: حافز اداء معلم ( 75 % ) | BH44: =IF(BG44="حافز اداء معلم ( 75 % )",O44*75/100,IF(BG44="حافز اداء معلم أول ( 50 % )",O44*50/100,IF(BG44="حافز اداء معلم أول أ ( 25 % )",O44*25/100,IF(BG44="حافز اداء معلم خبير ( 25 % )",O44*25/100,IF(BG44="حافز اداء كبير معلمين ( 25 % )",O44*25/100))))) -> 63.75 | BI44: 63.75 | BJ44: 2.125 | BK44: 0 | BL44: 72 | BM44: 2160 | BN44: 4590 | BO44: 4590 | BP44: =O44*10 -> 850 | BQ44: 850 | BR44: 28.33333333 | BS44: 0 | BT44: 72 | BU44: 2160 | BV44: 61200 | BW44: 5100 | BX44: =O44*40/100 -> 34 | BY44: 34 | BZ44: 1.133333333 | CA44: 0 | CB44: 14 | CC44: 420 | CD44: 476 | CE44: 38.53333333 | CF44: =CE44+BW44+BO44+BF44+AW44+AN44+AE44+W44 -> 38798.53333 | CH44: 25801172501751 | CI44: ادارة اسيوط التعليمية
A45: 33 | B45: محمد 33 | C45: 25802162601273 | D45: محكمة القضاء الادارى باسيوط | E45: سوهاج | F45: محافظة اسيوط - وكيل وزارة التربية والتعليم | G45: 1230لسنة2030 | H45: 2022-05-06 | I45: 2016-08-06 | J45: 2019-08-18 | K45: 54367.2 | L45: 555 | M45: 420 | N45: 135 | O45: 135 | P45: =N45*50/100 -> 67.5 | Q45: 67.5 | R45: 2.25 | S45: 0 | T45: 72 | U45: 2160 | V45: 4860 | W45: 4860 | X45: =O45*25/100 -> 33.75 | Y45: 33.75 | Z45: 1.125 | AA45: 0 | AB45: 72 | AC45: 2160 | AD45: 2430 | AE45: 2430 | AF45: بدل اعتماد معلم خبير ( 175 % ) | AG45: =IF(AF45="بدل اعتماد معلم ( 50 % )",O45*100/100,IF(AF45="بدل اعتماد معلم أول ( 125 % )",O45*125/100,IF(AF45="بدل اعتماد معلم أول أ ( 150 % )",O45*150/100,IF(AF45="بدل اعتماد معلم خبير ( 175 % )",O45*175/100,IF(AF45="بدل اعتماد كبير معلمين ( 200 % )",O45*200/100))))) -> 236.25 | AH45: 236.25 | AI45: 7.875 | AJ45: 0 | AK45: 72 | AL45: 2160 | AM45: 17010 | AN45: 17010 | AO45: بدل اعتماد معلم أول أ ( 150 % ) | AP45: =IF(AO45="بدل اعتماد معلم ( 50 % )",O45*100/100,IF(AO45="بدل اعتماد معلم أول ( 125 % )",O45*125/100,IF(AO45="بدل اعتماد معلم أول أ ( 150 % )",O45*150/100,IF(AO45="بدل اعتماد معلم خبير ( 175 % )",O45*175/100,IF(AO45="بدل اعتماد كبير معلمين ( 200 % )",O45*200/100))))) -> 202.5 | AQ45: 202.5 | AR45: 6.75 | AS45: 0 | AT45: 72 | AU45: 2160 | AV45: 14580 | AW45: 14580 | AX45: حافز اداء معلم أول أ ( 25 % ) | AY45: =IF(AX45="حافز اداء معلم ( 75 % )",O45*75/100,IF(AX45="حافز اداء معلم أول ( 50 % )",O45*50/100,IF(AX45="حافز اداء معلم أول أ ( 25 % )",O45*25/100,IF(AX45="حافز اداء معلم خبير ( 25 % )",O45*25/100,IF(AX45="حافز اداء كبير معلمين ( 25 % )",O45*25/100))))) -> 33.75 | AZ45: 33.75 | BA45: 1.125 | BB45: 0 | BC45: 72 | BD45: 2160 | BE45: 2430 | BF45: 2430 | BG45: حافز اداء معلم أول ( 50 % ) | BH45: =IF(BG45="حافز اداء معلم ( 75 % )",O45*75/100,IF(BG45="حافز اداء معلم أول ( 50 % )",O45*50/100,IF(BG45="حافز اداء معلم أول أ ( 25 % )",O45*25/100,IF(BG45="حافز اداء معلم خبير ( 25 % )",O45*25/100,IF(BG45="حافز اداء كبير معلمين ( 25 % )",O45*25/100))))) -> 67.5 | BI45: 67.5 | BJ45: 2.25 | BK45: 0 | BL45: 72 | BM45: 2160 | BN45: 4860 | BO45: 4860 | BP45: =O45*10 -> 1350 | BQ45: 1350 | BR45: 45 | BS45: 0 | BT45: 72 | BU45: 2160 | BV45: 97200 | BW45: 8100 | BX45: =O45*40/100 -> 54 | BY45: 54 | BZ45: 1.8 | CA45: 0 | CB45: 14 | CC45: 420 | CD45: 756 | CE45: 97.2 | CF45: =CE45+BW45+BO45+BF45+AW45+AN45+AE45+W45 -> 54367.2 | CH45: 25802162601273 | CI45: مدرسة مدينة المعلمين
A46: 34 | B46: محمد 34 | C46: 25602012501999 | D46: محكمة القضاء الادارى باسيوط | E46: اسيوط | F46: محافظة اسيوط - وكيل وزارة التربية والتعليم | G46: 1230لسنة2031 | H46: 2022-05-06 | I46: 2016-08-06 | J46: 2019-08-18 | K46: 113972.5333 | L46: 568 | M46: 258 | N46: 310 | O46: 310 | P46: =N46*50/100 -> 155 | Q46: 155 | R46: 5.166666667 | S46: 0 | T46: 72 | U46: 2160 | V46: 11160 | W46: 11160 | X46: =O46*25/100 -> 77.5 | Y46: 77.5 | Z46: 2.583333333 | AA46: 0 | AB46: 72 | AC46: 2160 | AD46: 5580 | AE46: 5580 | AF46: بدل اعتماد كبير معلمين ( 200 % ) | AG46: =IF(AF46="بدل اعتماد معلم ( 50 % )",O46*100/100,IF(AF46="بدل اعتماد معلم أول ( 125 % )",O46*125/100,IF(AF46="بدل اعتماد معلم أول أ ( 150 % )",O46*150/100,IF(AF46="بدل اعتماد معلم خبير ( 175 % )",O46*175/100,IF(AF46="بدل اعتماد كبير معلمين ( 200 % )",O46*200/100))))) -> 620 | AH46: 620 | AI46: 20.66666667 | AJ46: 0 | AK46: 72 | AL46: 2160 | AM46: 44640 | AN46: 44640 | AO46: بدل اعتماد معلم ( 50 % ) | AP46: =IF(AO46="بدل اعتماد معلم ( 50 % )",O46*100/100,IF(AO46="بدل اعتماد معلم أول ( 125 % )",O46*125/100,IF(AO46="بدل اعتماد معلم أول أ ( 150 % )",O46*150/100,IF(AO46="بدل اعتماد معلم خبير ( 175 % )",O46*175/100,IF(AO46="بدل اعتماد كبير معلمين ( 200 % )",O46*200/100))))) -> 310 | AQ46: 310 | AR46: 10.33333333 | AS46: 0 | AT46: 72 | AU46: 2160 | AV46: 22320 | AW46: 22320 | AX46: حافز اداء معلم خبير ( 25 % ) | AY46: =IF(AX46="حافز اداء معلم ( 75 % )",O46*75/100,IF(AX46="حافز اداء معلم أول ( 50 % )",O46*50/100,IF(AX46="حافز اداء معلم أول أ ( 25 % )",O46*25/100,IF(AX46="حافز اداء معلم خبير ( 25 % )",O46*25/100,IF(AX46="حافز اداء كبير معلمين ( 25 % )",O46*25/100))))) -> 77.5 | AZ46: 77.5 | BA46: 2.583333333 | BB46: 0 | BC46: 72 | BD46: 2160 | BE46: 5580 | BF46: 5580 | BG46: حافز اداء معلم أول أ ( 25 % ) | BH46: =IF(BG46="حافز اداء معلم ( 75 % )",O46*75/100,IF(BG46="حافز اداء معلم أول ( 50 % )",O46*50/100,IF(BG46="حافز اداء معلم أول أ ( 25 % )",O46*25/100,IF(BG46="حافز اداء معلم خبير ( 25 % )",O46*25/100,IF(BG46="حافز اداء كبير معلمين ( 25 % )",O46*25/100))))) -> 77.5 | BI46: 77.5 | BJ46: 2.583333333 | BK46: 0 | BL46: 72 | BM46: 2160 | BN46: 5580 | BO46: 5580 | BP46: =O46*10 -> 3100 | BQ46: 3100 | BR46: 103.3333333 | BS46: 0 | BT46: 72 | BU46: 2160 | BV46: 223200 | BW46: 18600 | BX46: =O46*40/100 -> 124 | BY46: 124 | BZ46: 4.133333333 | CA46: 0 | CB46: 14 | CC46: 420 | CD46: 1736 | CE46: 512.5333333 | CF46: =CE46+BW46+BO46+BF46+AW46+AN46+AE46+W46 -> 113972.5333 | CH46: 25602012501999 | CI46: مدرسة سميح السعيد
A47: 35 | B47: محمد 35 | C47: 25602242500052 | D47: محكمة القضاء الادارى باسيوط | E47: سوهاج | F47: محافظة اسيوط - وكيل وزارة التربية والتعليم | G47: 1230لسنة2032 | H47: 2022-05-06 | I47: 2016-08-06 | J47: 2019-08-18 | K47: 50572.13333 | L47: 425 | M47: 280 | N47: 145 | O47: 145 | P47: =N47*50/100 -> 72.5 | Q47: 72.5 | R47: 2.416666667 | S47: 0 | T47: 72 | U47: 2160 | V47: 5220 | W47: 5220 | X47: =O47*25/100 -> 36.25 | Y47: 36.25 | Z47: 1.208333333 | AA47: 0 | AB47: 72 | AC47: 2160 | AD47: 2610 | AE47: 2610 | AF47: بدل اعتماد معلم أول أ ( 150 % ) | AG47: =IF(AF47="بدل اعتماد معلم ( 50 % )",O47*100/100,IF(AF47="بدل اعتماد معلم أول ( 125 % )",O47*125/100,IF(AF47="بدل اعتماد معلم أول أ ( 150 % )",O47*150/100,IF(AF47="بدل اعتماد معلم خبير ( 175 % )",O47*175/100,IF(AF47="بدل اعتماد كبير معلمين ( 200 % )",O47*200/100))))) -> 217.5 | AH47: 217.5 | AI47: 7.25 | AJ47: 0 | AK47: 72 | AL47: 2160 | AM47: 15660 | AN47: 15660 | AO47: بدل اعتماد معلم أول ( 125 % ) | AP47: =IF(AO47="بدل اعتماد معلم ( 50 % )",O47*100/100,IF(AO47="بدل اعتماد معلم أول ( 125 % )",O47*125/100,IF(AO47="بدل اعتماد معلم أول أ ( 150 % )",O47*150/100,IF(AO47="بدل اعتماد معلم خبير ( 175 % )",O47*175/100,IF(AO47="بدل اعتماد كبير معلمين ( 200 % )",O47*200/100))))) -> 181.25 | AQ47: 181.25 | AR47: 6.041666667 | AS47: 0 | AT47: 72 | AU47: 2160 | AV47: 13050 | AW47: 13050 | AX47: حافز اداء كبير معلمين ( 25 % ) | AY47: =IF(AX47="حافز اداء معلم ( 75 % )",O47*75/100,IF(AX47="حافز اداء معلم أول ( 50 % )",O47*50/100,IF(AX47="حافز اداء معلم أول أ ( 25 % )",O47*25/100,IF(AX47="حافز اداء معلم خبير ( 25 % )",O47*25/100,IF(AX47="حافز اداء كبير معلمين ( 25 % )",O47*25/100))))) -> 36.25 | AZ47: 36.25 | BA47: 1.208333333 | BB47: 0 | BC47: 72 | BD47: 2160 | BE47: 2610 | BF47: 2610 | BG47: حافز اداء معلم خبير ( 25 % ) | BH47: =IF(BG47="حافز اداء معلم ( 75 % )",O47*75/100,IF(BG47="حافز اداء معلم أول ( 50 % )",O47*50/100,IF(BG47="حافز اداء معلم أول أ ( 25 % )",O47*25/100,IF(BG47="حافز اداء معلم خبير ( 25 % )",O47*25/100,IF(BG47="حافز اداء كبير معلمين ( 25 % )",O47*25/100))))) -> 36.25 | BI47: 36.25 | BJ47: 1.208333333 | BK47: 0 | BL47: 72 | BM47: 2160 | BN47: 2610 | BO47: 2610 | BP47: =O47*10 -> 1450 | BQ47: 1450 | BR47: 48.33333333 | BS47: 0 | BT47: 72 | BU47: 2160 | BV47: 104400 | BW47: 8700 | BX47: =O47*40/100 -> 58 | BY47: 58 | BZ47: 1.933333333 | CA47: 0 | CB47: 14 | CC47: 420 | CD47: 812 | CE47: 112.1333333 | CF47: =CE47+BW47+BO47+BF47+AW47+AN47+AE47+W47 -> 50572.13333 | CH47: 25602242500052 | CI47: ادارة اسيوط التعليمية
A48: 36 | B48: محمد 36 | C48: 25609142500964 | D48: محكمة القضاء الادارى باسيوط | E48: المنيا | F48: محافظة اسيوط - وكيل وزارة التربية والتعليم | G48: 1230لسنة2033 | H48: 2022-05-06 | I48: 2016-08-06 | J48: 2019-08-18 | K48: 5125.045333 | L48: 236 | M48: 222 | N48: 14 | O48: 14 | P48: =N48*50/100 -> 7 | Q48: 7 | R48: 0.2333333333 | S48: 0 | T48: 72 | U48: 2160 | V48: 504 | W48: 504 | X48: =O48*25/100 -> 3.5 | Y48: 3.5 | Z48: 0.1166666667 | AA48: 0 | AB48: 72 | AC48: 2160 | AD48: 252 | AE48: 252 | AF48: بدل اعتماد معلم ( 50 % ) | AG48: =IF(AF48="بدل اعتماد معلم ( 50 % )",O48*100/100,IF(AF48="بدل اعتماد معلم أول ( 125 % )",O48*125/100,IF(AF48="بدل اعتماد معلم أول أ ( 150 % )",O48*150/100,IF(AF48="بدل اعتماد معلم خبير ( 175 % )",O48*175/100,IF(AF48="بدل اعتماد كبير معلمين ( 200 % )",O48*200/100))))) -> 14 | AH48: 14 | AI48: 0.4666666667 | AJ48: 0 | AK48: 72 | AL48: 2160 | AM48: 1008 | AN48: 1008 | AO48: بدل اعتماد معلم أول أ ( 150 % ) | AP48: =IF(AO48="بدل اعتماد معلم ( 50 % )",O48*100/100,IF(AO48="بدل اعتماد معلم أول ( 125 % )",O48*125/100,IF(AO48="بدل اعتماد معلم أول أ ( 150 % )",O48*150/100,IF(AO48="بدل اعتماد معلم خبير ( 175 % )",O48*175/100,IF(AO48="بدل اعتماد كبير معلمين ( 200 % )",O48*200/100))))) -> 21 | AQ48: 21 | AR48: 0.7 | AS48: 0 | AT48: 72 | AU48: 2160 | AV48: 1512 | AW48: 1512 | AX48: حافز اداء معلم ( 75 % ) | AY48: =IF(AX48="حافز اداء معلم ( 75 % )",O48*75/100,IF(AX48="حافز اداء معلم أول ( 50 % )",O48*50/100,IF(AX48="حافز اداء معلم أول أ ( 25 % )",O48*25/100,IF(AX48="حافز اداء معلم خبير ( 25 % )",O48*25/100,IF(AX48="حافز اداء كبير معلمين ( 25 % )",O48*25/100))))) -> 10.5 | AZ48: 10.5 | BA48: 0.35 | BB48: 0 | BC48: 72 | BD48: 2160 | BE48: 756 | BF48: 756 | BG48: حافز اداء كبير معلمين ( 25 % ) | BH48: =IF(BG48="حافز اداء معلم ( 75 % )",O48*75/100,IF(BG48="حافز اداء معلم أول ( 50 % )",O48*50/100,IF(BG48="حافز اداء معلم أول أ ( 25 % )",O48*25/100,IF(BG48="حافز اداء معلم خبير ( 25 % )",O48*25/100,IF(BG48="حافز اداء كبير معلمين ( 25 % )",O48*25/100))))) -> 3.5 | BI48: 3.5 | BJ48: 0.1166666667 | BK48: 0 | BL48: 72 | BM48: 2160 | BN48: 252 | BO48: 252 | BP48: =O48*10 -> 140 | BQ48: 140 | BR48: 4.666666667 | BS48: 0 | BT48: 72 | BU48: 2160 | BV48: 10080 | BW48: 840 | BX48: =O48*40/100 -> 5.6 | BY48: 5.6 | BZ48: 0.1866666667 | CA48: 0 | CB48: 14 | CC48: 420 | CD48: 78.4 | CE48: 1.045333333 | CF48: =CE48+BW48+BO48+BF48+AW48+AN48+AE48+W48 -> 5125.045333 | CH48: 25609142500964 | CI48: مدرسة مدينة المعلمين
A49: 37 | B49: محمد 37 | C49: 25610182501252 | D49: محكمة القضاء الادارى باسيوط | E49: سوهاج | F49: محافظة اسيوط - وكيل وزارة التربية والتعليم | G49: 1230لسنة2034 | H49: 2022-05-06 | I49: 2016-08-06 | J49: 2019-08-18 | K49: 87853.75394 | L49: 486.07 | M49: 258 | N49: 228.07 | O49: 228.07 | P49: =N49*50/100 -> 114.035 | Q49: 114.03 | R49: 3.801 | S49: 0 | T49: 72 | U49: 2160 | V49: 8210.16 | W49: 8210.16 | X49: =O49*25/100 -> 57.0175 | Y49: 57.01 | Z49: 1.900333333 | AA49: 0 | AB49: 72 | AC49: 2160 | AD49: 4104.72 | AE49: 4104.72 | AF49: بدل اعتماد معلم أول ( 125 % ) | AG49: =IF(AF49="بدل اعتماد معلم ( 50 % )",O49*100/100,IF(AF49="بدل اعتماد معلم أول ( 125 % )",O49*125/100,IF(AF49="بدل اعتماد معلم أول أ ( 150 % )",O49*150/100,IF(AF49="بدل اعتماد معلم خبير ( 175 % )",O49*175/100,IF(AF49="بدل اعتماد كبير معلمين ( 200 % )",O49*200/100))))) -> 285.0875 | AH49: 285.08 | AI49: 9.502666667 | AJ49: 0 | AK49: 72 | AL49: 2160 | AM49: 20525.76 | AN49: 20525.76 | AO49: بدل اعتماد معلم خبير ( 175 % ) | AP49: =IF(AO49="بدل اعتماد معلم ( 50 % )",O49*100/100,IF(AO49="بدل اعتماد معلم أول ( 125 % )",O49*125/100,IF(AO49="بدل اعتماد معلم أول أ ( 150 % )",O49*150/100,IF(AO49="بدل اعتماد معلم خبير ( 175 % )",O49*175/100,IF(AO49="بدل اعتماد كبير معلمين ( 200 % )",O49*200/100))))) -> 399.1225 | AQ49: 399.12 | AR49: 13.304 | AS49: 0 | AT49: 72 | AU49: 2160 | AV49: 28736.64 | AW49: 28736.64 | AX49: حافز اداء معلم أول ( 50 % ) | AY49: =IF(AX49="حافز اداء معلم ( 75 % )",O49*75/100,IF(AX49="حافز اداء معلم أول ( 50 % )",O49*50/100,IF(AX49="حافز اداء معلم أول أ ( 25 % )",O49*25/100,IF(AX49="حافز اداء معلم خبير ( 25 % )",O49*25/100,IF(AX49="حافز اداء كبير معلمين ( 25 % )",O49*25/100))))) -> 114.035 | AZ49: 114.03 | BA49: 3.801 | BB49: 0 | BC49: 72 | BD49: 2160 | BE49: 8210.16 | BF49: 8210.16 | BG49: حافز اداء كبير معلمين ( 25 % ) | BH49: =IF(BG49="حافز اداء معلم ( 75 % )",O49*75/100,IF(BG49="حافز اداء معلم أول ( 50 % )",O49*50/100,IF(BG49="حافز اداء معلم أول أ ( 25 % )",O49*25/100,IF(BG49="حافز اداء معلم خبير ( 25 % )",O49*25/100,IF(BG49="حافز اداء كبير معلمين ( 25 % )",O49*25/100))))) -> 57.0175 | BI49: 57.01 | BJ49: 1.900333333 | BK49: 0 | BL49: 72 | BM49: 2160 | BN49: 4104.72 | BO49: 4104.72 | BP49: =O49*10 -> 2280.7 | BQ49: 2280.7 | BR49: 76.02333333 | BS49: 0 | BT49: 72 | BU49: 2160 | BV49: 164210.4 | BW49: 13684.2 | BX49: =O49*40/100 -> 91.228 | BY49: 91.22 | BZ49: 3.040666667 | CA49: 0 | CB49: 14 | CC49: 420 | CD49: 1277.08 | CE49: 277.3939387 | CF49: =CE49+BW49+BO49+BF49+AW49+AN49+AE49+W49 -> 87853.75394 | CH49: 25610182501252 | CI49: مدرسة سميح السعيد
A50: 38 | B50: محمد 38 | C50: 25808132501396 | D50: محكمة القضاء الادارى باسيوط | E50: اسيوط | F50: محافظة اسيوط - وكيل وزارة التربية والتعليم | G50: 1230لسنة2035 | H50: 2022-05-06 | I50: 2016-08-06 | J50: 2019-08-18 | K50: 65820 | L50: 500 | M50: 350 | N50: 150 | O50: 150 | P50: =N50*50/100 -> 75 | Q50: 75 | R50: 2.5 | S50: 0 | T50: 72 | U50: 2160 | V50: 5400 | W50: 5400 | X50: =O50*25/100 -> 37.5 | Y50: 37.5 | Z50: 1.25 | AA50: 0 | AB50: 72 | AC50: 2160 | AD50: 2700 | AE50: 2700 | AF50: بدل اعتماد معلم أول أ ( 150 % ) | AG50: =IF(AF50="بدل اعتماد معلم ( 50 % )",O50*100/100,IF(AF50="بدل اعتماد معلم أول ( 125 % )",O50*125/100,IF(AF50="بدل اعتماد معلم أول أ ( 150 % )",O50*150/100,IF(AF50="بدل اعتماد معلم خبير ( 175 % )",O50*175/100,IF(AF50="بدل اعتماد كبير معلمين ( 200 % )",O50*200/100))))) -> 225 | AH50: 225 | AI50: 7.5 | AJ50: 0 | AK50: 72 | AL50: 2160 | AM50: 16200 | AN50: 16200 | AO50: بدل اعتماد كبير معلمين ( 200 % ) | AP50: =IF(AO50="بدل اعتماد معلم ( 50 % )",O50*100/100,IF(AO50="بدل اعتماد معلم أول ( 125 % )",O50*125/100,IF(AO50="بدل اعتماد معلم أول أ ( 150 % )",O50*150/100,IF(AO50="بدل اعتماد معلم خبير ( 175 % )",O50*175/100,IF(AO50="بدل اعتماد كبير معلمين ( 200 % )",O50*200/100))))) -> 300 | AQ50: 300 | AR50: 10 | AS50: 0 | AT50: 72 | AU50: 2160 | AV50: 21600 | AW50: 21600 | AX50: حافز اداء معلم أول أ ( 25 % ) | AY50: =IF(AX50="حافز اداء معلم ( 75 % )",O50*75/100,IF(AX50="حافز اداء معلم أول ( 50 % )",O50*50/100,IF(AX50="حافز اداء معلم أول أ ( 25 % )",O50*25/100,IF(AX50="حافز اداء معلم خبير ( 25 % )",O50*25/100,IF(AX50="حافز اداء كبير معلمين ( 25 % )",O50*25/100))))) -> 37.5 | AZ50: 37.5 | BA50: 1.25 | BB50: 0 | BC50: 72 | BD50: 2160 | BE50: 2700 | BF50: 2700 | BG50: حافز اداء معلم ( 75 % ) | BH50: =IF(BG50="حافز اداء معلم ( 75 % )",O50*75/100,IF(BG50="حافز اداء معلم أول ( 50 % )",O50*50/100,IF(BG50="حافز اداء معلم أول أ ( 25 % )",O50*25/100,IF(BG50="حافز اداء معلم خبير ( 25 % )",O50*25/100,IF(BG50="حافز اداء كبير معلمين ( 25 % )",O50*25/100))))) -> 112.5 | BI50: 112.5 | BJ50: 3.75 | BK50: 0 | BL50: 72 | BM50: 2160 | BN50: 8100 | BO50: 8100 | BP50: =O50*10 -> 1500 | BQ50: 1500 | BR50: 50 | BS50: 0 | BT50: 72 | BU50: 2160 | BV50: 108000 | BW50: 9000 | BX50: =O50*40/100 -> 60 | BY50: 60 | BZ50: 2 | CA50: 0 | CB50: 14 | CC50: 420 | CD50: 840 | CE50: 120 | CF50: =CE50+BW50+BO50+BF50+AW50+AN50+AE50+W50 -> 65820 | CH50: 25808132501396 | CI50: ادارة اسيوط التعليمية
A51: 39 | B51: محمد 39 | C51: 25706262500033 | D51: محكمة القضاء الادارى باسيوط | E51: سوهاج | F51: محافظة اسيوط - وكيل وزارة التربية والتعليم | G51: 1230لسنة2036 | H51: 2022-05-06 | I51: 2016-08-06 | J51: 2019-08-18 | K51: 71204.72533 | L51: 450 | M51: 256 | N51: 194 | O51: 194 | P51: =N51*50/100 -> 97 | Q51: 97 | R51: 3.233333333 | S51: 0 | T51: 72 | U51: 2160 | V51: 6984 | W51: 6984 | X51: =O51*25/100 -> 48.5 | Y51: 48.5 | Z51: 1.616666667 | AA51: 0 | AB51: 72 | AC51: 2160 | AD51: 3492 | AE51: 3492 | AF51: بدل اعتماد معلم خبير ( 175 % ) | AG51: =IF(AF51="بدل اعتماد معلم ( 50 % )",O51*100/100,IF(AF51="بدل اعتماد معلم أول ( 125 % )",O51*125/100,IF(AF51="بدل اعتماد معلم أول أ ( 150 % )",O51*150/100,IF(AF51="بدل اعتماد معلم خبير ( 175 % )",O51*175/100,IF(AF51="بدل اعتماد كبير معلمين ( 200 % )",O51*200/100))))) -> 339.5 | AH51: 339.5 | AI51: 11.31666667 | AJ51: 0 | AK51: 72 | AL51: 2160 | AM51: 24444 | AN51: 24444 | AO51: بدل اعتماد معلم ( 50 % ) | AP51: =IF(AO51="بدل اعتماد معلم ( 50 % )",O51*100/100,IF(AO51="بدل اعتماد معلم أول ( 125 % )",O51*125/100,IF(AO51="بدل اعتماد معلم أول أ ( 150 % )",O51*150/100,IF(AO51="بدل اعتماد معلم خبير ( 175 % )",O51*175/100,IF(AO51="بدل اعتماد كبير معلمين ( 200 % )",O51*200/100))))) -> 194 | AQ51: 194 | AR51: 6.466666667 | AS51: 0 | AT51: 72 | AU51: 2160 | AV51: 13968 | AW51: 13968 | AX51: حافز اداء معلم خبير ( 25 % ) | AY51: =IF(AX51="حافز اداء معلم ( 75 % )",O51*75/100,IF(AX51="حافز اداء معلم أول ( 50 % )",O51*50/100,IF(AX51="حافز اداء معلم أول أ ( 25 % )",O51*25/100,IF(AX51="حافز اداء معلم خبير ( 25 % )",O51*25/100,IF(AX51="حافز اداء كبير معلمين ( 25 % )",O51*25/100))))) -> 48.5 | AZ51: 48.5 | BA51: 1.616666667 | BB51: 0 | BC51: 72 | BD51: 2160 | BE51: 3492 | BF51: 3492 | BG51: حافز اداء معلم أول ( 50 % ) | BH51: =IF(BG51="حافز اداء معلم ( 75 % )",O51*75/100,IF(BG51="حافز اداء معلم أول ( 50 % )",O51*50/100,IF(BG51="حافز اداء معلم أول أ ( 25 % )",O51*25/100,IF(BG51="حافز اداء معلم خبير ( 25 % )",O51*25/100,IF(BG51="حافز اداء كبير معلمين ( 25 % )",O51*25/100))))) -> 97 | BI51: 97 | BJ51: 3.233333333 | BK51: 0 | BL51: 72 | BM51: 2160 | BN51: 6984 | BO51: 6984 | BP51: =O51*10 -> 1940 | BQ51: 1940 | BR51: 64.66666667 | BS51: 0 | BT51: 72 | BU51: 2160 | BV51: 139680 | BW51: 11640 | BX51: =O51*40/100 -> 77.6 | BY51: 77.6 | BZ51: 2.586666667 | CA51: 0 | CB51: 14 | CC51: 420 | CD51: 1086.4 | CE51: 200.7253333 | CF51: =CE51+BW51+BO51+BF51+AW51+AN51+AE51+W51 -> 71204.72533 | CH51: 25706262500033 | CI51: مدرسة مدينة المعلمين
A52: 40 | B52: محمد 40 | C52: 25707062500725 | D52: محكمة القضاء الادارى باسيوط | E52: سوهاج | F52: محافظة اسيوط - وكيل وزارة التربية والتعليم | G52: 1230لسنة2037 | H52: 2022-05-06 | I52: 2016-08-06 | J52: 2019-08-18 | K52: 8450.581333 | L52: 258 | M52: 236 | N52: 22 | O52: 22 | P52: =N52*50/100 -> 11 | Q52: 11 | R52: 0.3666666667 | S52: 0 | T52: 72 | U52: 2160 | V52: 792 | W52: 792 | X52: =O52*25/100 -> 5.5 | Y52: 5.5 | Z52: 0.1833333333 | AA52: 0 | AB52: 72 | AC52: 2160 | AD52: 396 | AE52: 396 | AF52: بدل اعتماد كبير معلمين ( 200 % ) | AG52: =IF(AF52="بدل اعتماد معلم ( 50 % )",O52*100/100,IF(AF52="بدل اعتماد معلم أول ( 125 % )",O52*125/100,IF(AF52="بدل اعتماد معلم أول أ ( 150 % )",O52*150/100,IF(AF52="بدل اعتماد معلم خبير ( 175 % )",O52*175/100,IF(AF52="بدل اعتماد كبير معلمين ( 200 % )",O52*200/100))))) -> 44 | AH52: 44 | AI52: 1.466666667 | AJ52: 0 | AK52: 72 | AL52: 2160 | AM52: 3168 | AN52: 3168 | AO52: بدل اعتماد معلم أول ( 125 % ) | AP52: =IF(AO52="بدل اعتماد معلم ( 50 % )",O52*100/100,IF(AO52="بدل اعتماد معلم أول ( 125 % )",O52*125/100,IF(AO52="بدل اعتماد معلم أول أ ( 150 % )",O52*150/100,IF(AO52="بدل اعتماد معلم خبير ( 175 % )",O52*175/100,IF(AO52="بدل اعتماد كبير معلمين ( 200 % )",O52*200/100))))) -> 27.5 | AQ52: 27.5 | AR52: 0.9166666667 | AS52: 0 | AT52: 72 | AU52: 2160 | AV52: 1980 | AW52: 1980 | AX52: حافز اداء كبير معلمين ( 25 % ) | AY52: =IF(AX52="حافز اداء معلم ( 75 % )",O52*75/100,IF(AX52="حافز اداء معلم أول ( 50 % )",O52*50/100,IF(AX52="حافز اداء معلم أول أ ( 25 % )",O52*25/100,IF(AX52="حافز اداء معلم خبير ( 25 % )",O52*25/100,IF(AX52="حافز اداء كبير معلمين ( 25 % )",O52*25/100))))) -> 5.5 | AZ52: 5.5 | BA52: 0.1833333333 | BB52: 0 | BC52: 72 | BD52: 2160 | BE52: 396 | BF52: 396 | BG52: حافز اداء معلم أول أ ( 25 % ) | BH52: =IF(BG52="حافز اداء معلم ( 75 % )",O52*75/100,IF(BG52="حافز اداء معلم أول ( 50 % )",O52*50/100,IF(BG52="حافز اداء معلم أول أ ( 25 % )",O52*25/100,IF(BG52="حافز اداء معلم خبير ( 25 % )",O52*25/100,IF(BG52="حافز اداء كبير معلمين ( 25 % )",O52*25/100))))) -> 5.5 | BI52: 5.5 | BJ52: 0.1833333333 | BK52: 0 | BL52: 72 | BM52: 2160 | BN52: 396 | BO52: 396 | BP52: =O52*10 -> 220 | BQ52: 220 | BR52: 7.333333333 | BS52: 0 | BT52: 72 | BU52: 2160 | BV52: 15840 | BW52: 1320 | BX52: =O52*40/100 -> 8.8 | BY52: 8.8 | BZ52: 0.2933333333 | CA52: 0 | CB52: 14 | CC52: 420 | CD52: 123.2 | CE52: 2.581333333 | CF52: =CE52+BW52+BO52+BF52+AW52+AN52+AE52+W52 -> 8450.581333 | CH52: 25707062500725 | CI52: مدرسة سميح السعيد
A53: 41 | B53: محمد 41 | C53: 25708232500058 | D53: محكمة القضاء الادارى باسيوط | E53: اسيوط | F53: محافظة اسيوط - وكيل وزارة التربية والتعليم | G53: 1230لسنة2038 | H53: 2022-05-06 | I53: 2016-08-06 | J53: 2019-08-18 | K53: 95151.76533 | L53: 659 | M53: 400 | N53: 259 | O53: 259 | P53: =N53*50/100 -> 129.5 | Q53: 129.5 | R53: 4.316666667 | S53: 0 | T53: 72 | U53: 2160 | V53: 9324 | W53: 9324 | X53: =O53*25/100 -> 64.75 | Y53: 64.75 | Z53: 2.158333333 | AA53: 0 | AB53: 72 | AC53: 2160 | AD53: 4662 | AE53: 4662 | AF53: بدل اعتماد معلم ( 50 % ) | AG53: =IF(AF53="بدل اعتماد معلم ( 50 % )",O53*100/100,IF(AF53="بدل اعتماد معلم أول ( 125 % )",O53*125/100,IF(AF53="بدل اعتماد معلم أول أ ( 150 % )",O53*150/100,IF(AF53="بدل اعتماد معلم خبير ( 175 % )",O53*175/100,IF(AF53="بدل اعتماد كبير معلمين ( 200 % )",O53*200/100))))) -> 259 | AH53: 259 | AI53: 8.633333333 | AJ53: 0 | AK53: 72 | AL53: 2160 | AM53: 18648 | AN53: 18648 | AO53: بدل اعتماد معلم أول أ ( 150 % ) | AP53: =IF(AO53="بدل اعتماد معلم ( 50 % )",O53*100/100,IF(AO53="بدل اعتماد معلم أول ( 125 % )",O53*125/100,IF(AO53="بدل اعتماد معلم أول أ ( 150 % )",O53*150/100,IF(AO53="بدل اعتماد معلم خبير ( 175 % )",O53*175/100,IF(AO53="بدل اعتماد كبير معلمين ( 200 % )",O53*200/100))))) -> 388.5 | AQ53: 388.5 | AR53: 12.95 | AS53: 0 | AT53: 72 | AU53: 2160 | AV53: 27972 | AW53: 27972 | AX53: حافز اداء معلم ( 75 % ) | AY53: =IF(AX53="حافز اداء معلم ( 75 % )",O53*75/100,IF(AX53="حافز اداء معلم أول ( 50 % )",O53*50/100,IF(AX53="حافز اداء معلم أول أ ( 25 % )",O53*25/100,IF(AX53="حافز اداء معلم خبير ( 25 % )",O53*25/100,IF(AX53="حافز اداء كبير معلمين ( 25 % )",O53*25/100))))) -> 194.25 | AZ53: 194.25 | BA53: 6.475 | BB53: 0 | BC53: 72 | BD53: 2160 | BE53: 13986 | BF53: 13986 | BG53: حافز اداء معلم خبير ( 25 % ) | BH53: =IF(BG53="حافز اداء معلم ( 75 % )",O53*75/100,IF(BG53="حافز اداء معلم أول ( 50 % )",O53*50/100,IF(BG53="حافز اداء معلم أول أ ( 25 % )",O53*25/100,IF(BG53="حافز اداء معلم خبير ( 25 % )",O53*25/100,IF(BG53="حافز اداء كبير معلمين ( 25 % )",O53*25/100))))) -> 64.75 | BI53: 64.75 | BJ53: 2.158333333 | BK53: 0 | BL53: 72 | BM53: 2160 | BN53: 4662 | BO53: 4662 | BP53: =O53*10 -> 2590 | BQ53: 2590 | BR53: 86.33333333 | BS53: 0 | BT53: 72 | BU53: 2160 | BV53: 186480 | BW53: 15540 | BX53: =O53*40/100 -> 103.6 | BY53: 103.6 | BZ53: 3.453333333 | CA53: 0 | CB53: 14 | CC53: 420 | CD53: 1450.4 | CE53: 357.7653333 | CF53: =CE53+BW53+BO53+BF53+AW53+AN53+AE53+W53 -> 95151.76533 | CH53: 25708232500058 | CI53: ادارة اسيوط التعليمية
A54: 42 | B54: محمد 42 | C54: 28803042501531 | D54: محكمة القضاء الادارى باسيوط | E54: سوهاج | F54: محافظة اسيوط - وكيل وزارة التربية والتعليم | G54: 1230لسنة2039 | H54: 2022-05-06 | I54: 2016-08-06 | J54: 2019-08-18 | K54: 11556.53333 | L54: 400 | M54: 365 | N54: 35 | O54: 35 | P54: =N54*50/100 -> 17.5 | Q54: 17.5 | R54: 0.5833333333 | S54: 0 | T54: 72 | U54: 2160 | V54: 1260 | W54: 1260 | X54: =O54*25/100 -> 8.75 | Y54: 8.75 | Z54: 0.2916666667 | AA54: 0 | AB54: 72 | AC54: 2160 | AD54: 630 | AE54: 630 | AF54: بدل اعتماد معلم أول ( 125 % ) | AG54: =IF(AF54="بدل اعتماد معلم ( 50 % )",O54*100/100,IF(AF54="بدل اعتماد معلم أول ( 125 % )",O54*125/100,IF(AF54="بدل اعتماد معلم أول أ ( 150 % )",O54*150/100,IF(AF54="بدل اعتماد معلم خبير ( 175 % )",O54*175/100,IF(AF54="بدل اعتماد كبير معلمين ( 200 % )",O54*200/100))))) -> 43.75 | AH54: 43.75 | AI54: 1.458333333 | AJ54: 0 | AK54: 72 | AL54: 2160 | AM54: 3150 | AN54: 3150 | AO54: بدل اعتماد معلم ( 50 % ) | AP54: =IF(AO54="بدل اعتماد معلم ( 50 % )",O54*100/100,IF(AO54="بدل اعتماد معلم أول ( 125 % )",O54*125/100,IF(AO54="بدل اعتماد معلم أول أ ( 150 % )",O54*150/100,IF(AO54="بدل اعتماد معلم خبير ( 175 % )",O54*175/100,IF(AO54="بدل اعتماد كبير معلمين ( 200 % )",O54*200/100))))) -> 35 | AQ54: 35 | AR54: 1.166666667 | AS54: 0 | AT54: 72 | AU54: 2160 | AV54: 2520 | AW54: 2520 | AX54: حافز اداء معلم أول ( 50 % ) | AY54: =IF(AX54="حافز اداء معلم ( 75 % )",O54*75/100,IF(AX54="حافز اداء معلم أول ( 50 % )",O54*50/100,IF(AX54="حافز اداء معلم أول أ ( 25 % )",O54*25/100,IF(AX54="حافز اداء معلم خبير ( 25 % )",O54*25/100,IF(AX54="حافز اداء كبير معلمين ( 25 % )",O54*25/100))))) -> 17.5 | AZ54: 17.5 | BA54: 0.5833333333 | BB54: 0 | BC54: 72 | BD54: 2160 | BE54: 1260 | BF54: 1260 | BG54: حافز اداء كبير معلمين ( 25 % ) | BH54: =IF(BG54="حافز اداء معلم ( 75 % )",O54*75/100,IF(BG54="حافز اداء معلم أول ( 50 % )",O54*50/100,IF(BG54="حافز اداء معلم أول أ ( 25 % )",O54*25/100,IF(BG54="حافز اداء معلم خبير ( 25 % )",O54*25/100,IF(BG54="حافز اداء كبير معلمين ( 25 % )",O54*25/100))))) -> 8.75 | BI54: 8.75 | BJ54: 0.2916666667 | BK54: 0 | BL54: 72 | BM54: 2160 | BN54: 630 | BO54: 630 | BP54: =O54*10 -> 350 | BQ54: 350 | BR54: 11.66666667 | BS54: 0 | BT54: 72 | BU54: 2160 | BV54: 25200 | BW54: 2100 | BX54: =O54*40/100 -> 14 | BY54: 14 | BZ54: 0.4666666667 | CA54: 0 | CB54: 14 | CC54: 420 | CD54: 196 | CE54: 6.533333333 | CF54: =CE54+BW54+BO54+BF54+AW54+AN54+AE54+W54 -> 11556.53333 | CH54: 28803042501531 | CI54: مدرسة مدينة المعلمين
A55: 43 | B55: محمد 43 | C55: 25901242500093 | D55: محكمة القضاء الادارى باسيوط | E55: المنيا | F55: محافظة اسيوط - وكيل وزارة التربية والتعليم | G55: 1230لسنة2040 | H55: 2022-05-06 | I55: 2016-08-06 | J55: 2019-08-18 | K55: 83192.832 | L55: 452 | M55: 236 | N55: 216 | O55: 216 | P55: =N55*50/100 -> 108 | Q55: 108 | R55: 3.6 | S55: 0 | T55: 72 | U55: 2160 | V55: 7776 | W55: 7776 | X55: =O55*25/100 -> 54 | Y55: 54 | Z55: 1.8 | AA55: 0 | AB55: 72 | AC55: 2160 | AD55: 3888 | AE55: 3888 | AF55: بدل اعتماد معلم أول أ ( 150 % ) | AG55: =IF(AF55="بدل اعتماد معلم ( 50 % )",O55*100/100,IF(AF55="بدل اعتماد معلم أول ( 125 % )",O55*125/100,IF(AF55="بدل اعتماد معلم أول أ ( 150 % )",O55*150/100,IF(AF55="بدل اعتماد معلم خبير ( 175 % )",O55*175/100,IF(AF55="بدل اعتماد كبير معلمين ( 200 % )",O55*200/100))))) -> 324 | AH55: 324 | AI55: 10.8 | AJ55: 0 | AK55: 72 | AL55: 2160 | AM55: 23328 | AN55: 23328 | AO55: بدل اعتماد معلم أول ( 125 % ) | AP55: =IF(AO55="بدل اعتماد معلم ( 50 % )",O55*100/100,IF(AO55="بدل اعتماد معلم أول ( 125 % )",O55*125/100,IF(AO55="بدل اعتماد معلم أول أ ( 150 % )",O55*150/100,IF(AO55="بدل اعتماد معلم خبير ( 175 % )",O55*175/100,IF(AO55="بدل اعتماد كبير معلمين ( 200 % )",O55*200/100))))) -> 270 | AQ55: 270 | AR55: 9 | AS55: 0 | AT55: 72 | AU55: 2160 | AV55: 19440 | AW55: 19440 | AX55: حافز اداء معلم أول أ ( 25 % ) | AY55: =IF(AX55="حافز اداء معلم ( 75 % )",O55*75/100,IF(AX55="حافز اداء معلم أول ( 50 % )",O55*50/100,IF(AX55="حافز اداء معلم أول أ ( 25 % )",O55*25/100,IF(AX55="حافز اداء معلم خبير ( 25 % )",O55*25/100,IF(AX55="حافز اداء كبير معلمين ( 25 % )",O55*25/100))))) -> 54 | AZ55: 54 | BA55: 1.8 | BB55: 0 | BC55: 72 | BD55: 2160 | BE55: 3888 | BF55: 3888 | BG55: حافز اداء معلم ( 75 % ) | BH55: =IF(BG55="حافز اداء معلم ( 75 % )",O55*75/100,IF(BG55="حافز اداء معلم أول ( 50 % )",O55*50/100,IF(BG55="حافز اداء معلم أول أ ( 25 % )",O55*25/100,IF(BG55="حافز اداء معلم خبير ( 25 % )",O55*25/100,IF(BG55="حافز اداء كبير معلمين ( 25 % )",O55*25/100))))) -> 162 | BI55: 162 | BJ55: 5.4 | BK55: 0 | BL55: 72 | BM55: 2160 | BN55: 11664 | BO55: 11664 | BP55: =O55*10 -> 2160 | BQ55: 2160 | BR55: 72 | BS55: 0 | BT55: 72 | BU55: 2160 | BV55: 155520 | BW55: 12960 | BX55: =O55*40/100 -> 86.4 | BY55: 86.4 | BZ55: 2.88 | CA55: 0 | CB55: 14 | CC55: 420 | CD55: 1209.6 | CE55: 248.832 | CF55: =CE55+BW55+BO55+BF55+AW55+AN55+AE55+W55 -> 83192.832 | CH55: 25901242500093 | CI55: مدرسة سميح السعيد
A56: 44 | B56: محمد 44 | C56: 25903182500385 | D56: محكمة القضاء الادارى باسيوط | E56: سوهاج | F56: محافظة اسيوط - وكيل وزارة التربية والتعليم | G56: 1230لسنة2041 | H56: 2022-05-06 | I56: 2016-08-06 | J56: 2019-08-18 | K56: 138292.1333 | L56: 653 | M56: 258 | N56: 395 | O56: 395 | P56: =N56*50/100 -> 197.5 | Q56: 197.5 | R56: 6.583333333 | S56: 0 | T56: 72 | U56: 2160 | V56: 14220 | W56: 14220 | X56: =O56*25/100 -> 98.75 | Y56: 98.75 | Z56: 3.291666667 | AA56: 0 | AB56: 72 | AC56: 2160 | AD56: 7110 | AE56: 7110 | AF56: بدل اعتماد معلم ( 50 % ) | AG56: =IF(AF56="بدل اعتماد معلم ( 50 % )",O56*100/100,IF(AF56="بدل اعتماد معلم أول ( 125 % )",O56*125/100,IF(AF56="بدل اعتماد معلم أول أ ( 150 % )",O56*150/100,IF(AF56="بدل اعتماد معلم خبير ( 175 % )",O56*175/100,IF(AF56="بدل اعتماد كبير معلمين ( 200 % )",O56*200/100))))) -> 395 | AH56: 395 | AI56: 13.16666667 | AJ56: 0 | AK56: 72 | AL56: 2160 | AM56: 28440 | AN56: 28440 | AO56: بدل اعتماد معلم أول أ ( 150 % ) | AP56: =IF(AO56="بدل اعتماد معلم ( 50 % )",O56*100/100,IF(AO56="بدل اعتماد معلم أول ( 125 % )",O56*125/100,IF(AO56="بدل اعتماد معلم أول أ ( 150 % )",O56*150/100,IF(AO56="بدل اعتماد معلم خبير ( 175 % )",O56*175/100,IF(AO56="بدل اعتماد كبير معلمين ( 200 % )",O56*200/100))))) -> 592.5 | AQ56: 592.5 | AR56: 19.75 | AS56: 0 | AT56: 72 | AU56: 2160 | AV56: 42660 | AW56: 42660 | AX56: حافز اداء معلم خبير ( 25 % ) | AY56: =IF(AX56="حافز اداء معلم ( 75 % )",O56*75/100,IF(AX56="حافز اداء معلم أول ( 50 % )",O56*50/100,IF(AX56="حافز اداء معلم أول أ ( 25 % )",O56*25/100,IF(AX56="حافز اداء معلم خبير ( 25 % )",O56*25/100,IF(AX56="حافز اداء كبير معلمين ( 25 % )",O56*25/100))))) -> 98.75 | AZ56: 98.75 | BA56: 3.291666667 | BB56: 0 | BC56: 72 | BD56: 2160 | BE56: 7110 | BF56: 7110 | BG56: حافز اداء معلم أول ( 50 % ) | BH56: =IF(BG56="حافز اداء معلم ( 75 % )",O56*75/100,IF(BG56="حافز اداء معلم أول ( 50 % )",O56*50/100,IF(BG56="حافز اداء معلم أول أ ( 25 % )",O56*25/100,IF(BG56="حافز اداء معلم خبير ( 25 % )",O56*25/100,IF(BG56="حافز اداء كبير معلمين ( 25 % )",O56*25/100))))) -> 197.5 | BI56: 197.5 | BJ56: 6.583333333 | BK56: 0 | BL56: 72 | BM56: 2160 | BN56: 14220 | BO56: 14220 | BP56: =O56*10 -> 3950 | BQ56: 3950 | BR56: 131.6666667 | BS56: 0 | BT56: 72 | BU56: 2160 | BV56: 284400 | BW56: 23700 | BX56: =O56*40/100 -> 158 | BY56: 158 | BZ56: 5.266666667 | CA56: 0 | CB56: 14 | CC56: 420 | CD56: 2212 | CE56: 832.1333333 | CF56: =CE56+BW56+BO56+BF56+AW56+AN56+AE56+W56 -> 138292.1333 | CH56: 25903182500385 | CI56: ادارة اسيوط التعليمية
A57: 45 | B57: محمد 45 | C57: 25906172501099 | D57: محكمة القضاء الادارى باسيوط | E57: اسيوط | F57: محافظة اسيوط - وكيل وزارة التربية والتعليم | G57: 1230لسنة2042 | H57: 2022-05-06 | I57: 2016-08-06 | J57: 2019-08-18 | K57: 36653.33333 | L57: 450 | M57: 350 | N57: 100 | O57: 100 | P57: =N57*50/100 -> 50 | Q57: 50 | R57: 1.666666667 | S57: 0 | T57: 72 | U57: 2160 | V57: 3600 | W57: 3600 | X57: =O57*25/100 -> 25 | Y57: 25 | Z57: 0.8333333333 | AA57: 0 | AB57: 72 | AC57: 2160 | AD57: 1800 | AE57: 1800 | AF57: بدل اعتماد معلم أول ( 125 % ) | AG57: =IF(AF57="بدل اعتماد معلم ( 50 % )",O57*100/100,IF(AF57="بدل اعتماد معلم أول ( 125 % )",O57*125/100,IF(AF57="بدل اعتماد معلم أول أ ( 150 % )",O57*150/100,IF(AF57="بدل اعتماد معلم خبير ( 175 % )",O57*175/100,IF(AF57="بدل اعتماد كبير معلمين ( 200 % )",O57*200/100))))) -> 125 | AH57: 125 | AI57: 4.166666667 | AJ57: 0 | AK57: 72 | AL57: 2160 | AM57: 9000 | AN57: 9000 | AO57: بدل اعتماد معلم خبير ( 175 % ) | AP57: =IF(AO57="بدل اعتماد معلم ( 50 % )",O57*100/100,IF(AO57="بدل اعتماد معلم أول ( 125 % )",O57*125/100,IF(AO57="بدل اعتماد معلم أول أ ( 150 % )",O57*150/100,IF(AO57="بدل اعتماد معلم خبير ( 175 % )",O57*175/100,IF(AO57="بدل اعتماد كبير معلمين ( 200 % )",O57*200/100))))) -> 175 | AQ57: 175 | AR57: 5.833333333 | AS57: 0 | AT57: 72 | AU57: 2160 | AV57: 12600 | AW57: 12600 | AX57: حافز اداء كبير معلمين ( 25 % ) | AY57: =IF(AX57="حافز اداء معلم ( 75 % )",O57*75/100,IF(AX57="حافز اداء معلم أول ( 50 % )",O57*50/100,IF(AX57="حافز اداء معلم أول أ ( 25 % )",O57*25/100,IF(AX57="حافز اداء معلم خبير ( 25 % )",O57*25/100,IF(AX57="حافز اداء كبير معلمين ( 25 % )",O57*25/100))))) -> 25 | AZ57: 25 | BA57: 0.8333333333 | BB57: 0 | BC57: 72 | BD57: 2160 | BE57: 1800 | BF57: 1800 | BG57: حافز اداء معلم أول أ ( 25 % ) | BH57: =IF(BG57="حافز اداء معلم ( 75 % )",O57*75/100,IF(BG57="حافز اداء معلم أول ( 50 % )",O57*50/100,IF(BG57="حافز اداء معلم أول أ ( 25 % )",O57*25/100,IF(BG57="حافز اداء معلم خبير ( 25 % )",O57*25/100,IF(BG57="حافز اداء كبير معلمين ( 25 % )",O57*25/100))))) -> 25 | BI57: 25 | BJ57: 0.8333333333 | BK57: 0 | BL57: 72 | BM57: 2160 | BN57: 1800 | BO57: 1800 | BP57: =O57*10 -> 1000 | BQ57: 1000 | BR57: 33.33333333 | BS57: 0 | BT57: 72 | BU57: 2160 | BV57: 72000 | BW57: 6000 | BX57: =O57*40/100 -> 40 | BY57: 40 | BZ57: 1.333333333 | CA57: 0 | CB57: 14 | CC57: 420 | CD57: 560 | CE57: 53.33333333 | CF57: =CE57+BW57+BO57+BF57+AW57+AN57+AE57+W57 -> 36653.33333 | CH57: 25906172501099 | CI57: مدرسة مدينة المعلمين
A58: البند المطلوب تعزيزة : بند بدل المعلم 4 / 45 وبند بدل الاعتماد 4 / 46 وبند حافز الاداء 3 / 23 وبند حافز الاثابة 3 / 3 وبند المكافاة 3 / 14 وبند الجهود غير العادية للمعلمين بادارة اسيوط التعليمية ومدارسها الصادرة لهم احكام قضائية وبياناتهم كالاتى | N58: 0 | O58: 0 | Q58: 0 | R58: 0 | S58: 0 | T58: 72 | U58: 2160 | V58: 0 | W58: 0 | Y58: 0 | Z58: 0 | AA58: 0 | AB58: 72 | AC58: 2160 | AD58: 0 | AE58: 0 | AH58: 0 | AI58: 0 | AJ58: 0 | AK58: 72 | AL58: 2160 | AM58: 0 | AN58: 0 | AQ58: 0 | AR58: =AQ58/30 -> 0 | AS58: 0 | AT58: 72 | AU58: 2160 | AV58: 0 | AW58: 0 | AZ58: 0 | BA58: 0 | BB58: 0 | BC58: 72 | BD58: 2160 | BE58: 0 | BF58: 0 | BI58: 0 | BJ58: 0 | BK58: 0 | BL58: 72 | BM58: 2160 | BN58: 0 | BO58: 0 | BQ58: 0 | BR58: =BQ58/30 -> 0 | BS58: 0 | BT58: 72 | BU58: 2160 | BV58: 0 | BY58: 0 | BZ58: 0 | CA58: 0 | CB58: 14 | CC58: 420 | CD58: 0 | CI58: مدرسة سميح السعيد
A59: 46 | B59: محمد 46 | C59: 25907182500551 | D59: محكمة القضاء الادارى باسيوط | E59: سوهاج | F59: محافظة اسيوط - وكيل وزارة التربية والتعليم | G59: 1266لسنة2042 | H59: 2022-05-06 | I59: 2016-08-06 | J59: 2019-08-18 | K59: 71095.968 | L59: 420 | M59: 258 | N59: 162 | O59: 162 | P59: =N59*50/100 -> 81 | Q59: 81 | R59: 2.7 | S59: 0 | T59: 72 | U59: 2160 | V59: 5832 | W59: 5832 | X59: =O59*25/100 -> 40.5 | Y59: 40.5 | Z59: 1.35 | AA59: 0 | AB59: 72 | AC59: 2160 | AD59: 2916 | AE59: 2916 | AF59: بدل اعتماد معلم خبير ( 175 % ) | AG59: =IF(AF59="بدل اعتماد معلم ( 50 % )",O59*100/100,IF(AF59="بدل اعتماد معلم أول ( 125 % )",O59*125/100,IF(AF59="بدل اعتماد معلم أول أ ( 150 % )",O59*150/100,IF(AF59="بدل اعتماد معلم خبير ( 175 % )",O59*175/100,IF(AF59="بدل اعتماد كبير معلمين ( 200 % )",O59*200/100))))) -> 283.5 | AH59: 283.5 | AI59: 9.45 | AJ59: 0 | AK59: 72 | AL59: 2160 | AM59: 20412 | AN59: 20412 | AO59: بدل اعتماد معلم أول أ ( 150 % ) | AP59: =IF(AO59="بدل اعتماد معلم ( 50 % )",O59*100/100,IF(AO59="بدل اعتماد معلم أول ( 125 % )",O59*125/100,IF(AO59="بدل اعتماد معلم أول أ ( 150 % )",O59*150/100,IF(AO59="بدل اعتماد معلم خبير ( 175 % )",O59*175/100,IF(AO59="بدل اعتماد كبير معلمين ( 200 % )",O59*200/100))))) -> 243 | AQ59: 243 | AR59: =AQ59/30 -> 8.1 | AS59: 0 | AT59: 72 | AU59: 2160 | AV59: 17496 | AW59: 17496 | AX59: حافز اداء معلم أول ( 50 % ) | AY59: =IF(AX59="حافز اداء معلم ( 75 % )",O59*75/100,IF(AX59="حافز اداء معلم أول ( 50 % )",O59*50/100,IF(AX59="حافز اداء معلم أول أ ( 25 % )",O59*25/100,IF(AX59="حافز اداء معلم خبير ( 25 % )",O59*25/100,IF(AX59="حافز اداء كبير معلمين ( 25 % )",O59*25/100))))) -> 81 | AZ59: 81 | BA59: 2.7 | BB59: 0 | BC59: 72 | BD59: 2160 | BE59: 5832 | BF59: 5832 | BG59: حافز اداء معلم ( 75 % ) | BH59: =IF(BG59="حافز اداء معلم ( 75 % )",O59*75/100,IF(BG59="حافز اداء معلم أول ( 50 % )",O59*50/100,IF(BG59="حافز اداء معلم أول أ ( 25 % )",O59*25/100,IF(BG59="حافز اداء معلم خبير ( 25 % )",O59*25/100,IF(BG59="حافز اداء كبير معلمين ( 25 % )",O59*25/100))))) -> 121.5 | BI59: 121.5 | BJ59: 4.05 | BK59: 0 | BL59: 72 | BM59: 2160 | BN59: 8748 | BO59: 8748 | BP59: =O59*10 -> 1620 | BQ59: 1620 | BR59: =BQ59/30 -> 54 | BS59: 0 | BT59: 72 | BU59: 2160 | BV59: 116640 | BW59: 9720 | BX59: =O59*40/100 -> 64.8 | BY59: 64.8 | BZ59: 2.16 | CA59: 0 | CB59: 14 | CC59: 420 | CD59: 907.2 | CE59: 139.968 | CF59: =CE59+BW59+BO59+BF59+AW59+AN59+AE59+W59 -> 71095.968 | CH59: 25907182500551 | CI59: ادارة اسيوط التعليمية
A60: 47 | B60: محمد 47 | C60: 25908222500041 | D60: محكمة القضاء الادارى باسيوط | E60: اسيوط | F60: محافظة اسيوط - وكيل وزارة التربية والتعليم | G60: 1266لسنة2043 | H60: 2022-05-06 | I60: 2016-08-06 | J60: 2019-08-18 | K60: 35919.22133 | L60: 450 | M60: 352 | N60: 98 | O60: 98 | P60: =N60*50/100 -> 49 | Q60: 49 | R60: 1.633333333 | S60: 0 | T60: 72 | U60: 2160 | V60: 3528 | W60: 3528 | X60: =O60*25/100 -> 24.5 | Y60: 24.5 | Z60: 0.8166666667 | AA60: 0 | AB60: 72 | AC60: 2160 | AD60: 1764 | AE60: 1764 | AF60: بدل اعتماد كبير معلمين ( 200 % ) | AG60: =IF(AF60="بدل اعتماد معلم ( 50 % )",O60*100/100,IF(AF60="بدل اعتماد معلم أول ( 125 % )",O60*125/100,IF(AF60="بدل اعتماد معلم أول أ ( 150 % )",O60*150/100,IF(AF60="بدل اعتماد معلم خبير ( 175 % )",O60*175/100,IF(AF60="بدل اعتماد كبير معلمين ( 200 % )",O60*200/100))))) -> 196 | AH60: 196 | AI60: 6.533333333 | AJ60: 0 | AK60: 72 | AL60: 2160 | AM60: 14112 | AN60: 14112 | AO60: بدل اعتماد معلم ( 50 % ) | AP60: =IF(AO60="بدل اعتماد معلم ( 50 % )",O60*100/100,IF(AO60="بدل اعتماد معلم أول ( 125 % )",O60*125/100,IF(AO60="بدل اعتماد معلم أول أ ( 150 % )",O60*150/100,IF(AO60="بدل اعتماد معلم خبير ( 175 % )",O60*175/100,IF(AO60="بدل اعتماد كبير معلمين ( 200 % )",O60*200/100))))) -> 98 | AQ60: 98 | AR60: =AQ60/30 -> 3.266666667 | AS60: 0 | AT60: 72 | AU60: 2160 | AV60: 7056 | AW60: 7056 | AX60: حافز اداء معلم أول أ ( 25 % ) | AY60: =IF(AX60="حافز اداء معلم ( 75 % )",O60*75/100,IF(AX60="حافز اداء معلم أول ( 50 % )",O60*50/100,IF(AX60="حافز اداء معلم أول أ ( 25 % )",O60*25/100,IF(AX60="حافز اداء معلم خبير ( 25 % )",O60*25/100,IF(AX60="حافز اداء كبير معلمين ( 25 % )",O60*25/100))))) -> 24.5 | AZ60: 24.5 | BA60: 0.8166666667 | BB60: 0 | BC60: 72 | BD60: 2160 | BE60: 1764 | BF60: 1764 | BG60: حافز اداء معلم أول أ ( 25 % ) | BH60: =IF(BG60="حافز اداء معلم ( 75 % )",O60*75/100,IF(BG60="حافز اداء معلم أول ( 50 % )",O60*50/100,IF(BG60="حافز اداء معلم أول أ ( 25 % )",O60*25/100,IF(BG60="حافز اداء معلم خبير ( 25 % )",O60*25/100,IF(BG60="حافز اداء كبير معلمين ( 25 % )",O60*25/100))))) -> 24.5 | BI60: 24.5 | BJ60: 0.8166666667 | BK60: 0 | BL60: 72 | BM60: 2160 | BN60: 1764 | BO60: 1764 | BP60: =O60*10 -> 980 | BQ60: 980 | BR60: =BQ60/30 -> 32.66666667 | BS60: 0 | BT60: 72 | BU60: 2160 | BV60: 70560 | BW60: 5880 | BX60: =O60*40/100 -> 39.2 | BY60: 39.2 | BZ60: 1.306666667 | CA60: 0 | CB60: 14 | CC60: 420 | CD60: 548.8 | CE60: 51.22133333 | CF60: =CE60+BW60+BO60+BF60+AW60+AN60+AE60+W60 -> 35919.22133 | CH60: 25908222500041 | CI60: مدرسة مدينة المعلمين
A61: 48 | B61: محمد 48 | C61: 25909052800601 | D61: محكمة القضاء الادارى باسيوط | E61: سوهاج | F61: محافظة اسيوط - وكيل وزارة التربية والتعليم | G61: 1266لسنة2044 | H61: 2022-05-06 | I61: 2016-08-06 | J61: 2019-08-18 | K61: 49873.06133 | L61: 568 | M61: 425 | N61: 143 | O61: 143 | P61: =N61*50/100 -> 71.5 | Q61: 71.5 | R61: 2.383333333 | S61: 0 | T61: 72 | U61: 2160 | V61: 5148 | W61: 5148 | X61: =O61*25/100 -> 35.75 | Y61: 35.75 | Z61: 1.191666667 | AA61: 0 | AB61: 72 | AC61: 2160 | AD61: 2574 | AE61: 2574 | AF61: بدل اعتماد معلم أول أ ( 150 % ) | AG61: =IF(AF61="بدل اعتماد معلم ( 50 % )",O61*100/100,IF(AF61="بدل اعتماد معلم أول ( 125 % )",O61*125/100,IF(AF61="بدل اعتماد معلم أول أ ( 150 % )",O61*150/100,IF(AF61="بدل اعتماد معلم خبير ( 175 % )",O61*175/100,IF(AF61="بدل اعتماد كبير معلمين ( 200 % )",O61*200/100))))) -> 214.5 | AH61: 214.5 | AI61: 7.15 | AJ61: 0 | AK61: 72 | AL61: 2160 | AM61: 15444 | AN61: 15444 | AO61: بدل اعتماد معلم أول ( 125 % ) | AP61: =IF(AO61="بدل اعتماد معلم ( 50 % )",O61*100/100,IF(AO61="بدل اعتماد معلم أول ( 125 % )",O61*125/100,IF(AO61="بدل اعتماد معلم أول أ ( 150 % )",O61*150/100,IF(AO61="بدل اعتماد معلم خبير ( 175 % )",O61*175/100,IF(AO61="بدل اعتماد كبير معلمين ( 200 % )",O61*200/100))))) -> 178.75 | AQ61: 178.75 | AR61: 5.958333333 | AS61: 0 | AT61: 72 | AU61: 2160 | AV61: 12870 | AW61: 12870 | AX61: حافز اداء معلم خبير ( 25 % ) | AY61: =IF(AX61="حافز اداء معلم ( 75 % )",O61*75/100,IF(AX61="حافز اداء معلم أول ( 50 % )",O61*50/100,IF(AX61="حافز اداء معلم أول أ ( 25 % )",O61*25/100,IF(AX61="حافز اداء معلم خبير ( 25 % )",O61*25/100,IF(AX61="حافز اداء كبير معلمين ( 25 % )",O61*25/100))))) -> 35.75 | AZ61: 35.75 | BA61: 1.191666667 | BB61: 0 | BC61: 72 | BD61: 2160 | BE61: 2574 | BF61: 2574 | BG61: حافز اداء معلم خبير ( 25 % ) | BH61: =IF(BG61="حافز اداء معلم ( 75 % )",O61*75/100,IF(BG61="حافز اداء معلم أول ( 50 % )",O61*50/100,IF(BG61="حافز اداء معلم أول أ ( 25 % )",O61*25/100,IF(BG61="حافز اداء معلم خبير ( 25 % )",O61*25/100,IF(BG61="حافز اداء كبير معلمين ( 25 % )",O61*25/100))))) -> 35.75 | BI61: 35.75 | BJ61: 1.191666667 | BK61: 0 | BL61: 72 | BM61: 2160 | BN61: 2574 | BO61: 2574 | BP61: =O61*10 -> 1430 | BQ61: 1430 | BR61: 47.66666667 | BS61: 0 | BT61: 72 | BU61: 2160 | BV61: 102960 | BW61: 8580 | BX61: =O61*40/100 -> 57.2 | BY61: 57.2 | BZ61: 1.906666667 | CA61: 0 | CB61: 14 | CC61: 420 | CD61: 800.8 | CE61: 109.0613333 | CF61: =CE61+BW61+BO61+BF61+AW61+AN61+AE61+W61 -> 49873.06133 | CH61: 25909052800601 | CI61: مدرسة سميح السعيد
A62: 49 | B62: محمد 49 | C62: 25909302500072 | D62: محكمة القضاء الادارى باسيوط | E62: المنيا | F62: محافظة اسيوط - وكيل وزارة التربية والتعليم | G62: 1266لسنة2045 | H62: 2022-05-06 | I62: 2016-08-06 | J62: 2019-08-18 | K62: 62560.512 | L62: 425 | M62: 236 | N62: 189 | O62: 189 | P62: =N62*50/100 -> 94.5 | Q62: 94.5 | R62: 3.15 | S62: 0 | T62: 72 | U62: 2160 | V62: 6804 | W62: 6804 | X62: =O62*25/100 -> 47.25 | Y62: 47.25 | Z62: 1.575 | AA62: 0 | AB62: 72 | AC62: 2160 | AD62: 3402 | AE62: 3402 | AF62: بدل اعتماد معلم ( 50 % ) | AG62: =IF(AF62="بدل اعتماد معلم ( 50 % )",O62*100/100,IF(AF62="بدل اعتماد معلم أول ( 125 % )",O62*125/100,IF(AF62="بدل اعتماد معلم أول أ ( 150 % )",O62*150/100,IF(AF62="بدل اعتماد معلم خبير ( 175 % )",O62*175/100,IF(AF62="بدل اعتماد كبير معلمين ( 200 % )",O62*200/100))))) -> 189 | AH62: 189 | AI62: 6.3 | AJ62: 0 | AK62: 72 | AL62: 2160 | AM62: 13608 | AN62: 13608 | AO62: بدل اعتماد معلم أول أ ( 150 % ) | AP62: =IF(AO62="بدل اعتماد معلم ( 50 % )",O62*100/100,IF(AO62="بدل اعتماد معلم أول ( 125 % )",O62*125/100,IF(AO62="بدل اعتماد معلم أول أ ( 150 % )",O62*150/100,IF(AO62="بدل اعتماد معلم خبير ( 175 % )",O62*175/100,IF(AO62="بدل اعتماد كبير معلمين ( 200 % )",O62*200/100))))) -> 283.5 | AQ62: 283.5 | AR62: 9.45 | AS62: 0 | AT62: 72 | AU62: 2160 | AV62: 20412 | AW62: 20412 | AX62: حافز اداء كبير معلمين ( 25 % ) | AY62: =IF(AX62="حافز اداء معلم ( 75 % )",O62*75/100,IF(AX62="حافز اداء معلم أول ( 50 % )",O62*50/100,IF(AX62="حافز اداء معلم أول أ ( 25 % )",O62*25/100,IF(AX62="حافز اداء معلم خبير ( 25 % )",O62*25/100,IF(AX62="حافز اداء كبير معلمين ( 25 % )",O62*25/100))))) -> 47.25 | AZ62: 47.25 | BA62: 1.575 | BB62: 0 | BC62: 72 | BD62: 2160 | BE62: 3402 | BF62: 3402 | BG62: حافز اداء كبير معلمين ( 25 % ) | BH62: =IF(BG62="حافز اداء معلم ( 75 % )",O62*75/100,IF(BG62="حافز اداء معلم أول ( 50 % )",O62*50/100,IF(BG62="حافز اداء معلم أول أ ( 25 % )",O62*25/100,IF(BG62="حافز اداء معلم خبير ( 25 % )",O62*25/100,IF(BG62="حافز اداء كبير معلمين ( 25 % )",O62*25/100))))) -> 47.25 | BI62: 47.25 | BJ62: 1.575 | BK62: 0 | BL62: 72 | BM62: 2160 | BN62: 3402 | BO62: 3402 | BP62: =O62*10 -> 1890 | BQ62: 1890 | BR62: 63 | BS62: 0 | BT62: 72 | BU62: 2160 | BV62: 136080 | BW62: 11340 | BX62: =O62*40/100 -> 75.6 | BY62: 75.6 | BZ62: 2.52 | CA62: 0 | CB62: 14 | CC62: 420 | CD62: 1058.4 | CE62: 190.512 | CF62: =CE62+BW62+BO62+BF62+AW62+AN62+AE62+W62 -> 62560.512 | CH62: 25909302500072 | CI62: ادارة اسيوط التعليمية
A63: 50 | B63: محمد 50 | C63: 26005012500254 | D63: محكمة القضاء الادارى باسيوط | E63: سوهاج | F63: محافظة اسيوط - وكيل وزارة التربية والتعليم | G63: 1266لسنة2046 | H63: 2022-05-06 | I63: 2016-08-06 | J63: 2019-08-18 | K63: 33717.14133 | L63: 450 | M63: 358 | N63: 92 | O63: 92 | P63: =N63*50/100 -> 46 | Q63: 46 | R63: 1.533333333 | S63: 0 | T63: 72 | U63: 2160 | V63: 3312 | W63: 3312 | X63: =O63*25/100 -> 23 | Y63: 23 | Z63: 0.7666666667 | AA63: 0 | AB63: 72 | AC63: 2160 | AD63: 1656 | AE63: 1656 | AF63: بدل اعتماد معلم أول ( 125 % ) | AG63: =IF(AF63="بدل اعتماد معلم ( 50 % )",O63*100/100,IF(AF63="بدل اعتماد معلم أول ( 125 % )",O63*125/100,IF(AF63="بدل اعتماد معلم أول أ ( 150 % )",O63*150/100,IF(AF63="بدل اعتماد معلم خبير ( 175 % )",O63*175/100,IF(AF63="بدل اعتماد كبير معلمين ( 200 % )",O63*200/100))))) -> 115 | AH63: 115 | AI63: 3.833333333 | AJ63: 0 | AK63: 72 | AL63: 2160 | AM63: 8280 | AN63: 8280 | AO63: بدل اعتماد معلم خبير ( 175 % ) | AP63: =IF(AO63="بدل اعتماد معلم ( 50 % )",O63*100/100,IF(AO63="بدل اعتماد معلم أول ( 125 % )",O63*125/100,IF(AO63="بدل اعتماد معلم أول أ ( 150 % )",O63*150/100,IF(AO63="بدل اعتماد معلم خبير ( 175 % )",O63*175/100,IF(AO63="بدل اعتماد كبير معلمين ( 200 % )",O63*200/100))))) -> 161 | AQ63: 161 | AR63: 5.366666667 | AS63: 0 | AT63: 72 | AU63: 2160 | AV63: 11592 | AW63: 11592 | AX63: حافز اداء كبير معلمين ( 25 % ) | AY63: =IF(AX63="حافز اداء معلم ( 75 % )",O63*75/100,IF(AX63="حافز اداء معلم أول ( 50 % )",O63*50/100,IF(AX63="حافز اداء معلم أول أ ( 25 % )",O63*25/100,IF(AX63="حافز اداء معلم خبير ( 25 % )",O63*25/100,IF(AX63="حافز اداء كبير معلمين ( 25 % )",O63*25/100))))) -> 23 | AZ63: 23 | BA63: 0.7666666667 | BB63: 0 | BC63: 72 | BD63: 2160 | BE63: 1656 | BF63: 1656 | BG63: حافز اداء كبير معلمين ( 25 % ) | BH63: =IF(BG63="حافز اداء معلم ( 75 % )",O63*75/100,IF(BG63="حافز اداء معلم أول ( 50 % )",O63*50/100,IF(BG63="حافز اداء معلم أول أ ( 25 % )",O63*25/100,IF(BG63="حافز اداء معلم خبير ( 25 % )",O63*25/100,IF(BG63="حافز اداء كبير معلمين ( 25 % )",O63*25/100))))) -> 23 | BI63: 23 | BJ63: 0.7666666667 | BK63: 0 | BL63: 72 | BM63: 2160 | BN63: 1656 | BO63: 1656 | BP63: =O63*10 -> 920 | BQ63: 920 | BR63: 30.66666667 | BS63: 0 | BT63: 72 | BU63: 2160 | BV63: 66240 | BW63: 5520 | BX63: =O63*40/100 -> 36.8 | BY63: 36.8 | BZ63: 1.226666667 | CA63: 0 | CB63: 14 | CC63: 420 | CD63: 515.2 | CE63: 45.14133333 | CF63: =CE63+BW63+BO63+BF63+AW63+AN63+AE63+W63 -> 33717.14133 | CH63: 26005012500254 | CI63: مدرسة مدينة المعلمين
A64: 51 | B64: محمد 51 | C64: 26009052500091 | D64: محكمة القضاء الادارى باسيوط | E64: اسيوط | F64: محافظة اسيوط - وكيل وزارة التربية والتعليم | G64: 1266لسنة2047 | H64: 2022-05-06 | I64: 2016-08-06 | J64: 2019-08-18 | K64: 76927.968 | L64: 520 | M64: 358 | N64: 162 | O64: 162 | P64: =N64*50/100 -> 81 | Q64: 81 | R64: 2.7 | S64: 0 | T64: 72 | U64: 2160 | V64: 5832 | W64: 5832 | X64: =O64*25/100 -> 40.5 | Y64: 40.5 | Z64: 1.35 | AA64: 0 | AB64: 72 | AC64: 2160 | AD64: 2916 | AE64: 2916 | AF64: بدل اعتماد معلم أول أ ( 150 % ) | AG64: =IF(AF64="بدل اعتماد معلم ( 50 % )",O64*100/100,IF(AF64="بدل اعتماد معلم أول ( 125 % )",O64*125/100,IF(AF64="بدل اعتماد معلم أول أ ( 150 % )",O64*150/100,IF(AF64="بدل اعتماد معلم خبير ( 175 % )",O64*175/100,IF(AF64="بدل اعتماد كبير معلمين ( 200 % )",O64*200/100))))) -> 243 | AH64: 243 | AI64: 8.1 | AJ64: 0 | AK64: 72 | AL64: 2160 | AM64: 17496 | AN64: 17496 | AO64: بدل اعتماد كبير معلمين ( 200 % ) | AP64: =IF(AO64="بدل اعتماد معلم ( 50 % )",O64*100/100,IF(AO64="بدل اعتماد معلم أول ( 125 % )",O64*125/100,IF(AO64="بدل اعتماد معلم أول أ ( 150 % )",O64*150/100,IF(AO64="بدل اعتماد معلم خبير ( 175 % )",O64*175/100,IF(AO64="بدل اعتماد كبير معلمين ( 200 % )",O64*200/100))))) -> 324 | AQ64: 324 | AR64: 10.8 | AS64: 0 | AT64: 72 | AU64: 2160 | AV64: 23328 | AW64: 23328 | AX64: حافز اداء معلم ( 75 % ) | AY64: =IF(AX64="حافز اداء معلم ( 75 % )",O64*75/100,IF(AX64="حافز اداء معلم أول ( 50 % )",O64*50/100,IF(AX64="حافز اداء معلم أول أ ( 25 % )",O64*25/100,IF(AX64="حافز اداء معلم خبير ( 25 % )",O64*25/100,IF(AX64="حافز اداء كبير معلمين ( 25 % )",O64*25/100))))) -> 121.5 | AZ64: 121.5 | BA64: 4.05 | BB64: 0 | BC64: 72 | BD64: 2160 | BE64: 8748 | BF64: 8748 | BG64: حافز اداء معلم ( 75 % ) | BH64: =IF(BG64="حافز اداء معلم ( 75 % )",O64*75/100,IF(BG64="حافز اداء معلم أول ( 50 % )",O64*50/100,IF(BG64="حافز اداء معلم أول أ ( 25 % )",O64*25/100,IF(BG64="حافز اداء معلم خبير ( 25 % )",O64*25/100,IF(BG64="حافز اداء كبير معلمين ( 25 % )",O64*25/100))))) -> 121.5 | BI64: 121.5 | BJ64: 4.05 | BK64: 0 | BL64: 72 | BM64: 2160 | BN64: 8748 | BO64: 8748 | BP64: =O64*10 -> 1620 | BQ64: 1620 | BR64: 54 | BS64: 0 | BT64: 72 | BU64: 2160 | BV64: 116640 | BW64: 9720 | BX64: =O64*40/100 -> 64.8 | BY64: 64.8 | BZ64: 2.16 | CA64: 0 | CB64: 14 | CC64: 420 | CD64: 907.2 | CE64: 139.968 | CF64: =CE64+BW64+BO64+BF64+AW64+AN64+AE64+W64 -> 76927.968 | CH64: 26009052500091 | CI64: مدرسة سميح السعيد
A65: 52 | B65: محمد 52 | C65: 26009232500081 | D65: محكمة القضاء الادارى باسيوط | E65: سوهاج | F65: محافظة اسيوط - وكيل وزارة التربية والتعليم | G65: 1266لسنة2048 | H65: 2022-05-06 | I65: 2016-08-06 | J65: 2019-08-18 | K65: 109137.7653 | L65: 659 | M65: 400 | N65: 259 | O65: 259 | P65: =N65*50/100 -> 129.5 | Q65: 129.5 | R65: 4.316666667 | S65: 0 | T65: 72 | U65: 2160 | V65: 9324 | W65: 9324 | X65: =O65*25/100 -> 64.75 | Y65: 64.75 | Z65: 2.158333333 | AA65: 0 | AB65: 72 | AC65: 2160 | AD65: 4662 | AE65: 4662 | AF65: بدل اعتماد معلم خبير ( 175 % ) | AG65: =IF(AF65="بدل اعتماد معلم ( 50 % )",O65*100/100,IF(AF65="بدل اعتماد معلم أول ( 125 % )",O65*125/100,IF(AF65="بدل اعتماد معلم أول أ ( 150 % )",O65*150/100,IF(AF65="بدل اعتماد معلم خبير ( 175 % )",O65*175/100,IF(AF65="بدل اعتماد كبير معلمين ( 200 % )",O65*200/100))))) -> 453.25 | AH65: 453.25 | AI65: 15.10833333 | AJ65: 0 | AK65: 72 | AL65: 2160 | AM65: 32634 | AN65: 32634 | AO65: بدل اعتماد معلم أول أ ( 150 % ) | AP65: =IF(AO65="بدل اعتماد معلم ( 50 % )",O65*100/100,IF(AO65="بدل اعتماد معلم أول ( 125 % )",O65*125/100,IF(AO65="بدل اعتماد معلم أول أ ( 150 % )",O65*150/100,IF(AO65="بدل اعتماد معلم خبير ( 175 % )",O65*175/100,IF(AO65="بدل اعتماد كبير معلمين ( 200 % )",O65*200/100))))) -> 388.5 | AQ65: 388.5 | AR65: 12.95 | AS65: 0 | AT65: 72 | AU65: 2160 | AV65: 27972 | AW65: 27972 | AX65: حافز اداء معلم أول ( 50 % ) | AY65: =IF(AX65="حافز اداء معلم ( 75 % )",O65*75/100,IF(AX65="حافز اداء معلم أول ( 50 % )",O65*50/100,IF(AX65="حافز اداء معلم أول أ ( 25 % )",O65*25/100,IF(AX65="حافز اداء معلم خبير ( 25 % )",O65*25/100,IF(AX65="حافز اداء كبير معلمين ( 25 % )",O65*25/100))))) -> 129.5 | AZ65: 129.5 | BA65: 4.316666667 | BB65: 0 | BC65: 72 | BD65: 2160 | BE65: 9324 | BF65: 9324 | BG65: حافز اداء معلم أول ( 50 % ) | BH65: =IF(BG65="حافز اداء معلم ( 75 % )",O65*75/100,IF(BG65="حافز اداء معلم أول ( 50 % )",O65*50/100,IF(BG65="حافز اداء معلم أول أ ( 25 % )",O65*25/100,IF(BG65="حافز اداء معلم خبير ( 25 % )",O65*25/100,IF(BG65="حافز اداء كبير معلمين ( 25 % )",O65*25/100))))) -> 129.5 | BI65: 129.5 | BJ65: 4.316666667 | BK65: 0 | BL65: 72 | BM65: 2160 | BN65: 9324 | BO65: 9324 | BP65: =O65*10 -> 2590 | BQ65: 2590 | BR65: 86.33333333 | BS65: 0 | BT65: 72 | BU65: 2160 | BV65: 186480 | BW65: 15540 | BX65: =O65*40/100 -> 103.6 | BY65: 103.6 | BZ65: 3.453333333 | CA65: 0 | CB65: 14 | CC65: 420 | CD65: 1450.4 | CE65: 357.7653333 | CF65: =CE65+BW65+BO65+BF65+AW65+AN65+AE65+W65 -> 109137.7653 | CH65: 26009232500081 | CI65: ادارة اسيوط التعليمية
A66: 53 | B66: محمد 53 | C66: 26011282501295 | D66: محكمة القضاء الادارى باسيوط | E66: المنيا | F66: محافظة اسيوط - وكيل وزارة التربية والتعليم | G66: 1266لسنة2049 | H66: 2022-05-06 | I66: 2016-08-06 | J66: 2019-08-18 | K66: 12816.53333 | L66: 400 | M66: 365 | N66: 35 | O66: 35 | P66: =N66*50/100 -> 17.5 | Q66: 17.5 | R66: 0.5833333333 | S66: 0 | T66: 72 | U66: 2160 | V66: 1260 | W66: 1260 | X66: =O66*25/100 -> 8.75 | Y66: 8.75 | Z66: 0.2916666667 | AA66: 0 | AB66: 72 | AC66: 2160 | AD66: 630 | AE66: 630 | AF66: بدل اعتماد كبير معلمين ( 200 % ) | AG66: =IF(AF66="بدل اعتماد معلم ( 50 % )",O66*100/100,IF(AF66="بدل اعتماد معلم أول ( 125 % )",O66*125/100,IF(AF66="بدل اعتماد معلم أول أ ( 150 % )",O66*150/100,IF(AF66="بدل اعتماد معلم خبير ( 175 % )",O66*175/100,IF(AF66="بدل اعتماد كبير معلمين ( 200 % )",O66*200/100))))) -> 70 | AH66: 70 | AI66: 2.333333333 | AJ66: 0 | AK66: 72 | AL66: 2160 | AM66: 5040 | AN66: 5040 | AO66: بدل اعتماد معلم ( 50 % ) | AP66: =IF(AO66="بدل اعتماد معلم ( 50 % )",O66*100/100,IF(AO66="بدل اعتماد معلم أول ( 125 % )",O66*125/100,IF(AO66="بدل اعتماد معلم أول أ ( 150 % )",O66*150/100,IF(AO66="بدل اعتماد معلم خبير ( 175 % )",O66*175/100,IF(AO66="بدل اعتماد كبير معلمين ( 200 % )",O66*200/100))))) -> 35 | AQ66: 35 | AR66: 1.166666667 | AS66: 0 | AT66: 72 | AU66: 2160 | AV66: 2520 | AW66: 2520 | AX66: حافز اداء معلم أول أ ( 25 % ) | AY66: =IF(AX66="حافز اداء معلم ( 75 % )",O66*75/100,IF(AX66="حافز اداء معلم أول ( 50 % )",O66*50/100,IF(AX66="حافز اداء معلم أول أ ( 25 % )",O66*25/100,IF(AX66="حافز اداء معلم خبير ( 25 % )",O66*25/100,IF(AX66="حافز اداء كبير معلمين ( 25 % )",O66*25/100))))) -> 8.75 | AZ66: 8.75 | BA66: 0.2916666667 | BB66: 0 | BC66: 72 | BD66: 2160 | BE66: 630 | BF66: 630 | BG66: حافز اداء معلم أول أ ( 25 % ) | BH66: =IF(BG66="حافز اداء معلم ( 75 % )",O66*75/100,IF(BG66="حافز اداء معلم أول ( 50 % )",O66*50/100,IF(BG66="حافز اداء معلم أول أ ( 25 % )",O66*25/100,IF(BG66="حافز اداء معلم خبير ( 25 % )",O66*25/100,IF(BG66="حافز اداء كبير معلمين ( 25 % )",O66*25/100))))) -> 8.75 | BI66: 8.75 | BJ66: 0.2916666667 | BK66: 0 | BL66: 72 | BM66: 2160 | BN66: 630 | BO66: 630 | BP66: =O66*10 -> 350 | BQ66: 350 | BR66: 11.66666667 | BS66: 0 | BT66: 72 | BU66: 2160 | BV66: 25200 | BW66: 2100 | BX66: =O66*40/100 -> 14 | BY66: 14 | BZ66: 0.4666666667 | CA66: 0 | CB66: 14 | CC66: 420 | CD66: 196 | CE66: 6.533333333 | CF66: =CE66+BW66+BO66+BF66+AW66+AN66+AE66+W66 -> 12816.53333 | CH66: 26011282501295 | CI66: مدرسة مدينة المعلمين
A67: 54 | B67: محمد 54 | C67: 26109282500108 | D67: محكمة القضاء الادارى باسيوط | E67: سوهاج | F67: محافظة اسيوط - وكيل وزارة التربية والتعليم | G67: 1266لسنة2050 | H67: 2022-05-06 | I67: 2016-08-06 | J67: 2019-08-18 | K67: 75416.832 | L67: 452 | M67: 236 | N67: 216 | O67: 216 | P67: =N67*50/100 -> 108 | Q67: 108 | R67: 3.6 | S67: 0 | T67: 72 | U67: 2160 | V67: 7776 | W67: 7776 | X67: =O67*25/100 -> 54 | Y67: 54 | Z67: 1.8 | AA67: 0 | AB67: 72 | AC67: 2160 | AD67: 3888 | AE67: 3888 | AF67: بدل اعتماد معلم أول أ ( 150 % ) | AG67: =IF(AF67="بدل اعتماد معلم ( 50 % )",O67*100/100,IF(AF67="بدل اعتماد معلم أول ( 125 % )",O67*125/100,IF(AF67="بدل اعتماد معلم أول أ ( 150 % )",O67*150/100,IF(AF67="بدل اعتماد معلم خبير ( 175 % )",O67*175/100,IF(AF67="بدل اعتماد كبير معلمين ( 200 % )",O67*200/100))))) -> 324 | AH67: 324 | AI67: 10.8 | AJ67: 0 | AK67: 72 | AL67: 2160 | AM67: 23328 | AN67: 23328 | AO67: بدل اعتماد معلم أول ( 125 % ) | AP67: =IF(AO67="بدل اعتماد معلم ( 50 % )",O67*100/100,IF(AO67="بدل اعتماد معلم أول ( 125 % )",O67*125/100,IF(AO67="بدل اعتماد معلم أول أ ( 150 % )",O67*150/100,IF(AO67="بدل اعتماد معلم خبير ( 175 % )",O67*175/100,IF(AO67="بدل اعتماد كبير معلمين ( 200 % )",O67*200/100))))) -> 270 | AQ67: 270 | AR67: 9 | AS67: 0 | AT67: 72 | AU67: 2160 | AV67: 19440 | AW67: 19440 | AX67: حافز اداء معلم خبير ( 25 % ) | AY67: =IF(AX67="حافز اداء معلم ( 75 % )",O67*75/100,IF(AX67="حافز اداء معلم أول ( 50 % )",O67*50/100,IF(AX67="حافز اداء معلم أول أ ( 25 % )",O67*25/100,IF(AX67="حافز اداء معلم خبير ( 25 % )",O67*25/100,IF(AX67="حافز اداء كبير معلمين ( 25 % )",O67*25/100))))) -> 54 | AZ67: 54 | BA67: 1.8 | BB67: 0 | BC67: 72 | BD67: 2160 | BE67: 3888 | BF67: 3888 | BG67: حافز اداء معلم خبير ( 25 % ) | BH67: =IF(BG67="حافز اداء معلم ( 75 % )",O67*75/100,IF(BG67="حافز اداء معلم أول ( 50 % )",O67*50/100,IF(BG67="حافز اداء معلم أول أ ( 25 % )",O67*25/100,IF(BG67="حافز اداء معلم خبير ( 25 % )",O67*25/100,IF(BG67="حافز اداء كبير معلمين ( 25 % )",O67*25/100))))) -> 54 | BI67: 54 | BJ67: 1.8 | BK67: 0 | BL67: 72 | BM67: 2160 | BN67: 3888 | BO67: 3888 | BP67: =O67*10 -> 2160 | BQ67: 2160 | BR67: 72 | BS67: 0 | BT67: 72 | BU67: 2160 | BV67: 155520 | BW67: 12960 | BX67: =O67*40/100 -> 86.4 | BY67: 86.4 | BZ67: 2.88 | CA67: 0 | CB67: 14 | CC67: 420 | CD67: 1209.6 | CE67: 248.832 | CF67: =CE67+BW67+BO67+BF67+AW67+AN67+AE67+W67 -> 75416.832 | CH67: 26109282500108 | CI67: مدرسة سميح السعيد
A68: 55 | B68: محمد 55 | C68: 26203162502333 | D68: محكمة القضاء الادارى باسيوط | E68: اسيوط | F68: محافظة اسيوط - وكيل وزارة التربية والتعليم | G68: 1266لسنة2051 | H68: 2022-05-06 | I68: 2016-08-06 | J68: 2019-08-18 | K68: 131182.1333 | L68: 653 | M68: 258 | N68: 395 | O68: 395 | P68: =N68*50/100 -> 197.5 | Q68: 197.5 | R68: 6.583333333 | S68: 0 | T68: 72 | U68: 2160 | V68: 14220 | W68: 14220 | X68: =O68*25/100 -> 98.75 | Y68: 98.75 | Z68: 3.291666667 | AA68: 0 | AB68: 72 | AC68: 2160 | AD68: 7110 | AE68: 7110 | AF68: بدل اعتماد معلم ( 50 % ) | AG68: =IF(AF68="بدل اعتماد معلم ( 50 % )",O68*100/100,IF(AF68="بدل اعتماد معلم أول ( 125 % )",O68*125/100,IF(AF68="بدل اعتماد معلم أول أ ( 150 % )",O68*150/100,IF(AF68="بدل اعتماد معلم خبير ( 175 % )",O68*175/100,IF(AF68="بدل اعتماد كبير معلمين ( 200 % )",O68*200/100))))) -> 395 | AH68: 395 | AI68: 13.16666667 | AJ68: 0 | AK68: 72 | AL68: 2160 | AM68: 28440 | AN68: 28440 | AO68: بدل اعتماد معلم أول أ ( 150 % ) | AP68: =IF(AO68="بدل اعتماد معلم ( 50 % )",O68*100/100,IF(AO68="بدل اعتماد معلم أول ( 125 % )",O68*125/100,IF(AO68="بدل اعتماد معلم أول أ ( 150 % )",O68*150/100,IF(AO68="بدل اعتماد معلم خبير ( 175 % )",O68*175/100,IF(AO68="بدل اعتماد كبير معلمين ( 200 % )",O68*200/100))))) -> 592.5 | AQ68: 592.5 | AR68: 19.75 | AS68: 0 | AT68: 72 | AU68: 2160 | AV68: 42660 | AW68: 42660 | AX68: حافز اداء كبير معلمين ( 25 % ) | AY68: =IF(AX68="حافز اداء معلم ( 75 % )",O68*75/100,IF(AX68="حافز اداء معلم أول ( 50 % )",O68*50/100,IF(AX68="حافز اداء معلم أول أ ( 25 % )",O68*25/100,IF(AX68="حافز اداء معلم خبير ( 25 % )",O68*25/100,IF(AX68="حافز اداء كبير معلمين ( 25 % )",O68*25/100))))) -> 98.75 | AZ68: 98.75 | BA68: 3.291666667 | BB68: 0 | BC68: 72 | BD68: 2160 | BE68: 7110 | BF68: 7110 | BG68: حافز اداء كبير معلمين ( 25 % ) | BH68: =IF(BG68="حافز اداء معلم ( 75 % )",O68*75/100,IF(BG68="حافز اداء معلم أول ( 50 % )",O68*50/100,IF(BG68="حافز اداء معلم أول أ ( 25 % )",O68*25/100,IF(BG68="حافز اداء معلم خبير ( 25 % )",O68*25/100,IF(BG68="حافز اداء كبير معلمين ( 25 % )",O68*25/100))))) -> 98.75 | BI68: 98.75 | BJ68: 3.291666667 | BK68: 0 | BL68: 72 | BM68: 2160 | BN68: 7110 | BO68: 7110 | BP68: =O68*10 -> 3950 | BQ68: 3950 | BR68: 131.6666667 | BS68: 0 | BT68: 72 | BU68: 2160 | BV68: 284400 | BW68: 23700 | BX68: =O68*40/100 -> 158 | BY68: 158 | BZ68: 5.266666667 | CA68: 0 | CB68: 14 | CC68: 420 | CD68: 2212 | CE68: 832.1333333 | CF68: =CE68+BW68+BO68+BF68+AW68+AN68+AE68+W68 -> 131182.1333 | CH68: 26203162502333 | CI68: ادارة اسيوط التعليمية
B69: ترى ادارة اسيوط التعليمية : موافقة سيادتكم على تعزيز بند بدل المعلم 4 / 45 وبند بدل الاعتماد 4 / 46 وبند حافز الاداء 3 / 23 وبند الاثابة 3 / 3 وبند المكافاة 3 / 14 | N69: 0 | O69: 0 | Q69: 0 | S69: 0 | T69: 72 | U69: 2160 | V69: 0 | W69: 0 | Y69: 0 | AA69: 0 | AB69: 72 | AC69: 2160 | AD69: 0 | AE69: 0 | AH69: 0 | AI69: 0 | AJ69: 0 | AK69: 72 | AL69: 2160 | AM69: 0 | AN69: 0 | AQ69: 0 | AR69: =AQ69/30 -> 0 | AS69: 0 | AT69: 72 | AU69: 2160 | AV69: 0 | AW69: 0 | AZ69: 0 | BA69: 0 | BB69: 0 | BC69: 72 | BD69: 2160 | BE69: 0 | BF69: 0 | BI69: 0 | BJ69: 0 | BK69: 0 | BL69: 72 | BM69: 2160 | BN69: 0 | BO69: 0 | BQ69: 0 | BS69: 0 | BT69: 72 | BU69: 2160 | BV69: 0 | BY69: 0 | CA69: 0 | CC69: 0 | CD69: 0 | CI69: مدرسة مدينة المعلمين
B70: وبند الجهود غير العادية لعدد ( ) من المعلمين بادارة اسيوط التعليمية ومدارسها الصادر لهم احكام قضائية باحقيتهم فى صرفها | N70: 0 | O70: =TRUNC(N70,2) -> 0 | Q70: =TRUNC(P70,2) -> 0 | S70: 0 | T70: 72 | U70: 2160 | V70: 0 | W70: 0 | Y70: 0 | AA70: 0 | AB70: 72 | AC70: 2160 | AD70: 0 | AE70: 0 | AH70: 0 | AI70: 0 | AJ70: 0 | AK70: 72 | AL70: 2160 | AM70: 0 | AN70: 0 | AQ70: 0 | AR70: =AQ70/30 -> 0 | AS70: 0 | AT70: 72 | AU70: 2160 | AV70: 0 | AW70: 0 | AZ70: 0 | BA70: 0 | BB70: 0 | BC70: 72 | BD70: 2160 | BE70: 0 | BF70: 0 | BI70: 0 | BJ70: 0 | BK70: 0 | BL70: 72 | BM70: 2160 | BN70: 0 | BO70: 0 | BQ70: 0 | BS70: 0 | BT70: 72 | BU70: 2160 | BV70: 0 | BY70: 0 | CA70: 0 | CC70: 0 | CD70: 0 | CI70: مدرسة سميح السعيد
B71: رفع موافقة سيادتكم لمديرية النظيم والادارة باسيوط للدراسة واتخاذ اللازم | N71: 0 | O71: 0 | Q71: 0 | S71: 0 | T71: 72 | U71: 2160 | V71: 0 | W71: 0 | Y71: 0 | AA71: 0 | AB71: 72 | AC71: 2160 | AD71: 0 | AE71: 0 | AH71: 0 | AI71: 0 | AJ71: 0 | AK71: 72 | AL71: 2160 | AM71: 0 | AN71: 0 | AQ71: 0 | AR71: 0 | AS71: 0 | AT71: 72 | AU71: 2160 | AV71: 0 | AW71: 0 | AZ71: 0 | BA71: 0 | BB71: 0 | BC71: 72 | BD71: 2160 | BE71: 0 | BF71: 0 | BI71: 0 | BJ71: 0 | BK71: 0 | BL71: 72 | BM71: 2160 | BN71: 0 | BO71: 0 | BQ71: 0 | BS71: 0 | BT71: 72 | BU71: 2160 | BV71: 0 | BY71: 0 | CA71: 0 | CC71: 0 | CD71: 0 | CI71: ادارة اسيوط التعليمية
B72: المختص رئيس القسم مدير الموارد البشرية المدير المالى والادارى المدير العام مدير عام الشئون المالية والادارية وكيل الوزارة | N72: 0 | O72: 0 | Q72: 0 | S72: 0 | T72: 72 | U72: 2160 | V72: 0 | W72: 0 | Y72: 0 | AA72: 0 | AB72: 72 | AC72: 2160 | AD72: 0 | AE72: 0 | AH72: 0 | AI72: 0 | AJ72: 0 | AK72: 72 | AL72: 2160 | AM72: 0 | AN72: 0 | AQ72: 0 | AR72: 0 | AS72: 0 | AT72: 72 | AU72: 2160 | AV72: 0 | AW72: 0 | AZ72: 0 | BA72: 0 | BB72: 0 | BC72: 72 | BD72: 2160 | BE72: 0 | BF72: 0 | BI72: 0 | BJ72: 0 | BK72: 0 | BL72: 72 | BM72: 2160 | BN72: 0 | BO72: 0 | BQ72: 0 | BS72: 0 | BT72: 72 | BU72: 2160 | BV72: 0 | BY72: 0 | CA72: 0 | CC72: 0 | CD72: 0 | CI72: مدرسة مدينة المعلمين
O73: 0 | Q73: 0 | S73: 0 | T73: 72 | U73: 2160 | W73: 0 | Y73: 0 | AA73: 0 | AB73: 72 | AC73: 2160 | AE73: 0 | AH73: 0 | AI73: 0 | AJ73: 0 | AK73: 72 | AL73: 2160 | AM73: 0 | AN73: 0 | AQ73: 0 | AR73: 0 | AS73: 0 | AT73: 72 | AU73: 2160 | AV73: 0 | AW73: 0 | AZ73: 0 | BA73: 0 | BB73: 0 | BC73: 72 | BD73: 2160 | BE73: 0 | BF73: 0 | BI73: 0 | BJ73: 0 | BK73: 0 | BL73: 72 | BM73: 2160 | BN73: 0 | BO73: 0 | BQ73: 0 | BS73: 0 | BT73: 72 | BU73: 2160 | BV73: 0 | BY73: 0 | CA73: 0 | CC73: 0 | CD73: 0 | CI73: مدرسة سميح السعيد

Sheet ورقة2
A1: بدل اعتماد معلم ( 50 % ) | B1: حافز اداء معلم ( 75 % )
A2: بدل اعتماد معلم أول ( 125 % ) | B2: حافز اداء معلم أول ( 50 % )
A3: بدل اعتماد معلم أول أ ( 150 % ) | B3: حافز اداء معلم أول أ ( 25 % )
A4: بدل اعتماد معلم خبير ( 175 % ) | B4: حافز اداء معلم خبير ( 25 % )
A5: بدل اعتماد كبير معلمين ( 200 % ) | B5: حافز اداء كبير معلمين ( 25 % )

Sheet ورقة3
B1: محافظة اسيوط
B2: ادارة اسيوط التعليمية | T2: 2521013251237 | U2: 2521013251237
B3: ادارة الموارد البشرية
B4: قسم الماهيات
B5: السيد الاستاذ / مدير مديرية التنظيم والادارة بأسيوط ( ادارة التدريب والتنظيم )
C6: تحية طيبة وبعد
B7: وردت الينا الدعوى رقم | C7: G12 | D7: والمقامة من السيد / | G7: B12
B8: بمدرسة / ...................................... | D8: رقم قومى / | G8: C12
B9: ضد / | C9: F12
B10: بشان صرف الحوافز والمكافات ومقابل الجهود غير العادية وجميع المزايا النقدية والعينية المقررة له
B11: وفقا لاجره المستحق فى 30 / 6 / 2016 مع ما يترتب على ذلك من اثار وفروق مالية
B12: ومرفق طيه صورة ضوئية من الدعوى حيث انه تم عمل اللازم نحو حساب المستحقات لسيادتكم كالتالى
B13: وذلك عن المدة من : | C13: I12 | D13: حتى : | E13: J12
B14: أساسى | C14: أساسى | D14: الفرق | G14: ملاحظات
B15: 2016-06-30 | C15: 2015-06-30
B16: L12 | C16: M12 | D16: O12
B18: البند | D18: قيمة | E18: عدد الشهور المستحقة | G18: مبلغ المدة | H18: ملاحظات
D19: الشهر | E19: يوم | F19: شهر | G19: المستحقة
B20: بدل معلم ( 50 % ) | D20: Q12 | E20: S12 | F20: T12 | G20: W12
B21: حافز ( 25 % ) | D21: Y12 | E21: AA12 | F21: AB12 | G21: AE12
B22: AF12 | D22: AH12 | E22: AJ12 | F22: AK12 | G22: AN12
B23: AO12 | D23: AQ12 | E23: AS12 | F23: AT12 | G23: AW12
B24: AX12 | D24: AZ12 | E24: BB12 | F24: BC12 | G24: BF12
B25: BG12 | D25: BI12 | E25: BK12 | F25: BL12 | G25: BO12
B26: مكافاة الامتحانات ( 200 يوم * 5 % ) | D26: BQ12 | E26: BS12 | F26: BT12 | G26: BW12
B27: جهود غير عادية | D27: BY12 | E27: CA12 | F27: CB12 | G27: CE12
B28: الاجمالى | G28: CF12
B29: وبذلك يستحق السيد المذكور مبلغ | D29: =G28 -> CF12 | F29: CG12
B30: ونرجو الموافقة على الترخيص بصرف المبلغ المذكور أعلاه للمدعى على اساسي 30 / 6 / 2016
B31: المرفقات :
B32: عدد (2) صورة من الحكم معتمدة ومختومة ومزيلة بالصيغة التنفيذية
B33: عدد (2) صورة طبق الاصل من هيئة قضايا الدولة معتمدة ومختومة
B34: عدد (2) بيان تكاليف معتمدة ومختومة
B35: عدد (2) صورة الرقم القومى معتمدة ومختومة وسارية
B36: وتفضلوا سيادتكم بقبول وافر التحية و الاحترام
B37: المختص | C37: رئيس قسم الماهيات | F37: يعتمد مدير ادارة الموارد البشرية | H37: ختم شعار الجمهورية
